Directorate,Department,Expenditure Type,Ref.Doc.1,Vendor Name,Expenditure Amount (exc VAT),Payment Date
Assurance,Assurance,Advertising,60058738,LONDON WEEKLY NEWSPAPERS LTD, 650.00 ,11/07/2016
Assurance,Assurance,Equipment and Materials Purcha,60057356,CITY FURNITURE HIRE LIMITED, 656.50 ,14/07/2016
Assurance,Assurance,Equipment and Materials Purcha,60058937,CITY FURNITURE HIRE LIMITED," 1,356.90 ",19/07/2016
Assurance,Assurance,Equipment and Materials Purcha,60058664,EASYCRATE LTD," 1,553.40 ",19/07/2016
Assurance,Assurance,Equipment and Materials Purcha,60058196,LONDON SITE SERVICES LTD," 11,580.30 ",27/07/2016
Assurance,Assurance,Fees and Charges,80004823,REDACTED PERSONAL DATA, 75.00 ,15/07/2016
Assurance,Assurance,General Office Expenses,40001676,OFFICE DEPOT UK LTD, 6.72 ,04/07/2016
Assurance,Assurance,General Office Expenses,40001703,OFFICE DEPOT UK LTD, 12.64 ,13/07/2016
Assurance,Assurance,General Office Expenses,40001715,OFFICE DEPOT UK LTD, 276.50 ,14/07/2016
Assurance,Assurance,Other Indirect Employee Expens,80004805,FINCHLEY JPS TRUST, 200.00 ,15/07/2016
Assurance,Assurance,Other Indirect Employee Expens,80004715,JEWISH CARE, 200.00 ,08/07/2016
Assurance,Assurance,Other Indirect Employee Expens,80004619,THE LONDON MAYORS' ASSOCIATION, 20.00 ,05/07/2016
Assurance,Assurance,Other Services,60057297,MIDDLESEX UNIVERSITY," 1,189.60 ",05/07/2016
Assurance,Assurance,Postage,60059764,ROYAL MAIL GROUP LIMITED, 0.90 ,26/07/2016
Assurance,Assurance,Postage,60059806,ROYAL MAIL GROUP LIMITED, 461.64 ,26/07/2016
Assurance,Assurance,Postage,60059833,ROYAL MAIL GROUP LIMITED," 1,883.03 ",29/07/2016
Assurance,Assurance,Printing-Contract,60059552,BARNARD &  WESTWOOD LTD, 87.56 ,28/07/2016
Assurance,Assurance,Printing-Contract,40001675,OFFICE DEPOT UK LTD, 124.48 ,04/07/2016
Assurance,Assurance,Printing-Contract,40001700,OFFICE DEPOT UK LTD, 45.84 ,08/07/2016
Assurance,Assurance,Printing-Contract,40001712,OFFICE DEPOT UK LTD, 87.26 ,14/07/2016
Assurance,Assurance,Professional Services,60058190,CAPITA CONFERENCES, 359.00 ,04/07/2016
Assurance,Assurance,Professional Services,60058124,ELECTORAL REFORM SERVICES," 60,769.35 ",04/07/2016
Assurance,Assurance,Professional Services,60058522,ELECTORAL REFORM SERVICES," 3,092.35 ",07/07/2016
Assurance,Assurance,Professional Services,60059779,ELECTORAL REFORM SERVICES, 385.41 ,28/07/2016
Assurance,Assurance,Professional Services,60059791,ELECTORAL REFORM SERVICES," 8,983.40 ",28/07/2016
Assurance,Assurance,Professional Services,60059799,ELECTORAL REFORM SERVICES," 3,519.33 ",28/07/2016
Assurance,Assurance,Professional Services,60059846,ELECTORAL REFORM SERVICES," 2,238.57 ",28/07/2016
Assurance,Assurance,Professional Services,60058722,PAKFLATT (UK) LIMITED, 692.00 ,28/07/2016
Assurance,Assurance,Professional Services,60058221,PRICEWATERHOUSE COOPERS," 7,425.00 ",14/07/2016
Assurance,Assurance,Professional Services,60058230,PRICEWATERHOUSE COOPERS," 9,075.00 ",21/07/2016
Assurance,Assurance,Professional Services,60058235,PRICEWATERHOUSE COOPERS," 17,235.00 ",04/07/2016
Assurance,Assurance,Professional Services,60058238,PRICEWATERHOUSE COOPERS," 4,000.00 ",04/07/2016
Assurance,Assurance,Professional Services,60058253,PRICEWATERHOUSE COOPERS," 7,425.00 ",26/07/2016
Assurance,Assurance,Professional Services,60058279,PRICEWATERHOUSE COOPERS," 1,980.00 ",04/07/2016
Assurance,Assurance,Professional Services,60058281,PRICEWATERHOUSE COOPERS," 5,000.00 ",04/07/2016
Assurance,Assurance,Professional Services,60058282,PRICEWATERHOUSE COOPERS," 13,200.00 ",07/07/2016
Assurance,Assurance,Professional Services,60058284,PRICEWATERHOUSE COOPERS," 8,000.00 ",04/07/2016
Assurance,Assurance,Professional Services,60058298,PRICEWATERHOUSE COOPERS," 9,900.00 ",04/07/2016
Assurance,Assurance,Professional Services,60058301,PRICEWATERHOUSE COOPERS," 10,486.00 ",04/07/2016
Assurance,Assurance,Professional Services,60059809,SHAW & SONS LIMITED," 1,981.80 ",26/07/2016
Assurance,Assurance,Publications,80004693,THE LONDON MAYORS' ASSOCIATION, 60.00 ,08/07/2016
Assurance,Assurance,Rents,60058161,AVENUE HOUSE SERVICES LTD, 660.00 ,04/07/2016
Assurance,Assurance,Rents,60058156,BARNET LAWN TENNIS CLUB, 750.00 ,01/07/2016
Assurance,Assurance,Rents,60058201,BARNET MULTICULTURAL COMMUNITY CENTRE, 500.00 ,04/07/2016
Assurance,Assurance,Rents,60058192,CENTRAL SQUARE MINYAN, 750.00 ,04/07/2016
Assurance,Assurance,Rents,60058165,CHURCH OF ST PETER-LE-POER, 550.00 ,04/07/2016
Assurance,Assurance,Rents,60058135,EDGWARE PCC-ST PETER'S, 995.00 ,07/07/2016
Assurance,Assurance,Rents,60058144,FREEHOLD COMMUNITY ASSOCIATION, 630.00 ,04/07/2016
Assurance,Assurance,Rents,60058171,HADLEY DISABLED SPORTS ASSOCIATION, 300.00 ,01/07/2016
Assurance,Assurance,Rents,60058211,HADLEY MEMORIAL HALL, 352.00 ,04/07/2016
Assurance,Assurance,Rents,60058188,HAMPSTEAD GARDEN SUBURB FELLOWSHIP, 600.00 ,04/07/2016
Assurance,Assurance,Rents,60058130,HINDU CULTURAL SOCIETY, 650.00 ,04/07/2016
Assurance,Assurance,Rents,60058647,HINDU CULTURAL SOCIETY, 650.00 ,08/07/2016
Assurance,Assurance,Rents,60058189,HOPE CORNER COMMUNITY CENTRE, 500.00 ,04/07/2016
Assurance,Assurance,Rents,60058203,LYONSDOWN HALL, 990.00 ,07/07/2016
Assurance,Assurance,Rents,60058158,NEW BARNET COMMUNITY ASSOCIATION, 240.00 ,04/07/2016
Assurance,Assurance,Rents,60058136,PARKFIELD ACADEMY, 40.00 ,11/07/2016
Assurance,Assurance,Rents,60058663,PARKFIELD ACADEMY, 40.00 ,11/07/2016
Assurance,Assurance,Rents,60058578,PORTAKABIN LTD," 13,260.00 ",19/07/2016
Assurance,Assurance,Rents,60059835,SHAW & SONS LIMITED," 1,981.80 ",26/07/2016
Assurance,Assurance,Rents,60058180,ST AGNES CHURCH, 750.00 ,04/07/2016
Assurance,Assurance,Rents,60058182,ST MARKS CHURCH BARNET VALE, 450.00 ,01/07/2016
Assurance,Assurance,Rents,60058127,ST MARY & ARCHANGEL MICHAEL CHURCH, 950.00 ,01/07/2016
Assurance,Assurance,Rents,60058155,ST PAUL'S FINCHLEY PCC, 618.50 ,04/07/2016
Assurance,Assurance,Rents,60058168,ST STEPHENS CHURCH HALL, 240.00 ,04/07/2016
Assurance,Assurance,Rents,60058175,THE ANNUNCIATION CHURCH, 600.00 ,05/07/2016
Assurance,Assurance,Rents,60058209,THE HYDE CHURCHES, 790.00 ,04/07/2016
Assurance,Assurance,Rents,60058160,THE HYDE EF ACADEMY, 150.00 ,04/07/2016
Assurance,Assurance,Rents,60058210,TRINITY (METHODIST/URC) CHURCH, 896.75 ,04/07/2016
Assurance,Assurance,Rents,60058148,TRINITY CHURCH CENTRE, 800.00 ,01/07/2016
Assurance,Assurance,Rents,60058219,TRINITY CHURCH MILL HILL, 624.30 ,04/07/2016
Assurance,Assurance,Software Licences & Support,60059841,XPRESS SOFTWARE SOLUTIONS LTD," 13,130.00 ",26/07/2016
Assurance,Assurance,Subscriptions,60058996,CIPFA BUSINESS LIMITED, 345.00 ,13/07/2016
Assurance,Assurance,Subscriptions,10013389,COMPANIES HOUSE, 4.00 ,27/07/2016
Assurance,Assurance,Subscriptions,10013390,COMPANIES HOUSE, 5.00 ,27/07/2016
Assurance,Assurance,Subscriptions,10013391,COMPANIES HOUSE, 5.00 ,27/07/2016
Assurance,Assurance,Subscriptions,10013392,COMPANIES HOUSE, 4.00 ,27/07/2016
Assurance,Assurance,Subscriptions,10013393,COMPANIES HOUSE, 4.00 ,27/07/2016
Assurance,Assurance,Subscriptions,60057486,NATIONAL CRIME AGENCY, 130.00 ,14/07/2016
Assurance,Assurance,Subscriptions,60056701,REDACTED PERSONAL DATA, 150.00 ,04/07/2016
Assurance,Assurance,Training,10013350,LLG LEGAL TRAINING, 215.00 ,04/07/2016
Assurance,Assurance,Training,60058063,LLG LEGAL TRAINING, 215.00 ,27/07/2016
Assurance,Assurance,Translation Exp / Interpret,60055687,PRIME PRODUCTION LTD, 62.00 ,04/07/2016
Assurance,Assurance,Translation Exp / Interpret,60055697,PRIME PRODUCTION LTD, 39.50 ,04/07/2016
Assurance,Assurance,Translation Exp / Interpret,60059448,PRIME PRODUCTION LTD, 39.50 ,28/07/2016
Assurance,Assurance,Translation Exp / Interpret,60056232,REDACTED PERSONAL DATA, 75.00 ,04/07/2016
Assurance,Assurance,Translation Exp / Interpret,60058265,REDACTED PERSONAL DATA, 530.00 ,28/07/2016
Central Expenses,Central Expenses,Insurance Claims,80004724,ACCIDENTS HAPPEN,"3,306.93",12/07/2016
Central Expenses,Central Expenses,Insurance Claims,80004723,ADMIRAL LAW LTD,900.36,12/07/2016
Central Expenses,Central Expenses,Insurance Claims,60059273,BROWNE JACOBSON SOLS.,"3,690.50",18/07/2016
Central Expenses,Central Expenses,Insurance Claims,60042681,CLYDE & CO LLP,"1,275.00",20/07/2016
Central Expenses,Central Expenses,Insurance Claims,60059116,CLYDE & CO LLP,"1,785.00",15/07/2016
Central Expenses,Central Expenses,Insurance Claims,60059118,CLYDE & CO LLP,285.00,15/07/2016
Central Expenses,Central Expenses,Insurance Claims,60059181,CLYDE & CO LLP,600.00,18/07/2016
Central Expenses,Central Expenses,Insurance Claims,80005042,DAC BEACHCROFT,"10,500.00",28/07/2016
Central Expenses,Central Expenses,Insurance Claims,80004716,DEVONSHIRES SOLS. LLP MAIN CLI,"9,000.00",12/07/2016
Central Expenses,Central Expenses,Insurance Claims,80004830,DWP COMPENSATION RECOVERY UNIT,647.00,15/07/2016
Central Expenses,Central Expenses,Insurance Claims,80004846,DWP COMPENSATION RECOVERY UNIT,"1,294.57",15/07/2016
Central Expenses,Central Expenses,Insurance Claims,80004899,DWP COMPENSATION RECOVERY UNIT,647.00,20/07/2016
Central Expenses,Central Expenses,Insurance Claims,80004917,DWP COMPENSATION RECOVERY UNIT,829.00,20/07/2016
Central Expenses,Central Expenses,Insurance Claims,80004920,DWP COMPENSATION RECOVERY UNIT,637.00,20/07/2016
Central Expenses,Central Expenses,Insurance Claims,80005116,ERSAN & CO SOLICITORS,405.00,29/07/2016
Central Expenses,Central Expenses,Insurance Claims,80004999,FARLEYS SOLICITORS,"5,675.14",25/07/2016
Central Expenses,Central Expenses,Insurance Claims,80004646,GALLAGHER BASSETT INTERNATIONAL,"1,447.00",08/07/2016
Central Expenses,Central Expenses,Insurance Claims,80004864,HODGE JONES & ALLEN,"1,000.00",18/07/2016
Central Expenses,Central Expenses,Insurance Claims,80004916,HODGE JONES & ALLEN LLP,"2,561.60",25/07/2016
Central Expenses,Central Expenses,Insurance Claims,80004897,K H INJURY LAWYERS,"1,413.00",29/07/2016
Central Expenses,Central Expenses,Insurance Claims,80004898,K H INJURY LAWYERS,"1,970.68",29/07/2016
Central Expenses,Central Expenses,Insurance Claims,80004454,KENNEDYS SOLICITORS,"6,000.00",04/07/2016
Central Expenses,Central Expenses,Insurance Claims,80004730,LVC LTD,116.23,12/07/2016
Central Expenses,Central Expenses,Insurance Claims,80004842,NELSONS LAW,"4,500.00",15/07/2016
Central Expenses,Central Expenses,Insurance Claims,80004847,PLEXUS LAW,"25,000.00",15/07/2016
Central Expenses,Central Expenses,Insurance Claims,80004733,PRINCIPIA LAW LTD,464.98,12/07/2016
Central Expenses,Central Expenses,Insurance Claims,80004474,RSA MOTABILITY,808.26,05/07/2016
Central Expenses,Central Expenses,Insurance Claims,80004468,SCOTT REES & CO. SOLICITORS,405.00,07/07/2016
Central Expenses,Central Expenses,Insurance Claims,80004728,SLATER GORDON SOLUTIONS,44.40,12/07/2016
Central Expenses,Central Expenses,Insurance Claims,80004473,THE RED HOUSE SURGERY,50.00,05/07/2016
Central Expenses,Central Expenses,Insurance Claims,80004600,THOMPSONS SOLICITORS,"1,732.00",05/07/2016
Central Expenses,Central Expenses,Insurance Claims,60059123,TREESUBS LTD,"1,935.00",14/07/2016
Central Expenses,Central Expenses,Insurance Claims,80004812,UK INSURANCE LTD,"1,122.65",15/07/2016
Central Expenses,Central Expenses,Insurance Claims,80003164,WILKIN CHAPMAN SOLICITORS,"6,500.00",14/07/2016
Central Expenses,Central Expenses,Other Establishments - Third P,EBX0125787,LEE VALLEY REGIONAL PARK AUTH.," 32,219.58 ",20/07/2016
Central Expenses,Central Expenses,Pensions To Retired Employees,10013387,LONDON PENSIONS FUND AUTHORITY," 2,765.60 ",27/07/2016
Central Expenses,Central Expenses,Pensions To Retired Employees,60059717,LONDON PENSIONS FUND AUTHORITY," 2,765.60 ",26/07/2016
Commercial,Births Deaths & Marriages,Cleaning and domestic material,60055972,CHURCHILL CONTRACT SERVICES, 624.26 ,04/07/2016
Commercial,Births Deaths & Marriages,Cleaning and domestic material,60058335,CHURCHILL CONTRACT SERVICES, 624.26 ,28/07/2016
Commercial,Customer Support Group,Books-CDs-Audio-Video,60058545,SM ELECTRICAL SERVICES, 375.00 ,07/07/2016
Commercial,Customer Support Group,Books-CDs-Audio-Video,60058563,SM ELECTRICAL SERVICES, 90.00 ,25/07/2016
Commercial,Customer Support Group,Books-CDs-Audio-Video,60058569,SM ELECTRICAL SERVICES, 225.00 ,07/07/2016
Commercial,Customer Support Group,Building Repairs & Maintenance,60058705,ABEL ALARM COMPANY LIMITED, 157.00 ,27/07/2016
Commercial,Customer Support Group,Building Repairs & Maintenance,60058721,ABEL ALARM COMPANY LIMITED, 125.00 ,27/07/2016
Commercial,Customer Support Group,Building Repairs & Maintenance,60058869,ABEL ALARM COMPANY LIMITED, 236.94 ,27/07/2016
Commercial,Customer Support Group,Building Repairs & Maintenance,60057064,AJS LTD, 101.92 ,18/07/2016
Commercial,Customer Support Group,Building Repairs & Maintenance,60057094,AJS LTD, 148.96 ,28/07/2016
Commercial,Customer Support Group,Building Repairs & Maintenance,60057919,ASBESTOS CONSULTANTS EUROPE LTD T/A ACE, 695.00 ,28/07/2016
Commercial,Customer Support Group,Building Repairs & Maintenance,60057930,ASBESTOS CONSULTANTS EUROPE LTD T/A ACE," 1,261.25 ",28/07/2016
Commercial,Customer Support Group,Building Repairs & Maintenance,60057950,ASBESTOS CONSULTANTS EUROPE LTD T/A ACE, 800.00 ,28/07/2016
Commercial,Customer Support Group,Building Repairs & Maintenance,60057851,DOORWAY-MAINTENANCE CO., 180.00 ,27/07/2016
Commercial,Customer Support Group,Building Repairs & Maintenance,60059375,DOORWAY-MAINTENANCE CO., 598.70 ,28/07/2016
Commercial,Customer Support Group,Building Repairs & Maintenance,60057268,EARLSWOOD INDUSTRIAL SVCS LTD," 1,188.00 ",07/07/2016
Commercial,Customer Support Group,Building Repairs & Maintenance,60057325,GRISTWOOD & TOM LTD," 2,775.00 ",28/07/2016
Commercial,Customer Support Group,Building Repairs & Maintenance,60057921,HERTEL (UK) LTD, 40.83 ,07/07/2016
Commercial,Customer Support Group,Building Repairs & Maintenance,60057953,HERTEL (UK) LTD, 38.79 ,04/07/2016
Commercial,Customer Support Group,Building Repairs & Maintenance,60058442,HERTEL (UK) LTD, 38.79 ,06/07/2016
Commercial,Customer Support Group,Building Repairs & Maintenance,60058448,HERTEL (UK) LTD, 38.79 ,06/07/2016
Commercial,Customer Support Group,Building Repairs & Maintenance,60058449,HERTEL (UK) LTD, 38.79 ,06/07/2016
Commercial,Customer Support Group,Building Repairs & Maintenance,60058456,HERTEL (UK) LTD, 38.79 ,07/07/2016
Commercial,Customer Support Group,Building Repairs & Maintenance,60058491,HERTEL (UK) LTD, 38.79 ,06/07/2016
Commercial,Customer Support Group,Building Repairs & Maintenance,60058525,HERTEL (UK) LTD, 38.79 ,07/07/2016
Commercial,Customer Support Group,Building Repairs & Maintenance,60058526,HERTEL (UK) LTD, 38.79 ,07/07/2016
Commercial,Customer Support Group,Building Repairs & Maintenance,60058528,HERTEL (UK) LTD, 38.79 ,07/07/2016
Commercial,Customer Support Group,Building Repairs & Maintenance,60058550,HERTEL (UK) LTD, 38.79 ,07/07/2016
Commercial,Customer Support Group,Building Repairs & Maintenance,60058556,HERTEL (UK) LTD, 38.79 ,07/07/2016
Commercial,Customer Support Group,Building Repairs & Maintenance,60058560,HERTEL (UK) LTD, 38.79 ,07/07/2016
Commercial,Customer Support Group,Building Repairs & Maintenance,60058566,HERTEL (UK) LTD, 38.79 ,07/07/2016
Commercial,Customer Support Group,Building Repairs & Maintenance,60058567,HERTEL (UK) LTD, 38.79 ,07/07/2016
Commercial,Customer Support Group,Building Repairs & Maintenance,60058575,HERTEL (UK) LTD, 38.79 ,07/07/2016
Commercial,Customer Support Group,Building Repairs & Maintenance,60058587,HERTEL (UK) LTD, 38.79 ,12/07/2016
Commercial,Customer Support Group,Building Repairs & Maintenance,60058595,HERTEL (UK) LTD, 38.79 ,07/07/2016
Commercial,Customer Support Group,Building Repairs & Maintenance,60058611,HERTEL (UK) LTD, 38.79 ,07/07/2016
Commercial,Customer Support Group,Building Repairs & Maintenance,60058744,HERTEL (UK) LTD, 38.79 ,11/07/2016
Commercial,Customer Support Group,Building Repairs & Maintenance,60058745,HERTEL (UK) LTD, 38.79 ,11/07/2016
Commercial,Customer Support Group,Building Repairs & Maintenance,60058752,HERTEL (UK) LTD, 38.79 ,11/07/2016
Commercial,Customer Support Group,Building Repairs & Maintenance,60058753,HERTEL (UK) LTD, 38.79 ,11/07/2016
Commercial,Customer Support Group,Building Repairs & Maintenance,60058756,HERTEL (UK) LTD, 38.79 ,11/07/2016
Commercial,Customer Support Group,Building Repairs & Maintenance,60058758,HERTEL (UK) LTD, 38.79 ,11/07/2016
Commercial,Customer Support Group,Building Repairs & Maintenance,60058771,HERTEL (UK) LTD, 38.79 ,11/07/2016
Commercial,Customer Support Group,Building Repairs & Maintenance,60058772,HERTEL (UK) LTD, 38.79 ,11/07/2016
Commercial,Customer Support Group,Building Repairs & Maintenance,60058792,HERTEL (UK) LTD, 38.79 ,11/07/2016
Commercial,Customer Support Group,Building Repairs & Maintenance,60058798,HERTEL (UK) LTD, 38.79 ,11/07/2016
Commercial,Customer Support Group,Building Repairs & Maintenance,60058802,HERTEL (UK) LTD, 38.79 ,11/07/2016
Commercial,Customer Support Group,Building Repairs & Maintenance,60058805,HERTEL (UK) LTD, 38.79 ,11/07/2016
Commercial,Customer Support Group,Building Repairs & Maintenance,60058822,HERTEL (UK) LTD, 38.79 ,11/07/2016
Commercial,Customer Support Group,Building Repairs & Maintenance,60058826,HERTEL (UK) LTD, 38.79 ,11/07/2016
Commercial,Customer Support Group,Building Repairs & Maintenance,60058852,HERTEL (UK) LTD, 38.79 ,12/07/2016
Commercial,Customer Support Group,Building Repairs & Maintenance,60058865,HERTEL (UK) LTD, 38.79 ,12/07/2016
Commercial,Customer Support Group,Building Repairs & Maintenance,60058874,HERTEL (UK) LTD, 38.79 ,12/07/2016
Commercial,Customer Support Group,Building Repairs & Maintenance,60058875,HERTEL (UK) LTD, 38.79 ,12/07/2016
Commercial,Customer Support Group,Building Repairs & Maintenance,60058879,HERTEL (UK) LTD, 38.79 ,12/07/2016
Commercial,Customer Support Group,Building Repairs & Maintenance,60058880,HERTEL (UK) LTD, 38.79 ,12/07/2016
Commercial,Customer Support Group,Building Repairs & Maintenance,60058884,HERTEL (UK) LTD, 38.79 ,12/07/2016
Commercial,Customer Support Group,Building Repairs & Maintenance,60058886,HERTEL (UK) LTD, 38.79 ,12/07/2016
Commercial,Customer Support Group,Building Repairs & Maintenance,60058891,HERTEL (UK) LTD, 38.79 ,12/07/2016
Commercial,Customer Support Group,Building Repairs & Maintenance,60058892,HERTEL (UK) LTD, 38.79 ,12/07/2016
Commercial,Customer Support Group,Building Repairs & Maintenance,60058893,HERTEL (UK) LTD, 38.79 ,12/07/2016
Commercial,Customer Support Group,Building Repairs & Maintenance,60058897,HERTEL (UK) LTD, 38.79 ,12/07/2016
Commercial,Customer Support Group,Building Repairs & Maintenance,60058900,HERTEL (UK) LTD, 38.79 ,12/07/2016
Commercial,Customer Support Group,Building Repairs & Maintenance,60058905,HERTEL (UK) LTD, 38.79 ,12/07/2016
Commercial,Customer Support Group,Building Repairs & Maintenance,60058910,HERTEL (UK) LTD, 38.79 ,12/07/2016
Commercial,Customer Support Group,Building Repairs & Maintenance,60058911,HERTEL (UK) LTD, 38.79 ,12/07/2016
Commercial,Customer Support Group,Building Repairs & Maintenance,60058912,HERTEL (UK) LTD, 38.79 ,12/07/2016
Commercial,Customer Support Group,Building Repairs & Maintenance,60058914,HERTEL (UK) LTD, 38.79 ,12/07/2016
Commercial,Customer Support Group,Building Repairs & Maintenance,60058919,HERTEL (UK) LTD, 38.79 ,12/07/2016
Commercial,Customer Support Group,Building Repairs & Maintenance,60058923,HERTEL (UK) LTD, 38.79 ,12/07/2016
Commercial,Customer Support Group,Building Repairs & Maintenance,60058925,HERTEL (UK) LTD, 38.79 ,12/07/2016
Commercial,Customer Support Group,Building Repairs & Maintenance,60058927,HERTEL (UK) LTD, 38.79 ,12/07/2016
Commercial,Customer Support Group,Building Repairs & Maintenance,60058930,HERTEL (UK) LTD, 38.79 ,12/07/2016
Commercial,Customer Support Group,Building Repairs & Maintenance,60058940,HERTEL (UK) LTD, 38.79 ,12/07/2016
Commercial,Customer Support Group,Building Repairs & Maintenance,60058944,HERTEL (UK) LTD, 38.79 ,12/07/2016
Commercial,Customer Support Group,Building Repairs & Maintenance,60058952,HERTEL (UK) LTD, 38.79 ,12/07/2016
Commercial,Customer Support Group,Building Repairs & Maintenance,60058957,HERTEL (UK) LTD, 38.79 ,12/07/2016
Commercial,Customer Support Group,Building Repairs & Maintenance,60058961,HERTEL (UK) LTD, 38.79 ,12/07/2016
Commercial,Customer Support Group,Building Repairs & Maintenance,60058966,HERTEL (UK) LTD, 38.79 ,12/07/2016
Commercial,Customer Support Group,Building Repairs & Maintenance,60058979,HERTEL (UK) LTD, 38.79 ,13/07/2016
Commercial,Customer Support Group,Building Repairs & Maintenance,60058984,HERTEL (UK) LTD, 38.79 ,13/07/2016
Commercial,Customer Support Group,Building Repairs & Maintenance,60058999,HERTEL (UK) LTD, 38.79 ,13/07/2016
Commercial,Customer Support Group,Building Repairs & Maintenance,60059003,HERTEL (UK) LTD, 38.79 ,13/07/2016
Commercial,Customer Support Group,Building Repairs & Maintenance,60059006,HERTEL (UK) LTD, 38.79 ,13/07/2016
Commercial,Customer Support Group,Building Repairs & Maintenance,60059030,HERTEL (UK) LTD, 38.79 ,13/07/2016
Commercial,Customer Support Group,Building Repairs & Maintenance,60059035,HERTEL (UK) LTD, 38.79 ,13/07/2016
Commercial,Customer Support Group,Building Repairs & Maintenance,60059052,HERTEL (UK) LTD, 38.79 ,13/07/2016
Commercial,Customer Support Group,Building Repairs & Maintenance,60059062,HERTEL (UK) LTD, 38.79 ,13/07/2016
Commercial,Customer Support Group,Building Repairs & Maintenance,60059130,HERTEL (UK) LTD, 38.79 ,15/07/2016
Commercial,Customer Support Group,Building Repairs & Maintenance,60059132,HERTEL (UK) LTD, 38.79 ,15/07/2016
Commercial,Customer Support Group,Building Repairs & Maintenance,60059134,HERTEL (UK) LTD, 38.79 ,15/07/2016
Commercial,Customer Support Group,Building Repairs & Maintenance,60059149,HERTEL (UK) LTD, 38.79 ,15/07/2016
Commercial,Customer Support Group,Building Repairs & Maintenance,60059150,HERTEL (UK) LTD, 38.79 ,18/07/2016
Commercial,Customer Support Group,Building Repairs & Maintenance,60059156,HERTEL (UK) LTD, 38.79 ,15/07/2016
Commercial,Customer Support Group,Building Repairs & Maintenance,60059165,HERTEL (UK) LTD, 38.79 ,15/07/2016
Commercial,Customer Support Group,Building Repairs & Maintenance,60059166,HERTEL (UK) LTD, 38.79 ,15/07/2016
Commercial,Customer Support Group,Building Repairs & Maintenance,60059174,HERTEL (UK) LTD, 38.79 ,15/07/2016
Commercial,Customer Support Group,Building Repairs & Maintenance,60059177,HERTEL (UK) LTD, 38.79 ,15/07/2016
Commercial,Customer Support Group,Building Repairs & Maintenance,60059185,HERTEL (UK) LTD, 38.79 ,15/07/2016
Commercial,Customer Support Group,Building Repairs & Maintenance,60059187,HERTEL (UK) LTD, 38.79 ,15/07/2016
Commercial,Customer Support Group,Building Repairs & Maintenance,60059194,HERTEL (UK) LTD, 38.79 ,15/07/2016
Commercial,Customer Support Group,Building Repairs & Maintenance,60059196,HERTEL (UK) LTD, 38.79 ,15/07/2016
Commercial,Customer Support Group,Building Repairs & Maintenance,60059198,HERTEL (UK) LTD, 38.79 ,15/07/2016
Commercial,Customer Support Group,Building Repairs & Maintenance,60059203,HERTEL (UK) LTD, 38.79 ,15/07/2016
Commercial,Customer Support Group,Building Repairs & Maintenance,60059210,HERTEL (UK) LTD, 38.79 ,15/07/2016
Commercial,Customer Support Group,Building Repairs & Maintenance,60059216,HERTEL (UK) LTD, 38.79 ,15/07/2016
Commercial,Customer Support Group,Building Repairs & Maintenance,60059224,HERTEL (UK) LTD, 38.79 ,15/07/2016
Commercial,Customer Support Group,Building Repairs & Maintenance,60059231,HERTEL (UK) LTD, 150.00 ,18/07/2016
Commercial,Customer Support Group,Building Repairs & Maintenance,60059239,HERTEL (UK) LTD, 250.00 ,18/07/2016
Commercial,Customer Support Group,Building Repairs & Maintenance,60059244,HERTEL (UK) LTD, 122.50 ,18/07/2016
Commercial,Customer Support Group,Building Repairs & Maintenance,60059249,HERTEL (UK) LTD, 277.76 ,18/07/2016
Commercial,Customer Support Group,Building Repairs & Maintenance,60059252,HERTEL (UK) LTD, 210.00 ,18/07/2016
Commercial,Customer Support Group,Building Repairs & Maintenance,60059254,HERTEL (UK) LTD, 210.00 ,18/07/2016
Commercial,Customer Support Group,Building Repairs & Maintenance,60059276,HERTEL (UK) LTD, 468.00 ,18/07/2016
Commercial,Customer Support Group,Building Repairs & Maintenance,60059277,HERTEL (UK) LTD, 455.00 ,18/07/2016
Commercial,Customer Support Group,Building Repairs & Maintenance,60059283,HERTEL (UK) LTD, 45.00 ,18/07/2016
Commercial,Customer Support Group,Building Repairs & Maintenance,60059290,HERTEL (UK) LTD, 210.00 ,18/07/2016
Commercial,Customer Support Group,Building Repairs & Maintenance,60059292,HERTEL (UK) LTD, 210.00 ,18/07/2016
Commercial,Customer Support Group,Building Repairs & Maintenance,60059294,HERTEL (UK) LTD, 210.00 ,18/07/2016
Commercial,Customer Support Group,Building Repairs & Maintenance,60059295,HERTEL (UK) LTD, 122.50 ,18/07/2016
Commercial,Customer Support Group,Building Repairs & Maintenance,60059301,HERTEL (UK) LTD, 704.20 ,18/07/2016
Commercial,Customer Support Group,Building Repairs & Maintenance,60059302,HERTEL (UK) LTD, 122.50 ,18/07/2016
Commercial,Customer Support Group,Building Repairs & Maintenance,60059308,HERTEL (UK) LTD, 122.50 ,18/07/2016
Commercial,Customer Support Group,Building Repairs & Maintenance,60059317,HERTEL (UK) LTD," 1,807.00 ",18/07/2016
Commercial,Customer Support Group,Building Repairs & Maintenance,60059322,HERTEL (UK) LTD, 255.00 ,18/07/2016
Commercial,Customer Support Group,Building Repairs & Maintenance,60059326,HERTEL (UK) LTD, 122.50 ,18/07/2016
Commercial,Customer Support Group,Building Repairs & Maintenance,60059364,HERTEL (UK) LTD, 473.00 ,19/07/2016
Commercial,Customer Support Group,Building Repairs & Maintenance,60058204,LEE SECURITY LONDON LIMITED, 139.46 ,28/07/2016
Commercial,Customer Support Group,Building Repairs & Maintenance,60058535,LEE SECURITY LONDON LIMITED, 82.00 ,14/07/2016
Commercial,Customer Support Group,Building Repairs & Maintenance,60058553,LEE SECURITY LONDON LIMITED, 82.00 ,26/07/2016
Commercial,Customer Support Group,Building Repairs & Maintenance,60058559,LEE SECURITY LONDON LIMITED, 57.20 ,13/07/2016
Commercial,Customer Support Group,Building Repairs & Maintenance,60058592,LEE SECURITY LONDON LIMITED, 45.00 ,13/07/2016
Commercial,Customer Support Group,Building Repairs & Maintenance,60056918,LIFT & ENGINEERING SERVICES LTD, 70.66 ,28/07/2016
Commercial,Customer Support Group,Building Repairs & Maintenance,60056939,LIFT & ENGINEERING SERVICES LTD, 94.21 ,28/07/2016
Commercial,Customer Support Group,Building Repairs & Maintenance,60056943,LIFT & ENGINEERING SERVICES LTD, 94.21 ,28/07/2016
Commercial,Customer Support Group,Building Repairs & Maintenance,60056952,LIFT & ENGINEERING SERVICES LTD," 1,738.00 ",07/07/2016
Commercial,Customer Support Group,Building Repairs & Maintenance,60056958,LIFT & ENGINEERING SERVICES LTD, 94.21 ,28/07/2016
Commercial,Customer Support Group,Building Repairs & Maintenance,60056971,LIFT & ENGINEERING SERVICES LTD, 94.21 ,28/07/2016
Commercial,Customer Support Group,Building Repairs & Maintenance,60056990,LIFT & ENGINEERING SERVICES LTD, 94.21 ,28/07/2016
Commercial,Customer Support Group,Building Repairs & Maintenance,60056999,LIFT & ENGINEERING SERVICES LTD, 94.21 ,28/07/2016
Commercial,Customer Support Group,Building Repairs & Maintenance,60057013,LIFT & ENGINEERING SERVICES LTD, 70.66 ,28/07/2016
Commercial,Customer Support Group,Building Repairs & Maintenance,60057029,LIFT & ENGINEERING SERVICES LTD, 70.66 ,28/07/2016
Commercial,Customer Support Group,Building Repairs & Maintenance,60057223,LIFT & ENGINEERING SERVICES LTD, 222.06 ,13/07/2016
Commercial,Customer Support Group,Building Repairs & Maintenance,60057251,LIFT & ENGINEERING SERVICES LTD, 145.00 ,12/07/2016
Commercial,Customer Support Group,Building Repairs & Maintenance,60057259,LIFT & ENGINEERING SERVICES LTD, 222.06 ,13/07/2016
Commercial,Customer Support Group,Building Repairs & Maintenance,60057261,LIFT & ENGINEERING SERVICES LTD, 222.06 ,28/07/2016
Commercial,Customer Support Group,Building Repairs & Maintenance,60057277,LIFT & ENGINEERING SERVICES LTD, 222.06 ,13/07/2016
Commercial,Customer Support Group,Building Repairs & Maintenance,60057285,LIFT & ENGINEERING SERVICES LTD, 222.06 ,28/07/2016
Commercial,Customer Support Group,Building Repairs & Maintenance,60057891,LIFT & ENGINEERING SERVICES LTD, 116.00 ,28/07/2016
Commercial,Customer Support Group,Building Repairs & Maintenance,60058632,LIFT & ENGINEERING SERVICES LTD, 145.00 ,28/07/2016
Commercial,Customer Support Group,Building Repairs & Maintenance,60058675,LIFT & ENGINEERING SERVICES LTD, 47.10 ,28/07/2016
Commercial,Customer Support Group,Building Repairs & Maintenance,60058678,LIFT & ENGINEERING SERVICES LTD, 222.06 ,28/07/2016
Commercial,Customer Support Group,Building Repairs & Maintenance,60058732,LIFT & ENGINEERING SERVICES LTD, 47.10 ,28/07/2016
Commercial,Customer Support Group,Building Repairs & Maintenance,60032034,OAKRAY LIMITED, 56.00 ,12/07/2016
Commercial,Customer Support Group,Building Repairs & Maintenance,60032112,OAKRAY LIMITED, 72.00 ,08/07/2016
Commercial,Customer Support Group,Building Repairs & Maintenance,60043500,OAKRAY LIMITED, 64.00 ,08/07/2016
Commercial,Customer Support Group,Building Repairs & Maintenance,60055530,OAKRAY LIMITED, 194.46 ,28/07/2016
Commercial,Customer Support Group,Building Repairs & Maintenance,60055098,ONLITECH," 4,380.00 ",05/07/2016
Commercial,Customer Support Group,Building Repairs & Maintenance,60057862,REDHILL ANALYSTS LTD, 957.00 ,27/07/2016
Commercial,Customer Support Group,Building Repairs & Maintenance,60056916,RGE SERVICES, 51.08 ,04/07/2016
Commercial,Customer Support Group,Building Repairs & Maintenance,60056927,RGE SERVICES, 62.00 ,04/07/2016
Commercial,Customer Support Group,Building Repairs & Maintenance,60056932,RGE SERVICES, 65.79 ,04/07/2016
Commercial,Customer Support Group,Building Repairs & Maintenance,60056933,RGE SERVICES, 342.18 ,04/07/2016
Commercial,Customer Support Group,Building Repairs & Maintenance,60056941,RGE SERVICES, 62.00 ,04/07/2016
Commercial,Customer Support Group,Building Repairs & Maintenance,60056963,RGE SERVICES, 93.00 ,04/07/2016
Commercial,Customer Support Group,Building Repairs & Maintenance,60056966,RGE SERVICES, 35.60 ,04/07/2016
Commercial,Customer Support Group,Building Repairs & Maintenance,60056973,RGE SERVICES, 563.15 ,04/07/2016
Commercial,Customer Support Group,Building Repairs & Maintenance,60056979,RGE SERVICES, 161.02 ,04/07/2016
Commercial,Customer Support Group,Building Repairs & Maintenance,60056981,RGE SERVICES, 62.00 ,04/07/2016
Commercial,Customer Support Group,Building Repairs & Maintenance,60056982,RGE SERVICES, 150.51 ,04/07/2016
Commercial,Customer Support Group,Building Repairs & Maintenance,60057001,RGE SERVICES, 41.78 ,04/07/2016
Commercial,Customer Support Group,Building Repairs & Maintenance,60057009,RGE SERVICES, 62.00 ,04/07/2016
Commercial,Customer Support Group,Building Repairs & Maintenance,60057027,RGE SERVICES, 36.70 ,04/07/2016
Commercial,Customer Support Group,Building Repairs & Maintenance,60057045,RGE SERVICES, 62.00 ,04/07/2016
Commercial,Customer Support Group,Building Repairs & Maintenance,60057136,RGE SERVICES, 62.00 ,04/07/2016
Commercial,Customer Support Group,Building Repairs & Maintenance,60057400,RGE SERVICES," 1,039.51 ",07/07/2016
Commercial,Customer Support Group,Building Repairs & Maintenance,60057402,RGE SERVICES, 215.70 ,07/07/2016
Commercial,Customer Support Group,Building Repairs & Maintenance,60057419,RGE SERVICES, 62.00 ,07/07/2016
Commercial,Customer Support Group,Building Repairs & Maintenance,60057420,RGE SERVICES, 62.00 ,07/07/2016
Commercial,Customer Support Group,Building Repairs & Maintenance,60057436,RGE SERVICES, 62.00 ,07/07/2016
Commercial,Customer Support Group,Building Repairs & Maintenance,60057635,RGE SERVICES, 450.00 ,27/07/2016
Commercial,Customer Support Group,Building Repairs & Maintenance,60057689,RGE SERVICES, 51.70 ,28/07/2016
Commercial,Customer Support Group,Building Repairs & Maintenance,60057703,RGE SERVICES, 111.91 ,28/07/2016
Commercial,Customer Support Group,Building Repairs & Maintenance,60057824,RGE SERVICES, 148.92 ,21/07/2016
Commercial,Customer Support Group,Building Repairs & Maintenance,60057830,RGE SERVICES, 126.35 ,21/07/2016
Commercial,Customer Support Group,Building Repairs & Maintenance,60057843,RGE SERVICES, 175.99 ,21/07/2016
Commercial,Customer Support Group,Building Repairs & Maintenance,60057868,RGE SERVICES, 76.72 ,21/07/2016
Commercial,Customer Support Group,Building Repairs & Maintenance,60057885,RGE SERVICES, 148.92 ,21/07/2016
Commercial,Customer Support Group,Building Repairs & Maintenance,60057894,RGE SERVICES, 126.35 ,21/07/2016
Commercial,Customer Support Group,Building Repairs & Maintenance,60057895,RGE SERVICES, 103.79 ,21/07/2016
Commercial,Customer Support Group,Building Repairs & Maintenance,60059232,RGE SERVICES, 939.41 ,18/07/2016
Commercial,Customer Support Group,Building Repairs & Maintenance,60059242,RGE SERVICES, 62.00 ,18/07/2016
Commercial,Customer Support Group,Building Repairs & Maintenance,60059245,RGE SERVICES, 150.00 ,21/07/2016
Commercial,Customer Support Group,Building Repairs & Maintenance,60059258,RGE SERVICES, 347.10 ,18/07/2016
Commercial,Customer Support Group,Building Repairs & Maintenance,60059264,RGE SERVICES, 99.28 ,21/07/2016
Commercial,Customer Support Group,Building Repairs & Maintenance,60059272,RGE SERVICES, 82.33 ,18/07/2016
Commercial,Customer Support Group,Building Repairs & Maintenance,60059275,RGE SERVICES, 386.83 ,18/07/2016
Commercial,Customer Support Group,Building Repairs & Maintenance,60059281,RGE SERVICES, 209.81 ,18/07/2016
Commercial,Customer Support Group,Building Repairs & Maintenance,60059289,RGE SERVICES, 62.00 ,18/07/2016
Commercial,Customer Support Group,Building Repairs & Maintenance,60059299,RGE SERVICES, 62.00 ,18/07/2016
Commercial,Customer Support Group,Building Repairs & Maintenance,60059306,RGE SERVICES, 79.40 ,18/07/2016
Commercial,Customer Support Group,Building Repairs & Maintenance,60059318,RGE SERVICES, 67.69 ,21/07/2016
Commercial,Customer Support Group,Building Repairs & Maintenance,60059321,RGE SERVICES, 245.14 ,18/07/2016
Commercial,Customer Support Group,Building Repairs & Maintenance,60059327,RGE SERVICES, 62.00 ,18/07/2016
Commercial,Customer Support Group,Building Repairs & Maintenance,60059343,RGE SERVICES, 121.84 ,21/07/2016
Commercial,Customer Support Group,Building Repairs & Maintenance,60059347,RGE SERVICES, 126.36 ,21/07/2016
Commercial,Customer Support Group,Building Repairs & Maintenance,60059352,RGE SERVICES, 103.79 ,21/07/2016
Commercial,Customer Support Group,Building Repairs & Maintenance,60059358,RGE SERVICES, 76.72 ,21/07/2016
Commercial,Customer Support Group,Building Repairs & Maintenance,60059361,RGE SERVICES, 67.69 ,21/07/2016
Commercial,Customer Support Group,Building Repairs & Maintenance,60059362,RGE SERVICES, 260.02 ,21/07/2016
Commercial,Customer Support Group,Building Repairs & Maintenance,60059372,RGE SERVICES, 49.64 ,21/07/2016
Commercial,Customer Support Group,Building Repairs & Maintenance,60059392,RGE SERVICES, 148.92 ,21/07/2016
Commercial,Customer Support Group,Building Repairs & Maintenance,60059524,RGE SERVICES, 205.87 ,21/07/2016
Commercial,Customer Support Group,Building Repairs & Maintenance,60059525,RGE SERVICES, 298.73 ,21/07/2016
Commercial,Customer Support Group,Building Repairs & Maintenance,60059529,RGE SERVICES, 126.35 ,21/07/2016
Commercial,Customer Support Group,Building Repairs & Maintenance,60059541,RGE SERVICES," 5,238.58 ",29/07/2016
Commercial,Customer Support Group,Building Repairs & Maintenance,60059557,RGE SERVICES, 76.72 ,21/07/2016
Commercial,Customer Support Group,Building Repairs & Maintenance,60059568,RGE SERVICES, 639.93 ,21/07/2016
Commercial,Customer Support Group,Building Repairs & Maintenance,60059582,RGE SERVICES, 49.64 ,21/07/2016
Commercial,Customer Support Group,Building Repairs & Maintenance,60059591,RGE SERVICES, 27.08 ,21/07/2016
Commercial,Customer Support Group,Building Repairs & Maintenance,60059597,RGE SERVICES, 117.00 ,21/07/2016
Commercial,Customer Support Group,Building Repairs & Maintenance,60059600,RGE SERVICES, 103.79 ,21/07/2016
Commercial,Customer Support Group,Building Repairs & Maintenance,60059603,RGE SERVICES, 466.37 ,21/07/2016
Commercial,Customer Support Group,Building Repairs & Maintenance,60059616,RGE SERVICES, 257.19 ,21/07/2016
Commercial,Customer Support Group,Building Repairs & Maintenance,60059636,RGE SERVICES, 545.20 ,21/07/2016
Commercial,Customer Support Group,Building Repairs & Maintenance,60046986,S W BRUCE & CO LTD, 323.00 ,26/07/2016
Commercial,Customer Support Group,Building Repairs & Maintenance,60056484,S W BRUCE & CO LTD, 39.13 ,28/07/2016
Commercial,Customer Support Group,Building Repairs & Maintenance,60056486,S W BRUCE & CO LTD, 26.28 ,28/07/2016
Commercial,Customer Support Group,Building Repairs & Maintenance,60056506,S W BRUCE & CO LTD, 28.50 ,28/07/2016
Commercial,Customer Support Group,Building Repairs & Maintenance,60056521,S W BRUCE & CO LTD, 203.70 ,28/07/2016
Commercial,Customer Support Group,Building Repairs & Maintenance,60056531,S W BRUCE & CO LTD, 80.51 ,27/07/2016
Commercial,Customer Support Group,Building Repairs & Maintenance,60056536,S W BRUCE & CO LTD, 479.70 ,05/07/2016
Commercial,Customer Support Group,Building Repairs & Maintenance,60056542,S W BRUCE & CO LTD, 57.00 ,27/07/2016
Commercial,Customer Support Group,Building Repairs & Maintenance,60056562,S W BRUCE & CO LTD, 138.21 ,05/07/2016
Commercial,Customer Support Group,Building Repairs & Maintenance,60056563,S W BRUCE & CO LTD, 147.95 ,05/07/2016
Commercial,Customer Support Group,Building Repairs & Maintenance,60056574,S W BRUCE & CO LTD, 63.49 ,27/07/2016
Commercial,Customer Support Group,Building Repairs & Maintenance,60056575,S W BRUCE & CO LTD, 42.88 ,27/07/2016
Commercial,Customer Support Group,Building Repairs & Maintenance,60056583,S W BRUCE & CO LTD, 57.00 ,27/07/2016
Commercial,Customer Support Group,Building Repairs & Maintenance,60056585,S W BRUCE & CO LTD, 53.43 ,27/07/2016
Commercial,Customer Support Group,Building Repairs & Maintenance,60056590,S W BRUCE & CO LTD, 65.62 ,05/07/2016
Commercial,Customer Support Group,Building Repairs & Maintenance,60056603,S W BRUCE & CO LTD, 135.25 ,05/07/2016
Commercial,Customer Support Group,Building Repairs & Maintenance,60056606,S W BRUCE & CO LTD, 33.89 ,27/07/2016
Commercial,Customer Support Group,Building Repairs & Maintenance,60056919,S W BRUCE & CO LTD, 500.00 ,07/07/2016
Commercial,Customer Support Group,Building Repairs & Maintenance,60056928,S W BRUCE & CO LTD," 1,487.66 ",07/07/2016
Commercial,Customer Support Group,Building Repairs & Maintenance,60056944,S W BRUCE & CO LTD, 171.00 ,28/07/2016
Commercial,Customer Support Group,Building Repairs & Maintenance,60056946,S W BRUCE & CO LTD," 1,105.00 ",07/07/2016
Commercial,Customer Support Group,Building Repairs & Maintenance,60056975,S W BRUCE & CO LTD, 78.17 ,07/07/2016
Commercial,Customer Support Group,Building Repairs & Maintenance,60056977,S W BRUCE & CO LTD, 241.15 ,28/07/2016
Commercial,Customer Support Group,Building Repairs & Maintenance,60056980,S W BRUCE & CO LTD, 78.17 ,07/07/2016
Commercial,Customer Support Group,Building Repairs & Maintenance,60056995,S W BRUCE & CO LTD," 2,692.00 ",28/07/2016
Commercial,Customer Support Group,Building Repairs & Maintenance,60056996,S W BRUCE & CO LTD, 171.00 ,07/07/2016
Commercial,Customer Support Group,Building Repairs & Maintenance,60057008,S W BRUCE & CO LTD, 756.00 ,07/07/2016
Commercial,Customer Support Group,Building Repairs & Maintenance,60057033,S W BRUCE & CO LTD, 318.76 ,07/07/2016
Commercial,Customer Support Group,Building Repairs & Maintenance,60057039,S W BRUCE & CO LTD, 25.00 ,07/07/2016
Commercial,Customer Support Group,Building Repairs & Maintenance,60057051,S W BRUCE & CO LTD, 44.40 ,28/07/2016
Commercial,Customer Support Group,Building Repairs & Maintenance,60057059,S W BRUCE & CO LTD, 56.35 ,28/07/2016
Commercial,Customer Support Group,Building Repairs & Maintenance,60057067,S W BRUCE & CO LTD, 40.26 ,12/07/2016
Commercial,Customer Support Group,Building Repairs & Maintenance,60057073,S W BRUCE & CO LTD, 40.26 ,12/07/2016
Commercial,Customer Support Group,Building Repairs & Maintenance,60057077,S W BRUCE & CO LTD, 28.50 ,28/07/2016
Commercial,Customer Support Group,Building Repairs & Maintenance,60057079,S W BRUCE & CO LTD, 155.20 ,12/07/2016
Commercial,Customer Support Group,Building Repairs & Maintenance,60057080,S W BRUCE & CO LTD, 57.00 ,12/07/2016
Commercial,Customer Support Group,Building Repairs & Maintenance,60057097,S W BRUCE & CO LTD, 25.00 ,12/07/2016
Commercial,Customer Support Group,Building Repairs & Maintenance,60057103,S W BRUCE & CO LTD, 25.00 ,28/07/2016
Commercial,Customer Support Group,Building Repairs & Maintenance,60057107,S W BRUCE & CO LTD, 42.75 ,28/07/2016
Commercial,Customer Support Group,Building Repairs & Maintenance,60057112,S W BRUCE & CO LTD, 61.17 ,12/07/2016
Commercial,Customer Support Group,Building Repairs & Maintenance,60057114,S W BRUCE & CO LTD, 28.50 ,12/07/2016
Commercial,Customer Support Group,Building Repairs & Maintenance,60057289,S W BRUCE & CO LTD, 57.00 ,14/07/2016
Commercial,Customer Support Group,Building Repairs & Maintenance,60057293,S W BRUCE & CO LTD, 28.50 ,28/07/2016
Commercial,Customer Support Group,Building Repairs & Maintenance,60057307,S W BRUCE & CO LTD, 73.25 ,14/07/2016
Commercial,Customer Support Group,Building Repairs & Maintenance,60057315,S W BRUCE & CO LTD, 41.23 ,28/07/2016
Commercial,Customer Support Group,Building Repairs & Maintenance,60057327,S W BRUCE & CO LTD, 378.95 ,28/07/2016
Commercial,Customer Support Group,Building Repairs & Maintenance,60057335,S W BRUCE & CO LTD, 28.50 ,14/07/2016
Commercial,Customer Support Group,Building Repairs & Maintenance,60057339,S W BRUCE & CO LTD, 147.95 ,14/07/2016
Commercial,Customer Support Group,Building Repairs & Maintenance,60057350,S W BRUCE & CO LTD, 101.72 ,14/07/2016
Commercial,Customer Support Group,Building Repairs & Maintenance,60057355,S W BRUCE & CO LTD, 57.00 ,28/07/2016
Commercial,Customer Support Group,Building Repairs & Maintenance,60057364,S W BRUCE & CO LTD," 3,894.80 ",28/07/2016
Commercial,Customer Support Group,Building Repairs & Maintenance,60057367,S W BRUCE & CO LTD, 128.25 ,28/07/2016
Commercial,Customer Support Group,Building Repairs & Maintenance,60057369,S W BRUCE & CO LTD, 147.95 ,28/07/2016
Commercial,Customer Support Group,Building Repairs & Maintenance,60057375,S W BRUCE & CO LTD, 32.00 ,28/07/2016
Commercial,Customer Support Group,Building Repairs & Maintenance,60057388,S W BRUCE & CO LTD, 37.41 ,28/07/2016
Commercial,Customer Support Group,Building Repairs & Maintenance,60057414,S W BRUCE & CO LTD, 28.50 ,14/07/2016
Commercial,Customer Support Group,Building Repairs & Maintenance,60057425,S W BRUCE & CO LTD, 118.49 ,14/07/2016
Commercial,Customer Support Group,Building Repairs & Maintenance,60057554,S W BRUCE & CO LTD, 144.24 ,20/07/2016
Commercial,Customer Support Group,Building Repairs & Maintenance,60057558,S W BRUCE & CO LTD, 238.37 ,28/07/2016
Commercial,Customer Support Group,Building Repairs & Maintenance,60057559,S W BRUCE & CO LTD, 280.92 ,29/07/2016
Commercial,Customer Support Group,Building Repairs & Maintenance,60057563,S W BRUCE & CO LTD, 221.93 ,21/07/2016
Commercial,Customer Support Group,Building Repairs & Maintenance,60057565,S W BRUCE & CO LTD, 64.00 ,28/07/2016
Commercial,Customer Support Group,Building Repairs & Maintenance,60057576,S W BRUCE & CO LTD, 95.67 ,21/07/2016
Commercial,Customer Support Group,Building Repairs & Maintenance,60057577,S W BRUCE & CO LTD, 139.10 ,28/07/2016
Commercial,Customer Support Group,Building Repairs & Maintenance,60057578,S W BRUCE & CO LTD, 148.99 ,25/07/2016
Commercial,Customer Support Group,Building Repairs & Maintenance,60057580,S W BRUCE & CO LTD, 230.00 ,25/07/2016
Commercial,Customer Support Group,Building Repairs & Maintenance,60057583,S W BRUCE & CO LTD, 273.58 ,28/07/2016
Commercial,Customer Support Group,Building Repairs & Maintenance,60057586,S W BRUCE & CO LTD, 57.34 ,25/07/2016
Commercial,Customer Support Group,Building Repairs & Maintenance,60057587,S W BRUCE & CO LTD, 28.50 ,25/07/2016
Commercial,Customer Support Group,Building Repairs & Maintenance,60057591,S W BRUCE & CO LTD, 126.00 ,28/07/2016
Commercial,Customer Support Group,Building Repairs & Maintenance,60057596,S W BRUCE & CO LTD, 246.89 ,28/07/2016
Commercial,Customer Support Group,Building Repairs & Maintenance,60057597,S W BRUCE & CO LTD, 162.04 ,25/07/2016
Commercial,Customer Support Group,Building Repairs & Maintenance,60057602,S W BRUCE & CO LTD, 95.67 ,28/07/2016
Commercial,Customer Support Group,Building Repairs & Maintenance,60057603,S W BRUCE & CO LTD, 148.99 ,25/07/2016
Commercial,Customer Support Group,Building Repairs & Maintenance,60057606,S W BRUCE & CO LTD, 73.87 ,25/07/2016
Commercial,Customer Support Group,Building Repairs & Maintenance,60057608,S W BRUCE & CO LTD, 184.00 ,25/07/2016
Commercial,Customer Support Group,Building Repairs & Maintenance,60057611,S W BRUCE & CO LTD, 66.56 ,25/07/2016
Commercial,Customer Support Group,Building Repairs & Maintenance,60057615,S W BRUCE & CO LTD, 57.00 ,27/07/2016
Commercial,Customer Support Group,Building Repairs & Maintenance,60057616,S W BRUCE & CO LTD, 57.00 ,25/07/2016
Commercial,Customer Support Group,Building Repairs & Maintenance,60057619,S W BRUCE & CO LTD," 1,933.79 ",25/07/2016
Commercial,Customer Support Group,Building Repairs & Maintenance,60057620,S W BRUCE & CO LTD, 31.57 ,27/07/2016
Commercial,Customer Support Group,Building Repairs & Maintenance,60057621,S W BRUCE & CO LTD, 162.50 ,27/07/2016
Commercial,Customer Support Group,Building Repairs & Maintenance,60057622,S W BRUCE & CO LTD, 223.48 ,27/07/2016
Commercial,Customer Support Group,Building Repairs & Maintenance,60057626,S W BRUCE & CO LTD, 147.10 ,27/07/2016
Commercial,Customer Support Group,Building Repairs & Maintenance,60057627,S W BRUCE & CO LTD, 177.10 ,28/07/2016
Commercial,Customer Support Group,Building Repairs & Maintenance,60057628,S W BRUCE & CO LTD, 73.13 ,27/07/2016
Commercial,Customer Support Group,Building Repairs & Maintenance,60057638,S W BRUCE & CO LTD," 1,819.14 ",27/07/2016
Commercial,Customer Support Group,Building Repairs & Maintenance,60057641,S W BRUCE & CO LTD, 636.35 ,27/07/2016
Commercial,Customer Support Group,Building Repairs & Maintenance,60057650,S W BRUCE & CO LTD, 115.00 ,27/07/2016
Commercial,Customer Support Group,Building Repairs & Maintenance,60057655,S W BRUCE & CO LTD, 38.91 ,27/07/2016
Commercial,Customer Support Group,Building Repairs & Maintenance,60057664,S W BRUCE & CO LTD, 108.00 ,28/07/2016
Commercial,Customer Support Group,Building Repairs & Maintenance,60057667,S W BRUCE & CO LTD, 85.08 ,27/07/2016
Commercial,Customer Support Group,Building Repairs & Maintenance,60057670,S W BRUCE & CO LTD, 251.28 ,28/07/2016
Commercial,Customer Support Group,Building Repairs & Maintenance,60057671,S W BRUCE & CO LTD, 84.82 ,27/07/2016
Commercial,Customer Support Group,Building Repairs & Maintenance,60057673,S W BRUCE & CO LTD, 103.65 ,28/07/2016
Commercial,Customer Support Group,Building Repairs & Maintenance,60057678,S W BRUCE & CO LTD, 28.50 ,27/07/2016
Commercial,Customer Support Group,Building Repairs & Maintenance,60057684,S W BRUCE & CO LTD, 139.36 ,27/07/2016
Commercial,Customer Support Group,Building Repairs & Maintenance,60057687,S W BRUCE & CO LTD, 42.75 ,27/07/2016
Commercial,Customer Support Group,Building Repairs & Maintenance,60057790,S W BRUCE & CO LTD, 114.68 ,28/07/2016
Commercial,Customer Support Group,Building Repairs & Maintenance,60057798,S W BRUCE & CO LTD, 90.40 ,28/07/2016
Commercial,Customer Support Group,Building Repairs & Maintenance,60057811,S W BRUCE & CO LTD," 1,885.00 ",28/07/2016
Commercial,Customer Support Group,Building Repairs & Maintenance,60057823,S W BRUCE & CO LTD, 247.54 ,27/07/2016
Commercial,Customer Support Group,Building Repairs & Maintenance,60057842,S W BRUCE & CO LTD, 25.00 ,28/07/2016
Commercial,Customer Support Group,Building Repairs & Maintenance,60057880,S W BRUCE & CO LTD, 28.50 ,27/07/2016
Commercial,Customer Support Group,Building Repairs & Maintenance,60057881,S W BRUCE & CO LTD, 95.67 ,28/07/2016
Commercial,Customer Support Group,Building Repairs & Maintenance,60057901,S W BRUCE & CO LTD," 2,992.38 ",28/07/2016
Commercial,Customer Support Group,Building Repairs & Maintenance,60057935,S W BRUCE & CO LTD, 57.78 ,28/07/2016
Commercial,Customer Support Group,Building Repairs & Maintenance,60057973,S W BRUCE & CO LTD, 76.72 ,28/07/2016
Commercial,Customer Support Group,Building Repairs & Maintenance,60057978,S W BRUCE & CO LTD, 385.25 ,28/07/2016
Commercial,Customer Support Group,Building Repairs & Maintenance,60057989,S W BRUCE & CO LTD, 134.51 ,28/07/2016
Commercial,Customer Support Group,Building Repairs & Maintenance,60058030,S W BRUCE & CO LTD, 57.00 ,28/07/2016
Commercial,Customer Support Group,Building Repairs & Maintenance,60057445,SECOM PLC, 89.00 ,05/07/2016
Commercial,Customer Support Group,Building Repairs & Maintenance,60057448,SECOM PLC, 89.00 ,05/07/2016
Commercial,Customer Support Group,Building Repairs & Maintenance,60057731,SIGNS & LABELS LTD, 110.00 ,14/07/2016
Commercial,Customer Support Group,Building Repairs & Maintenance,60059560,WINTERS HAULAGE LTD, 250.00 ,28/07/2016
Commercial,Customer Support Group,Cleaning and domestic material,60055883,CHURCHILL CONTRACT SERVICES," 7,329.82 ",04/07/2016
Commercial,Customer Support Group,Cleaning and domestic material,60055911,CHURCHILL CONTRACT SERVICES," 1,133.45 ",04/07/2016
Commercial,Customer Support Group,Cleaning and domestic material,60055919,CHURCHILL CONTRACT SERVICES," 1,032.37 ",04/07/2016
Commercial,Customer Support Group,Cleaning and domestic material,60055959,CHURCHILL CONTRACT SERVICES," 11,562.54 ",04/07/2016
Commercial,Customer Support Group,Cleaning and domestic material,60056019,CHURCHILL CONTRACT SERVICES, 661.80 ,04/07/2016
Commercial,Customer Support Group,Cleaning and domestic material,60058317,CHURCHILL CONTRACT SERVICES," 7,329.82 ",28/07/2016
Commercial,Customer Support Group,Cleaning and domestic material,60058328,CHURCHILL CONTRACT SERVICES," 1,032.37 ",28/07/2016
Commercial,Customer Support Group,Cleaning and domestic material,60058338,CHURCHILL CONTRACT SERVICES," 1,133.45 ",28/07/2016
Commercial,Customer Support Group,Cleaning and domestic material,60058358,CHURCHILL CONTRACT SERVICES," 11,562.54 ",28/07/2016
Commercial,Customer Support Group,Cleaning and domestic material,60058402,CHURCHILL CONTRACT SERVICES, 661.80 ,28/07/2016
Commercial,Customer Support Group,Cleaning and domestic material,60058621,HERTFORDSHIRE SUPPLIES   COUNTY CO, 63.50 ,08/07/2016
Commercial,Customer Support Group,Cleaning and domestic material,60058689,HERTFORDSHIRE SUPPLIES   COUNTY CO, 351.30 ,08/07/2016
Commercial,Customer Support Group,Cleaning and domestic material,60058694,HERTFORDSHIRE SUPPLIES   COUNTY CO, 130.30 ,08/07/2016
Commercial,Customer Support Group,Cleaning and domestic material,60058719,HERTFORDSHIRE SUPPLIES   COUNTY CO, 228.40 ,08/07/2016
Commercial,Customer Support Group,Contract Cleaning,60055889,CHURCHILL CONTRACT SERVICES, 294.16 ,04/07/2016
Commercial,Customer Support Group,Contract Cleaning,60058340,CHURCHILL CONTRACT SERVICES, 294.16 ,28/07/2016
Commercial,Customer Support Group,CSG Services Contract Payment,10013348,CAPITA BUSINESS SERVICES LTD,"-2,752.00 ",14/07/2016
Commercial,Customer Support Group,CSG Services Contract Payment,10013349,CAPITA BUSINESS SERVICES LTD,"-4,127.00 ",14/07/2016
Commercial,Customer Support Group,CSG Services Contract Payment,60058511,CAPITA BUSINESS SERVICES LTD," 11,578.75 ",14/07/2016
Commercial,Customer Support Group,CSG Services Contract Payment,60058607,CAPITA BUSINESS SERVICES LTD," 151,583.96 ",18/07/2016
Commercial,Customer Support Group,CSG Services Contract Payment,60059288,CAPITA BUSINESS SERVICES LTD," 666,737.23 ",27/07/2016
Commercial,Customer Support Group,CSG Services Contract Payment,60059309,CAPITA BUSINESS SERVICES LTD," 134,927.00 ",27/07/2016
Commercial,Customer Support Group,Electricity,60057553,BRITISH GAS BUSINESS(ELEC), 188.27 ,06/07/2016
Commercial,Customer Support Group,Electricity,60057561,E-ON ENERGY, 155.24 ,06/07/2016
Commercial,Customer Support Group,Electricity,60057698,E-ON ENERGY, 12.65 ,07/07/2016
Commercial,Customer Support Group,Electricity,60057701,E-ON ENERGY, 10.90 ,07/07/2016
Commercial,Customer Support Group,Electricity,60057716,E-ON ENERGY, 16.50 ,07/07/2016
Commercial,Customer Support Group,Electricity,60057741,E-ON ENERGY, 14.40 ,07/07/2016
Commercial,Customer Support Group,Electricity,60057753,E-ON ENERGY, 10.00 ,07/07/2016
Commercial,Customer Support Group,Electricity,60057756,E-ON ENERGY, 10.20 ,07/07/2016
Commercial,Customer Support Group,Electricity,60057766,E-ON ENERGY, 10.20 ,07/07/2016
Commercial,Customer Support Group,Electricity,60058424,E-ON ENERGY, 321.68 ,06/07/2016
Commercial,Customer Support Group,Electricity,60058452,E-ON ENERGY, 36.05 ,18/07/2016
Commercial,Customer Support Group,Electricity,60058520,E-ON ENERGY, 91.84 ,18/07/2016
Commercial,Customer Support Group,Electricity,60057106,KENT COUNTY COUNCIL (KCS)," 5,902.76 ",04/07/2016
Commercial,Customer Support Group,Electricity,60057449,KENT COUNTY COUNCIL (KCS), 334.65 ,06/07/2016
Commercial,Customer Support Group,Electricity,60057556,KENT COUNTY COUNCIL (KCS)," 1,089.67 ",05/07/2016
Commercial,Customer Support Group,Electricity,60057575,KENT COUNTY COUNCIL (KCS), 962.65 ,05/07/2016
Commercial,Customer Support Group,Electricity,60057653,KENT COUNTY COUNCIL (KCS), 497.37 ,05/07/2016
Commercial,Customer Support Group,Electricity,60058173,KENT COUNTY COUNCIL (KCS), 352.61 ,05/07/2016
Commercial,Customer Support Group,Electricity,60058187,KENT COUNTY COUNCIL (KCS), 16.21 ,04/07/2016
Commercial,Customer Support Group,Electricity,60058795,KENT COUNTY COUNCIL (KCS)," 5,215.00 ",11/07/2016
Commercial,Customer Support Group,Electricity,60059084,MIDDLESEX UNIVERSITY," 5,783.12 ",15/07/2016
Commercial,Customer Support Group,Electricity,60059096,MIDDLESEX UNIVERSITY," 14,793.04 ",15/07/2016
Commercial,Customer Support Group,Electricity,60059097,MIDDLESEX UNIVERSITY," 15,655.99 ",15/07/2016
Commercial,Customer Support Group,Electricity,60059122,MIDDLESEX UNIVERSITY," 84,359.99 ",15/07/2016
Commercial,Customer Support Group,Electricity,60055468,OPUS ENERGY LTD, 6.00 ,06/07/2016
Commercial,Customer Support Group,Electricity,60055473,OPUS ENERGY LTD, 5.61 ,06/07/2016
Commercial,Customer Support Group,Electricity,60055475,OPUS ENERGY LTD, 6.00 ,06/07/2016
Commercial,Customer Support Group,Electricity,60055481,OPUS ENERGY LTD, 6.00 ,06/07/2016
Commercial,Customer Support Group,Electricity,60055505,OPUS ENERGY LTD, 6.00 ,06/07/2016
Commercial,Customer Support Group,Equipment and Materials Purcha,60059564,H.C. SLINGSBY PLC., 278.00 ,21/07/2016
Commercial,Customer Support Group,Equipment and Materials Purcha,60058934,HERTEL (UK) LTD, 38.79 ,12/07/2016
Commercial,Customer Support Group,Equipment and Materials Purcha,60059212,HERTEL (UK) LTD, 38.79 ,15/07/2016
Commercial,Customer Support Group,Equipment and Materials Purcha,60050003,RGE SERVICES, 315.49 ,21/07/2016
Commercial,Customer Support Group,Equipment and Materials Purcha,60056926,S W BRUCE & CO LTD, 757.00 ,07/07/2016
Commercial,Customer Support Group,Fixtures and fittings,60057631,LYCO DIRECT LTD, 169.00 ,14/07/2016
Commercial,Customer Support Group,Furniture-Purchase-Repair,60057764,C.E.S., 157.50 ,04/07/2016
Commercial,Customer Support Group,Furniture-Purchase-Repair,60057362,SENATOR INTERNATIONAL," 1,267.20 ",14/07/2016
Commercial,Customer Support Group,Furniture-Purchase-Repair,60050744,WAGSTAFF INTERIORS GROUP, 10.00 ,26/07/2016
Commercial,Customer Support Group,Furniture-Purchase-Repair,60058212,WAGSTAFF INTERIORS GROUP, 18.00 ,29/07/2016
Commercial,Customer Support Group,Gas,60055308,KENT COUNTY COUNCIL (KCS), 386.91 ,05/07/2016
Commercial,Customer Support Group,Gas,60057421,KENT COUNTY COUNCIL (KCS)," 3,167.84 ",04/07/2016
Commercial,Customer Support Group,Gas,60057451,KENT COUNTY COUNCIL (KCS), 802.09 ,04/07/2016
Commercial,Customer Support Group,Gas,60057523,KENT COUNTY COUNCIL (KCS), 87.44 ,04/07/2016
Commercial,Customer Support Group,Gas,60059125,MIDDLESEX UNIVERSITY," 3,869.43 ",15/07/2016
Commercial,Customer Support Group,Other Energy,60058313,STARK SOFTWARE INTERNATIONAL LTD, 190.47 ,05/07/2016
Commercial,Customer Support Group,Other Energy,60058353,STARK SOFTWARE INTERNATIONAL LTD," 1,021.74 ",05/07/2016
Commercial,Customer Support Group,Other Energy,60058397,STARK SOFTWARE INTERNATIONAL LTD, 658.14 ,05/07/2016
Commercial,Customer Support Group,Other Services,60058321,BLUE 9 SECURITY LIMITED," 22,300.11 ",08/07/2016
Commercial,Customer Support Group,Other Services,60058329,BLUE 9 SECURITY LIMITED," 11,210.40 ",08/07/2016
Commercial,Customer Support Group,Other Services,60058331,BLUE 9 SECURITY LIMITED, 53.72 ,08/07/2016
Commercial,Customer Support Group,Other Services,60058350,BLUE 9 SECURITY LIMITED," 1,035.41 ",08/07/2016
Commercial,Customer Support Group,Other Services,60058375,BLUE 9 SECURITY LIMITED," 1,667.39 ",08/07/2016
Commercial,Customer Support Group,Other Services,60058410,BLUE 9 SECURITY LIMITED," 22,039.20 ",08/07/2016
Commercial,Customer Support Group,Other Services,60058413,BLUE 9 SECURITY LIMITED, 201.45 ,08/07/2016
Commercial,Customer Support Group,Other Services,60056198,LEASING PROGRAMMES LIMITED," 1,235.00 ",04/07/2016
Commercial,Customer Support Group,Other Services,20031259,RM EDUCATION PLC, 630.00 ,29/07/2016
Commercial,Customer Support Group,Postage,20031257,ROYAL MAIL GROUP LIMITED, 331.38 ,29/07/2016
Commercial,Customer Support Group,Postage,20031258,ROYAL MAIL GROUP LIMITED, 331.38 ,29/07/2016
Commercial,Customer Support Group,Postage,60057691,ROYAL MAIL GROUP LIMITED," 6,404.95 ",07/07/2016
Commercial,Customer Support Group,Postage,60057692,ROYAL MAIL GROUP LIMITED," 4,397.28 ",07/07/2016
Commercial,Customer Support Group,Postage,60057784,ROYAL MAIL GROUP LIMITED," 4,451.14 ",11/07/2016
Commercial,Customer Support Group,Postage,60059109,ROYAL MAIL GROUP LIMITED," 3,941.19 ",20/07/2016
Commercial,Customer Support Group,Postage,60059334,ROYAL MAIL GROUP LIMITED," 4,685.04 ",19/07/2016
Commercial,Customer Support Group,Postage,60059336,ROYAL MAIL GROUP LIMITED," 5,649.37 ",22/07/2016
Commercial,Customer Support Group,Postage,60059341,ROYAL MAIL GROUP LIMITED, 137.80 ,22/07/2016
Commercial,Customer Support Group,Postage,60059396,ROYAL MAIL GROUP LIMITED," 4,198.55 ",19/07/2016
Commercial,Customer Support Group,Professional Services,60058332,EQUITA LTD HIGH COURT ENFORCEMENT, 135.00 ,26/07/2016
Commercial,Customer Support Group,Professional Services,60058333,EQUITA LTD HIGH COURT ENFORCEMENT, 135.00 ,26/07/2016
Commercial,Customer Support Group,Professional Services,60058334,EQUITA LTD HIGH COURT ENFORCEMENT, 135.00 ,26/07/2016
Commercial,Customer Support Group,Professional Services,60058344,EQUITA LTD HIGH COURT ENFORCEMENT, 135.00 ,26/07/2016
Commercial,Customer Support Group,Professional Services,60058354,EQUITA LTD HIGH COURT ENFORCEMENT, 135.00 ,26/07/2016
Commercial,Customer Support Group,Professional Services,60058359,EQUITA LTD HIGH COURT ENFORCEMENT, 135.00 ,26/07/2016
Commercial,Customer Support Group,Professional Services,60058363,EQUITA LTD HIGH COURT ENFORCEMENT, 135.00 ,26/07/2016
Commercial,Customer Support Group,Professional Services,60058371,EQUITA LTD HIGH COURT ENFORCEMENT, 135.00 ,26/07/2016
Commercial,Customer Support Group,Professional Services,60058398,EQUITA LTD HIGH COURT ENFORCEMENT, 135.00 ,26/07/2016
Commercial,Customer Support Group,Professional Services,60058403,EQUITA LTD HIGH COURT ENFORCEMENT, 135.00 ,26/07/2016
Commercial,Customer Support Group,Professional Services,60058412,EQUITA LTD HIGH COURT ENFORCEMENT, 135.00 ,26/07/2016
Commercial,Customer Support Group,Professional Services,60057415,LAZARI INVESTMENTS LTD," 27,302.49 ",06/07/2016
Commercial,Customer Support Group,Professional Services,60058327,LAZARI INVESTMENTS LTD, 94.50 ,26/07/2016
Commercial,Customer Support Group,Professional Services,60059686,ROSSENDALES (COLLECT) LTD," 1,175.96 ",26/07/2016
Commercial,Customer Support Group,Professional Services,60059697,ROSSENDALES (COLLECT) LTD, 576.27 ,26/07/2016
Commercial,Customer Support Group,Professional Services,60059729,ROSSENDALES (COLLECT) LTD, 776.82 ,26/07/2016
Commercial,Customer Support Group,Rubbish Collection,60059068,G.B.HOLDINGS LTD, 102.00 ,18/07/2016
Commercial,Customer Support Group,Rubbish Collection,60059076,G.B.HOLDINGS LTD, 77.40 ,13/07/2016
Commercial,Customer Support Group,Rubbish Collection,60058641,PEARCE RECYCLING CO. LTD, 39.00 ,28/07/2016
Commercial,Customer Support Group,Rubbish Collection,60058702,PEARCE RECYCLING CO. LTD, 39.00 ,28/07/2016
Commercial,Customer Support Group,Rubbish Collection,60059233,PEARCE RECYCLING CO. LTD, 66.00 ,28/07/2016
Commercial,Customer Support Group,Service Charges,60058833,LAZARI INVESTMENTS LTD," 27,966.24 ",11/07/2016
Commercial,Customer Support Group,Software Licences & Support,60056700,RM EDUCATION PLC," 58,950.00 ",05/07/2016
Commercial,Customer Support Group,Software Purchases,60056655,RM EDUCATION PLC," 11,625.00 ",05/07/2016
Commercial,Customer Support Group,Training,60059875,SKILLS TRAINING CENTRE LTD, 165.00 ,28/07/2016
Commercial,Customer Support Group,Ttl IT & Comms,10013388,LOGOTECH SYSTEMS," 2,433.28 ",27/07/2016
Commercial,Customer Support Group,Water Services,60058619,2468 LTD, 624.24 ,28/07/2016
Commercial,Customer Support Group,Water Services,60057123,AFFINITY WATER LIMITED, 661.69 ,07/07/2016
Commercial,Customer Support Group,Water Services,60058685,AFFINITY WATER LIMITED, 531.17 ,22/07/2016
Commercial,Customer Support Group,Water Services,10013365,ANGEL SPRINGS LTD, 130.00 ,13/07/2016
Commercial,Customer Support Group,Water Services,10013366,ANGEL SPRINGS LTD, 235.00 ,13/07/2016
Commercial,Customer Support Group,Water Services,10013368,ANGEL SPRINGS LTD, 247.00 ,13/07/2016
Commercial,Customer Support Group,Water Services,10013369,ANGEL SPRINGS LTD, 26.00 ,13/07/2016
Commercial,Customer Support Group,Water Services,10013370,ANGEL SPRINGS LTD, 32.00 ,13/07/2016
Commercial,Customer Support Group,Water Services,60058782,ANGEL SPRINGS LTD, 293.00 ,28/07/2016
Commercial,Customer Support Group,Water Services,60058784,ANGEL SPRINGS LTD, 126.00 ,28/07/2016
Commercial,Customer Support Group,Water Services,60058789,ANGEL SPRINGS LTD, 50.00 ,28/07/2016
Commercial,Customer Support Group,Water Services,60058847,ANGEL SPRINGS LTD, 16.00 ,28/07/2016
Commercial,Customer Support Group,Water Services,60058858,ANGEL SPRINGS LTD, 115.50 ,28/07/2016
Commercial,Customer Support Group,Water Services,60059098,MIDDLESEX UNIVERSITY, 647.22 ,15/07/2016
Commercial,HB LAW,Legal and Court Fees,60059410,LONDON BOROUGH OF HARROW," 183,260.00 ",29/07/2016
Commercial,HB LAW,Legal and Court Fees,60059420,LONDON BOROUGH OF HARROW," 183,260.00 ",29/07/2016
Commercial,HB LAW,Legal and Court Fees,60059441,LONDON BOROUGH OF HARROW," 183,260.00 ",29/07/2016
Commercial,HB LAW,Legal and Court Fees,60059484,LONDON BOROUGH OF HARROW," 183,260.00 ",29/07/2016
Commercial,HB LAW,Legal Disbursements,60059914,LONDON BOROUGH OF HARROW," 142,569.52 ",29/07/2016
Commercial,Housing Needs Resources,Miscellaneous Expenses,60058472,31TEN CONSULTING LIMITED," 4,500.00 ",28/07/2016
Commercial,HRA,Consultants Fees,60009234,PRIORITY ESTATES PROJECT LTD," 1,766.49 ",11/07/2016
Commercial,HRA,Consultants Fees,60045556,PRIORITY ESTATES PROJECT LTD," 1,501.78 ",04/07/2016
Commercial,HRA,Consultants Fees,60045619,PRIORITY ESTATES PROJECT LTD," 1,292.22 ",04/07/2016
Commercial,HRA,Consultants Fees,60051850,PRIORITY ESTATES PROJECT LTD," 2,584.45 ",04/07/2016
Commercial,HRA,Consultants Fees,60054887,PRIORITY ESTATES PROJECT LTD," 2,654.30 ",04/07/2016
Commercial,HRA,Consultants Fees,60055541,PRIORITY ESTATES PROJECT LTD," 3,167.32 ",04/07/2016
Commercial,HRA,Consultants Fees,60057377,PRIORITY ESTATES PROJECT LTD," 2,794.00 ",14/07/2016
Commercial,HRA,Consultants Fees,60057892,PRIORITY ESTATES PROJECT LTD," 2,619.37 ",14/07/2016
Commercial,HRA,Consultants Fees,60056493,STRATEGIC URBAN FUTURES LIMITED, 213.32 ,06/07/2016
Commercial,HRA,Insurance-Premises,60058483,CONSULTCIH (T/A CIH CONSULTANCY)," 3,600.00 ",06/07/2016
Commercial,HRA,Other Services,60059665,THE BARNETGROUP LIMITED," 40,000.00 ",22/07/2016
Commercial,HRA,Private Contractors - Third Pa,20031145,GENESIS HOUSING ASSOCIATION LIMITED," 1,500.00 ",22/07/2016
Commercial,HRA,Water Services,60059785,THAMES WATER UTILITIES LIMITED," 2,455.09 ",27/07/2016
Commercial,HRA,Water Services,60059850,THAMES WATER UTILITIES LIMITED," 45,729.87 ",27/07/2016
Commercial,HRA,Water Services,60059866,THAMES WATER UTILITIES LIMITED," 493,156.53 ",27/07/2016
Commercial,Parking & Infrastructure,Electricity,60057654,BARNET LIGHTING SERVICES LTD," 375,911.82 ",04/07/2016
Commercial,Parking & Infrastructure,Equipment and Materials Purcha,60046500,ACCESS INNOVATIONS UK LTD, 678.00 ,07/07/2016
Commercial,Parking & Infrastructure,Equipment and Materials Purcha,60058637,GLASDON UK LTD," 3,609.40 ",29/07/2016
Commercial,Parking & Infrastructure,Equipment and Materials Purcha,60056248,GREENHAM TRADING LIMITED, 402.73 ,04/07/2016
Commercial,Parking & Infrastructure,Equipment and Materials Purcha,60056256,GREENHAM TRADING LIMITED, 103.44 ,04/07/2016
Commercial,Parking & Infrastructure,Equipment and Materials Purcha,60056691,GREENHAM TRADING LIMITED, 39.36 ,06/07/2016
Commercial,Parking & Infrastructure,Equipment and Materials Purcha,60058431,KENT COUNTY COUNCIL (KCS), 72.12 ,07/07/2016
Commercial,Parking & Infrastructure,Equipment and Materials Purcha,60057118,LAFARGE TARMAC TRADING LIMITED, 120.71 ,04/07/2016
Commercial,Parking & Infrastructure,Equipment and Materials Purcha,60057124,LAFARGE TARMAC TRADING LIMITED, 92.85 ,04/07/2016
Commercial,Parking & Infrastructure,Equipment and Materials Purcha,60058247,LAFARGE TARMAC TRADING LIMITED, 120.71 ,07/07/2016
Commercial,Parking & Infrastructure,Equipment and Materials Purcha,60058248,LAFARGE TARMAC TRADING LIMITED, 105.85 ,12/07/2016
Commercial,Parking & Infrastructure,Equipment and Materials Purcha,60058266,LAFARGE TARMAC TRADING LIMITED, 111.42 ,06/07/2016
Commercial,Parking & Infrastructure,Equipment and Materials Purcha,60059086,LAFARGE TARMAC TRADING LIMITED, 126.28 ,21/07/2016
Commercial,Parking & Infrastructure,Equipment and Materials Purcha,60059087,LAFARGE TARMAC TRADING LIMITED, 124.42 ,18/07/2016
Commercial,Parking & Infrastructure,Equipment and Materials Purcha,60059091,LAFARGE TARMAC TRADING LIMITED, 125.35 ,21/07/2016
Commercial,Parking & Infrastructure,Equipment and Materials Purcha,60059092,LAFARGE TARMAC TRADING LIMITED, 116.06 ,26/07/2016
Commercial,Parking & Infrastructure,Equipment and Materials Purcha,60059099,LAFARGE TARMAC TRADING LIMITED, 124.42 ,19/07/2016
Commercial,Parking & Infrastructure,Equipment and Materials Purcha,60059111,LAFARGE TARMAC TRADING LIMITED, 232.12 ,28/07/2016
Commercial,Parking & Infrastructure,Equipment and Materials Purcha,60059124,LAFARGE TARMAC TRADING LIMITED, 94.71 ,15/07/2016
Commercial,Parking & Infrastructure,Equipment and Materials Purcha,60056320,NSL LTD," 6,107.00 ",05/07/2016
Commercial,Parking & Infrastructure,Equipment and Materials Purcha,60059902,NSL LTD," 4,772.42 ",28/07/2016
Commercial,Parking & Infrastructure,Equipment and Materials Purcha,60058361,TOWNSCAPE PRODUCTS LTD," 3,000.00 ",28/07/2016
Commercial,Parking & Infrastructure,Equipment and Materials Purcha,60058252,VODAFONE LTD, 10.00 ,08/07/2016
Commercial,Parking & Infrastructure,Equipment and Materials Purcha,60058500,VODAFONE LTD, 10.00 ,19/07/2016
Commercial,Parking & Infrastructure,Equipment and Materials Purcha,60059085,VODAFONE LTD, 10.00 ,20/07/2016
Commercial,Parking & Infrastructure,Equipment and Materials Purcha,60057227,WM SMITH & SONS LIMITED, 317.32 ,04/07/2016
Commercial,Parking & Infrastructure,Equipment and Materials Purcha,60057252,WM SMITH & SONS LIMITED, 300.30 ,04/07/2016
Commercial,Parking & Infrastructure,Equipment and Materials Purcha,60058041,WM SMITH & SONS LIMITED, 81.36 ,07/07/2016
Commercial,Parking & Infrastructure,Equipment and Materials Purcha,60058101,WM SMITH & SONS LIMITED, 135.38 ,04/07/2016
Commercial,Parking & Infrastructure,Equipment and Materials Purcha,60058107,WM SMITH & SONS LIMITED, 45.60 ,04/07/2016
Commercial,Parking & Infrastructure,Equipment and Materials Purcha,60058931,WM SMITH & SONS LIMITED, 78.75 ,15/07/2016
Commercial,Parking & Infrastructure,Miscellaneous Expenses,60054276,PARKEON LIMITED," 2,179.52 ",11/07/2016
Commercial,Parking & Infrastructure,Miscellaneous Expenses,60055121,PARKEON LIMITED, 796.50 ,05/07/2016
Commercial,Parking & Infrastructure,Other Services,60056839,LONDON COUNCILS," 12,593.00 ",07/07/2016
Commercial,Parking & Infrastructure,Other Services,60056846,LONDON COUNCILS," 1,500.00 ",07/07/2016
Commercial,Parking & Infrastructure,Other Services,60059881,NSL LTD," 2,679.15 ",28/07/2016
Commercial,Parking & Infrastructure,Other Services,60059893,NSL LTD," 2,419.20 ",28/07/2016
Commercial,Parking & Infrastructure,Other Services,60057567,PARKEON LIMITED, 823.50 ,20/07/2016
Commercial,Parking & Infrastructure,Other Services,60057589,PARKEON LIMITED," 2,212.72 ",20/07/2016
Commercial,Parking & Infrastructure,Other Services,60058070,PARKEON LIMITED," 2,331.36 ",04/07/2016
Commercial,Parking & Infrastructure,Other Services,60058086,PARKEON LIMITED," 7,375.00 ",04/07/2016
Commercial,Parking & Infrastructure,Professional Services,60055267,NSL LTD, 177.00 ,01/07/2016
Commercial,Parking & Infrastructure,Professional Services,60058044,NSL LTD," 287,741.39 ",01/07/2016
Commercial,Parking & Infrastructure,Professional Services,60059888,NSL LTD, 66.00 ,28/07/2016
Commercial,Parking & Infrastructure,Professional Services,60059897,NSL LTD," 40,289.39 ",27/07/2016
Commercial,Parking & Infrastructure,Professional Services,60059911,NSL LTD," 287,741.39 ",28/07/2016
Commercial,Parking & Infrastructure,Professional Services,60059922,NSL LTD," 46,438.60 ",28/07/2016
Commercial,Parking & Infrastructure,Software Licences & Support,60059863,NSL LTD," 32,536.46 ",27/07/2016
Commercial,Parking & Infrastructure,Software Licences & Support,60059882,NSL LTD," 33,785.77 ",27/07/2016
Commercial,Parking & Infrastructure,Software Licences & Support,60059910,NSL LTD," 6,393.03 ",28/07/2016
Commercial,Parking & Infrastructure,Software Licences & Support,60059937,NSL LTD," 5,420.93 ",28/07/2016
Commercial,Parking & Infrastructure,Stationery,40001731,OFFICE DEPOT UK LTD, 28.50 ,27/07/2016
Commercial,Parking & Infrastructure,Training,60058489,PREMIER PEOPLE SOLUTIONS LTD," 7,150.00 ",28/07/2016
Commercial,Parking & Infrastructure,Travelling Expenses,60056108,LONDON BUSES SERVICES LIMITED, 16.00 ,04/07/2016
Commercial,Parking & Infrastructure,Water Services,60058662,ANGEL SPRINGS LTD, 32.00 ,28/07/2016
Commercial,Regional Enterprise,Advertising,60055703,TMP (UK) LTD, 144.16 ,18/07/2016
Commercial,Regional Enterprise,Advertising,60055730,TMP (UK) LTD, 158.40 ,18/07/2016
Commercial,Regional Enterprise,Advertising,60055748,TMP (UK) LTD, 158.40 ,18/07/2016
Commercial,Regional Enterprise,Advertising,60055752,TMP (UK) LTD, 165.54 ,18/07/2016
Commercial,Regional Enterprise,Advertising,60057363,TMP (UK) LTD, 133.46 ,18/07/2016
Commercial,Regional Enterprise,Advertising,60057376,TMP (UK) LTD, 115.64 ,18/07/2016
Commercial,Regional Enterprise,Advertising,60057381,TMP (UK) LTD, 35.64 ,18/07/2016
Commercial,Regional Enterprise,Advertising,60057918,TMP (UK) LTD, 53.46 ,18/07/2016
Commercial,Regional Enterprise,Advertising,60057929,TMP (UK) LTD, 35.64 ,18/07/2016
Commercial,Regional Enterprise,Advertising,60057940,TMP (UK) LTD, 237.72 ,18/07/2016
Commercial,Regional Enterprise,Advertising,60058177,TMP (UK) LTD, 219.90 ,18/07/2016
Commercial,Regional Enterprise,Advertising,60058351,TMP (UK) LTD, 346.33 ,18/07/2016
Commercial,Regional Enterprise,Advertising,60058382,TMP (UK) LTD, 212.77 ,18/07/2016
Commercial,Regional Enterprise,Advertising,60058416,TMP (UK) LTD, 212.77 ,18/07/2016
Commercial,Regional Enterprise,Cleaning and domestic material,60055909,CHURCHILL CONTRACT SERVICES, 488.56 ,04/07/2016
Commercial,Regional Enterprise,Cleaning and domestic material,60058378,CHURCHILL CONTRACT SERVICES, 488.56 ,28/07/2016
Commercial,Regional Enterprise,Consultants Fees,60058501,31TEN CONSULTING LIMITED," 8,010.00 ",28/07/2016
Commercial,Regional Enterprise,Consultants Fees,60058513,31TEN CONSULTING LIMITED," 13,380.00 ",07/07/2016
Commercial,Regional Enterprise,Consultants Fees,60058564,EVERSHEDS LLP," 9,500.00 ",07/07/2016
Commercial,Regional Enterprise,Consultants Fees,60055361,NETWORK RAIL INFRASTRUCTURE LTD," 73,862.49 ",22/07/2016
Commercial,Regional Enterprise,Consultants Fees,60058606,RAILFREIGHT CONSULTING LTD," 1,980.00 ",28/07/2016
Commercial,Regional Enterprise,Equipment and Materials Purcha,20031185,GENERAL CEMETERY COMPANY," 5,100.00 ",26/07/2016
Commercial,Regional Enterprise,Equipment and Materials Purcha,20031183,REDACTED PERSONAL DATA, 300.00 ,26/07/2016
Commercial,Regional Enterprise,Equipment and Materials Purcha,20031184,REDACTED PERSONAL DATA," 1,225.00 ",26/07/2016
Commercial,Regional Enterprise,Grant Payments,20030935,AMWELL CONSTRUCTION LTD," 2,570.00 ",11/07/2016
Commercial,Regional Enterprise,Grant Payments,20031050,AMWELL CONSTRUCTION LTD," 5,258.00 ",15/07/2016
Commercial,Regional Enterprise,Grant Payments,80004171,AMWELL CONSTRUCTION LTD," 6,858.00 ",29/07/2016
Commercial,Regional Enterprise,Grant Payments,80004510,AMWELL CONSTRUCTION LTD," 7,541.00 ",04/07/2016
Commercial,Regional Enterprise,Grant Payments,80004536,AMWELL CONSTRUCTION LTD," 8,717.50 ",11/07/2016
Commercial,Regional Enterprise,Grant Payments,80004542,AMWELL CONSTRUCTION LTD," 13,049.34 ",29/07/2016
Commercial,Regional Enterprise,Grant Payments,80004815,AMWELL CONSTRUCTION LTD," 11,615.00 ",19/07/2016
Commercial,Regional Enterprise,Grant Payments,80004956,AMWELL CONSTRUCTION LTD," 6,232.00 ",20/07/2016
Commercial,Regional Enterprise,Grant Payments,80004960,AMWELL CONSTRUCTION LTD," 5,116.94 ",20/07/2016
Commercial,Regional Enterprise,Grant Payments,20030932,ARTHUR J. FERRYMAN ASSOCIATES, 722.76 ,11/07/2016
Commercial,Regional Enterprise,Grant Payments,80004976,ARTHUR J. FERRYMAN ASSOCIATES, 480.00 ,21/07/2016
Commercial,Regional Enterprise,Grant Payments,80004573,BELHAMWOOD  LTD," 1,575.00 ",06/07/2016
Commercial,Regional Enterprise,Grant Payments,80004574,BELHAMWOOD LTD," 1,575.00 ",06/07/2016
Commercial,Regional Enterprise,Grant Payments,80004575,BELHAMWOOD LTD," 1,575.00 ",06/07/2016
Commercial,Regional Enterprise,Grant Payments,80004577,BELHAMWOOD LTD," 1,575.00 ",06/07/2016
Commercial,Regional Enterprise,Grant Payments,80004578,BELHAMWOOD LTD," 2,100.00 ",06/07/2016
Commercial,Regional Enterprise,Grant Payments,80004438,CAPITAL  LOCKSMITHS, 300.00 ,04/07/2016
Commercial,Regional Enterprise,Grant Payments,80004581,CAPITAL  LOCKSMITHS, 300.00 ,14/07/2016
Commercial,Regional Enterprise,Grant Payments,80004582,CAPITAL  LOCKSMITHS, 80.00 ,14/07/2016
Commercial,Regional Enterprise,Grant Payments,80004699,CAPITAL  LOCKSMITHS, 251.50 ,14/07/2016
Commercial,Regional Enterprise,Grant Payments,80004700,CAPITAL  LOCKSMITHS, 80.00 ,14/07/2016
Commercial,Regional Enterprise,Grant Payments,80004701,CAPITAL  LOCKSMITHS, 292.00 ,14/07/2016
Commercial,Regional Enterprise,Grant Payments,80004738,CAPITAL  LOCKSMITHS, 80.00 ,20/07/2016
Commercial,Regional Enterprise,Grant Payments,80004739,CAPITAL  LOCKSMITHS, 80.00 ,20/07/2016
Commercial,Regional Enterprise,Grant Payments,80004799,CAPITAL  LOCKSMITHS, 80.00 ,21/07/2016
Commercial,Regional Enterprise,Grant Payments,80004802,CAPITAL  LOCKSMITHS, 266.00 ,21/07/2016
Commercial,Regional Enterprise,Grant Payments,80004803,CAPITAL  LOCKSMITHS, 80.00 ,21/07/2016
Commercial,Regional Enterprise,Grant Payments,80004994,CAPITAL  LOCKSMITHS, 300.00 ,28/07/2016
Commercial,Regional Enterprise,Grant Payments,20030931,DOLPHIN MOBILITY LTD.," 6,330.00 ",11/07/2016
Commercial,Regional Enterprise,Grant Payments,20030926,DP BUILDERS DISABLED ADAPTATIONS," 6,023.00 ",11/07/2016
Commercial,Regional Enterprise,Grant Payments,20031046,DP BUILDERS DISABLED ADAPTATIONS, 670.00 ,15/07/2016
Commercial,Regional Enterprise,Grant Payments,80004520,DP BUILDERS DISABLED ADAPTATIONS," 4,614.73 ",11/07/2016
Commercial,Regional Enterprise,Grant Payments,80004801,DP BUILDERS DISABLED ADAPTATIONS," 5,816.00 ",21/07/2016
Commercial,Regional Enterprise,Grant Payments,80004868,DP BUILDERS DISABLED ADAPTATIONS, 95.00 ,21/07/2016
Commercial,Regional Enterprise,Grant Payments,20030922,ECOLOGIC ENERGY, 274.31 ,11/07/2016
Commercial,Regional Enterprise,Grant Payments,80004553,FLEX FLOORING," 2,544.00 ",08/07/2016
Commercial,Regional Enterprise,Grant Payments,20030942,GHYLLSIDE," 2,201.00 ",12/07/2016
Commercial,Regional Enterprise,Grant Payments,80004973,GHYLLSIDE," 4,330.00 ",21/07/2016
Commercial,Regional Enterprise,Grant Payments,20030929,H D PROPERTY SERVICES LTD," 6,482.72 ",11/07/2016
Commercial,Regional Enterprise,Grant Payments,20030930,H D PROPERTY SERVICES LTD," 5,854.00 ",11/07/2016
Commercial,Regional Enterprise,Grant Payments,20031052,H D PROPERTY SERVICES LTD," 9,129.00 ",15/07/2016
Commercial,Regional Enterprise,Grant Payments,80004546,H D PROPERTY SERVICES LTD," 2,358.00 ",11/07/2016
Commercial,Regional Enterprise,Grant Payments,80004790,H D PROPERTY SERVICES LTD," 4,108.00 ",19/07/2016
Commercial,Regional Enterprise,Grant Payments,80004811,H D PROPERTY SERVICES LTD," 5,704.00 ",19/07/2016
Commercial,Regional Enterprise,Grant Payments,80004911,H D PROPERTY SERVICES LTD," 4,641.48 ",20/07/2016
Commercial,Regional Enterprise,Grant Payments,80005003,IAN HYMAN & CO LTD, 870.00 ,22/07/2016
Commercial,Regional Enterprise,Grant Payments,20031048,MCP PROPERTY SERVICES LTD," 2,877.00 ",15/07/2016
Commercial,Regional Enterprise,Grant Payments,20031053,MCP PROPERTY SERVICES LTD," 2,415.00 ",15/07/2016
Commercial,Regional Enterprise,Grant Payments,80005027,MCP PROPERTY SERVICES LTD," 3,200.00 ",29/07/2016
Commercial,Regional Enterprise,Grant Payments,80005029,MCP PROPERTY SERVICES LTD, 250.00 ,29/07/2016
Commercial,Regional Enterprise,Grant Payments,20030924,REDACTED PERSONAL DATA," 9,161.00 ",11/07/2016
Commercial,Regional Enterprise,Grant Payments,20030925,REDACTED PERSONAL DATA," 6,229.00 ",11/07/2016
Commercial,Regional Enterprise,Grant Payments,20031051,REDACTED PERSONAL DATA," 5,844.00 ",27/07/2016
Commercial,Regional Enterprise,Grant Payments,80004516,REDACTED PERSONAL DATA," 1,600.00 ",04/07/2016
Commercial,Regional Enterprise,Grant Payments,80004559,REDACTED PERSONAL DATA, 297.99 ,08/07/2016
Commercial,Regional Enterprise,Grant Payments,80004970,REDACTED PERSONAL DATA, 132.00 ,22/07/2016
Commercial,Regional Enterprise,Grant Payments,20030928,SOUTH HERTFORDSHIRE," 5,801.00 ",11/07/2016
Commercial,Regional Enterprise,Grant Payments,20030934,STANNAH STAIRLIFTS LTD," 4,914.00 ",11/07/2016
Commercial,Regional Enterprise,Grant Payments,80004509,STANNAH STAIRLIFTS LTD," 5,797.00 ",04/07/2016
Commercial,Regional Enterprise,Grant Payments,20030933,TOTAL HYGIENE LIMITED," 4,183.50 ",14/07/2016
Commercial,Regional Enterprise,Grant Payments,80004507,WESSEX LIFT CO. LTD," 10,223.10 ",26/07/2016
Commercial,Regional Enterprise,Other Services,60057720,AFFINITY WATER LIMITED, 53.02 ,05/07/2016
Commercial,Regional Enterprise,Other Services,60058676,ANNEMOUNT NURSERY SCHOOL," 5,000.00 ",11/07/2016
Commercial,Regional Enterprise,Other Services,60051958,CONWAY AECOM LTD," 1,917.00 ",27/07/2016
Commercial,Regional Enterprise,Other Services,60052037,CONWAY AECOM LTD," 7,832.26 ",18/07/2016
Commercial,Regional Enterprise,Other Services,60052161,CONWAY AECOM LTD," 48,539.93 ",11/07/2016
Commercial,Regional Enterprise,Other Services,60052320,CONWAY AECOM LTD, 39.15 ,26/07/2016
Commercial,Regional Enterprise,Other Services,60052414,CONWAY AECOM LTD," 199,825.72 ",05/07/2016
Commercial,Regional Enterprise,Other Services,60052466,CONWAY AECOM LTD," 5,204.50 ",05/07/2016
Commercial,Regional Enterprise,Other Services,60052653,CONWAY AECOM LTD," 30,859.82 ",05/07/2016
Commercial,Regional Enterprise,Other Services,60053222,CONWAY AECOM LTD," 1,160.00 ",27/07/2016
Commercial,Regional Enterprise,Other Services,60054002,CONWAY AECOM LTD, 271.48 ,11/07/2016
Commercial,Regional Enterprise,Other Services,60054100,CONWAY AECOM LTD," 6,771.36 ",26/07/2016
Commercial,Regional Enterprise,Other Services,60054116,CONWAY AECOM LTD," 2,123.67 ",29/07/2016
Commercial,Regional Enterprise,Other Services,60054465,CONWAY AECOM LTD," 3,297.72 ",11/07/2016
Commercial,Regional Enterprise,Other Services,60054502,CONWAY AECOM LTD," 54,000.00 ",11/07/2016
Commercial,Regional Enterprise,Other Services,60054514,CONWAY AECOM LTD," 5,000.00 ",06/07/2016
Commercial,Regional Enterprise,Other Services,60054519,CONWAY AECOM LTD," 26,883.00 ",05/07/2016
Commercial,Regional Enterprise,Other Services,60054531,CONWAY AECOM LTD," 7,274.00 ",28/07/2016
Commercial,Regional Enterprise,Other Services,60054542,CONWAY AECOM LTD," 40,000.00 ",27/07/2016
Commercial,Regional Enterprise,Other Services,60054571,CONWAY AECOM LTD," 52,762.00 ",05/07/2016
Commercial,Regional Enterprise,Other Services,60054791,CONWAY AECOM LTD," 1,031.53 ",05/07/2016
Commercial,Regional Enterprise,Other Services,60054805,CONWAY AECOM LTD," 1,189.59 ",05/07/2016
Commercial,Regional Enterprise,Other Services,60055051,CONWAY AECOM LTD," 1,172.54 ",26/07/2016
Commercial,Regional Enterprise,Other Services,60055600,CONWAY AECOM LTD," 1,970.75 ",11/07/2016
Commercial,Regional Enterprise,Other Services,60055646,CONWAY AECOM LTD, 98.38 ,05/07/2016
Commercial,Regional Enterprise,Other Services,60055655,CONWAY AECOM LTD," 1,267.58 ",05/07/2016
Commercial,Regional Enterprise,Other Services,60055779,CONWAY AECOM LTD," 1,640.34 ",05/07/2016
Commercial,Regional Enterprise,Other Services,60055792,CONWAY AECOM LTD," 1,096.81 ",28/07/2016
Commercial,Regional Enterprise,Other Services,60055818,CONWAY AECOM LTD," 1,725.24 ",28/07/2016
Commercial,Regional Enterprise,Other Services,60055821,CONWAY AECOM LTD, 433.87 ,05/07/2016
Commercial,Regional Enterprise,Other Services,60055841,CONWAY AECOM LTD, 705.25 ,05/07/2016
Commercial,Regional Enterprise,Other Services,60055849,CONWAY AECOM LTD," 41,307.00 ",05/07/2016
Commercial,Regional Enterprise,Other Services,60055855,CONWAY AECOM LTD," 2,418.02 ",05/07/2016
Commercial,Regional Enterprise,Other Services,60055869,CONWAY AECOM LTD," 47,809.00 ",05/07/2016
Commercial,Regional Enterprise,Other Services,60055870,CONWAY AECOM LTD, 758.54 ,05/07/2016
Commercial,Regional Enterprise,Other Services,60057292,CONWAY AECOM LTD, 759.60 ,07/07/2016
Commercial,Regional Enterprise,Other Services,60057295,CONWAY AECOM LTD, 683.64 ,07/07/2016
Commercial,Regional Enterprise,Other Services,60057360,CONWAY AECOM LTD, 693.87 ,07/07/2016
Commercial,Regional Enterprise,Other Services,60057385,CONWAY AECOM LTD, 391.41 ,07/07/2016
Commercial,Regional Enterprise,Other Services,60057390,CONWAY AECOM LTD," 1,594.64 ",07/07/2016
Commercial,Regional Enterprise,Other Services,60057562,CONWAY AECOM LTD, 379.80 ,14/07/2016
Commercial,Regional Enterprise,Other Services,60057566,CONWAY AECOM LTD, 734.28 ,14/07/2016
Commercial,Regional Enterprise,Other Services,60057574,CONWAY AECOM LTD, 721.10 ,19/07/2016
Commercial,Regional Enterprise,Other Services,60057582,CONWAY AECOM LTD, 520.65 ,14/07/2016
Commercial,Regional Enterprise,Other Services,60057588,CONWAY AECOM LTD," 1,063.44 ",14/07/2016
Commercial,Regional Enterprise,Other Services,60057601,CONWAY AECOM LTD," 1,101.42 ",19/07/2016
Commercial,Regional Enterprise,Other Services,60057609,CONWAY AECOM LTD, 531.72 ,19/07/2016
Commercial,Regional Enterprise,Other Services,60057637,CONWAY AECOM LTD, 550.71 ,19/07/2016
Commercial,Regional Enterprise,Other Services,60057640,CONWAY AECOM LTD, 912.58 ,19/07/2016
Commercial,Regional Enterprise,Other Services,60057643,CONWAY AECOM LTD, 633.00 ,19/07/2016
Commercial,Regional Enterprise,Other Services,60057658,CONWAY AECOM LTD, 712.13 ,14/07/2016
Commercial,Regional Enterprise,Other Services,60057660,CONWAY AECOM LTD," 1,192.32 ",19/07/2016
Commercial,Regional Enterprise,Other Services,60057668,CONWAY AECOM LTD, 607.68 ,14/07/2016
Commercial,Regional Enterprise,Other Services,60057681,CONWAY AECOM LTD," 1,234.35 ",19/07/2016
Commercial,Regional Enterprise,Other Services,60057685,CONWAY AECOM LTD, 911.52 ,14/07/2016
Commercial,Regional Enterprise,Other Services,60057688,CONWAY AECOM LTD," 1,392.60 ",14/07/2016
Commercial,Regional Enterprise,Other Services,60057863,CONWAY AECOM LTD," 8,824.20 ",21/07/2016
Commercial,Regional Enterprise,Other Services,60057915,CONWAY AECOM LTD, 911.52 ,21/07/2016
Commercial,Regional Enterprise,Other Services,60057920,CONWAY AECOM LTD," 1,257.17 ",21/07/2016
Commercial,Regional Enterprise,Other Services,60057926,CONWAY AECOM LTD, 557.04 ,21/07/2016
Commercial,Regional Enterprise,Other Services,60057931,CONWAY AECOM LTD," 1,443.24 ",21/07/2016
Commercial,Regional Enterprise,Other Services,60057934,CONWAY AECOM LTD, 916.36 ,21/07/2016
Commercial,Regional Enterprise,Other Services,60057937,CONWAY AECOM LTD, 607.68 ,21/07/2016
Commercial,Regional Enterprise,Other Services,60057949,CONWAY AECOM LTD, 59.77 ,26/07/2016
Commercial,Regional Enterprise,Other Services,60057986,CONWAY AECOM LTD," 1,329.30 ",21/07/2016
Commercial,Regional Enterprise,Other Services,60057992,CONWAY AECOM LTD," 1,139.40 ",21/07/2016
Commercial,Regional Enterprise,Other Services,60057993,CONWAY AECOM LTD," 1,012.80 ",21/07/2016
Commercial,Regional Enterprise,Other Services,60057996,CONWAY AECOM LTD," 1,443.24 ",21/07/2016
Commercial,Regional Enterprise,Other Services,60057998,CONWAY AECOM LTD, 759.60 ,21/07/2016
Commercial,Regional Enterprise,Other Services,60058006,CONWAY AECOM LTD," 1,266.00 ",21/07/2016
Commercial,Regional Enterprise,Other Services,60058050,CONWAY AECOM LTD," 15,000.00 ",26/07/2016
Commercial,Regional Enterprise,Other Services,60058075,CONWAY AECOM LTD," 8,735.58 ",26/07/2016
Commercial,Regional Enterprise,Other Services,60058115,CONWAY AECOM LTD," 20,000.00 ",26/07/2016
Commercial,Regional Enterprise,Other Services,60058222,CONWAY AECOM LTD," 19,702.41 ",28/07/2016
Commercial,Regional Enterprise,Other Services,60058274,CONWAY AECOM LTD," 23,500.00 ",28/07/2016
Commercial,Regional Enterprise,Other Services,60058741,CONWAY AECOM LTD," 13,124.00 ",28/07/2016
Commercial,Regional Enterprise,Other Services,60058749,CONWAY AECOM LTD," 42,003.60 ",28/07/2016
Commercial,Regional Enterprise,Other Services,60058755,CONWAY AECOM LTD," 12,000.00 ",28/07/2016
Commercial,Regional Enterprise,Other Services,60058770,CONWAY AECOM LTD," 36,046.80 ",28/07/2016
Commercial,Regional Enterprise,Other Services,60058807,CONWAY AECOM LTD," 36,148.00 ",28/07/2016
Commercial,Regional Enterprise,Other Services,60058823,CONWAY AECOM LTD," 63,403.20 ",28/07/2016
Commercial,Regional Enterprise,Other Services,60058840,CONWAY AECOM LTD," 11,408.00 ",28/07/2016
Commercial,Regional Enterprise,Other Services,60059588,CYCLE CONFIDENT LTD," 8,561.99 ",28/07/2016
Commercial,Regional Enterprise,Other Services,60056896,KELTIC CLOTHING, 764.05 ,07/07/2016
Commercial,Regional Enterprise,Other Services,60057656,KENT COUNTY COUNCIL, 12.54 ,07/07/2016
Commercial,Regional Enterprise,Other Services,60057676,KENT COUNTY COUNCIL (KCS), 7.80 ,07/07/2016
Commercial,Regional Enterprise,Other Services,60056452,LIBERTY SERVICES," 1,547.02 ",11/07/2016
Commercial,Regional Enterprise,Other Services,60056503,LIBERTY SERVICES," 4,964.34 ",05/07/2016
Commercial,Regional Enterprise,Other Services,60056541,LIBERTY SERVICES, 522.75 ,18/07/2016
Commercial,Regional Enterprise,Other Services,60059374,LIBERTY SERVICES," 18,534.85 ",26/07/2016
Commercial,Regional Enterprise,Other Services,60058926,LIVING STREETS SERVICES LTD," 3,955.00 ",12/07/2016
Commercial,Regional Enterprise,Other Services,60057651,LONDON BOROUGH OF CAMDEN," 31,271.00 ",04/07/2016
Commercial,Regional Enterprise,Other Services,60058720,LYONSDOWN SCHOOL TRUST LTD, 800.00 ,08/07/2016
Commercial,Regional Enterprise,Other Services,80004950,REDACTED PERSONAL DATA, 240.90 ,19/07/2016
Commercial,Regional Enterprise,Other Services,80004952,REDACTED PERSONAL DATA, 34.55 ,29/07/2016
Commercial,Regional Enterprise,Other Services,80004957,REDACTED PERSONAL DATA, 47.55 ,29/07/2016
Commercial,Regional Enterprise,Other Services,60057860,RIMON JEWISH PRIMARY SCHOOL, 900.00 ,06/07/2016
Commercial,Regional Enterprise,Other Services,60057645,THAMES WATER UTILITIES LIMITED, 40.39 ,04/07/2016
Commercial,Regional Enterprise,Other Services,60057726,THAMES WATER UTILITIES LIMITED, 90.51 ,05/07/2016
Commercial,Regional Enterprise,Other Services,10013375,THE PARDES HOUSE GRAMMAR SCHOOL, 700.00 ,26/07/2016
Commercial,Regional Enterprise,Other Services,60057302,TMP (UK) LTD, 219.90 ,18/07/2016
Commercial,Regional Enterprise,Postage,60058579,ROYAL MAIL GROUP LIMITED, 18.00 ,11/07/2016
Commercial,Regional Enterprise,Professional Services,60057903,REDCORN LTD, 232.00 ,07/07/2016
Commercial,Regional Enterprise,Rents,60057888,INTERNATIONAL GOSPEL CHURCH, 75.00 ,05/07/2016
Commercial,Regional Enterprise,Subscriptions,60058523,PIPER PROJECTS LTD, 80.00 ,07/07/2016
Commissioning,Commissioning,Advertising,60057721,NEWSQUEST (LONDON) LIMITED, 397.68 ,19/07/2016
Commissioning,Commissioning,Advertising,60059319,TMP (UK) LTD," 7,430.17 ",18/07/2016
Commissioning,Commissioning,Building Repairs & Maintenance,60056974,RGE SERVICES, 155.00 ,04/07/2016
Commissioning,Commissioning,Building Repairs & Maintenance,60057682,S W BRUCE & CO LTD, 483.80 ,27/07/2016
Commissioning,Commissioning,Building Repairs & Maintenance,60058388,THE WINDOW COMPANY," 22,000.00 ",05/07/2016
Commissioning,Commissioning,Capital Construction and Works,60059325,MOBILISE PUBLIC LTD," 3,464.34 ",26/07/2016
Commissioning,Commissioning,Consultants Fees,80004591,AON UK LTD," 2,700.00 ",12/07/2016
Commissioning,Commissioning,Consultants Fees,60058384,BRITISH TELECOM PLC," 2,094.55 ",28/07/2016
Commissioning,Commissioning,Consultants Fees,60059311,COPPER CONSULTING LTD," 2,720.00 ",28/07/2016
Commissioning,Commissioning,Consultants Fees,10013376,GATENBY SANDERSON," 3,420.00 ",27/07/2016
Commissioning,Commissioning,Consultants Fees,60057282,GATENBY SANDERSON," 4,500.00 ",22/07/2016
Commissioning,Commissioning,Consultants Fees,60055669,KAZOU CONSULTANCY LTD, 448.57 ,06/07/2016
Commissioning,Commissioning,Consultants Fees,60055836,PRECIOUS MOMENTS AND HEALTH LTD," 1,312.50 ",11/07/2016
Commissioning,Commissioning,Consultants Fees,60058278,PRICEWATERHOUSE COOPERS," 15,000.00 ",04/07/2016
Commissioning,Commissioning,Consultants Fees,60058836,SOCIAL FINANCE," 45,525.00 ",20/07/2016
Commissioning,Commissioning,Consultants Fees,60058617,WILLMOTT DIXON CONSTRUCTION LTD," 320,204.00 ",08/07/2016
Commissioning,Commissioning,Consultants Fees,60059209,WILLMOTT DIXON CONSTRUCTION LTD," 26,985.73 ",25/07/2016
Commissioning,Commissioning,Consultants Fees,60059655,WILLMOTT DIXON CONSTRUCTION LTD," 1,036,866.00 ",25/07/2016
Commissioning,Commissioning,Equipment and Materials Purcha,60057443,OCS GROUP UK LIMITED," 46,521.00 ",04/07/2016
Commissioning,Commissioning,Equipment and Materials Purcha,60059845,OCS GROUP UK LIMITED," 46,521.00 ",28/07/2016
Commissioning,Commissioning,Government Contributions,60059377,UKCT SUPPORT SERVICES LIMITED, 900.00 ,19/07/2016
Commissioning,Commissioning,Grant Payments,80004702,LOVE BURNT OAK COMMUNITY RESOURCE & SUPP," 13,714.50 ",12/07/2016
Commissioning,Commissioning,Grant Payments,80004190,MIDDLE EASTERN WOMEN & SOCIETY ORGANISAT," 1,625.00 ",07/07/2016
Commissioning,Commissioning,Grant Payments,80005015,VALUE YOU," 2,000.00 ",26/07/2016
Commissioning,Commissioning,Grounds maintenance,60057393,PATTERSON MEDICAL LTD, 515.00 ,12/07/2016
Commissioning,Commissioning,Health authorities - Third Par,60044715,NHS BARNET CCG,"-16,800.00 ",19/07/2016
Commissioning,Commissioning,Health authorities - Third Par,60056905,REDACTED PERSONAL DATA, 75.00 ,05/07/2016
Commissioning,Commissioning,Health authorities - Third Par,60058409,REDACTED PERSONAL DATA, 50.00 ,07/07/2016
Commissioning,Commissioning,Joint Authorities - Third Part,EBX0126520,NORTH LONDON WASTE AUTHORITY," 904,617.00 ",22/07/2016
Commissioning,Commissioning,Legal and Court Fees,60058323,PENNA PLC," 6,600.00 ",20/07/2016
Commissioning,Commissioning,Miscellaneous Expenses,60059014,VICTIM SUPPORT SERVICES," 5,587.50 ",28/07/2016
Commissioning,Commissioning,Other Agencies - Third Party P,20031113,FAMILY FUND TRADING LTD," 50,000.00 ",19/07/2016
Commissioning,Commissioning,Other Agencies - Third Party P,60055082,FAMILY FUND TRADING LTD," 1,853.34 ",06/07/2016
Commissioning,Commissioning,Other Agencies - Third Party P,60056955,FAMILY FUND TRADING LTD," 1,034.17 ",06/07/2016
Commissioning,Commissioning,Other Agencies - Third Party P,60058059,FAMILY FUND TRADING LTD," 1,828.33 ",15/07/2016
Commissioning,Commissioning,Other Agencies - Third Party P,60059082,FAMILY FUND TRADING LTD," 4,010.00 ",15/07/2016
Commissioning,Commissioning,Other Agencies - Third Party P,60059151,FAMILY FUND TRADING LTD," 2,271.67 ",22/07/2016
Commissioning,Commissioning,Other Agencies - Third Party P,60059159,FAMILY FUND TRADING LTD, 114.00 ,15/07/2016
Commissioning,Commissioning,Other Agencies - Third Party P,60059191,FAMILY FUND TRADING LTD," 1,887.50 ",22/07/2016
Commissioning,Commissioning,Other Services,60058825,BLUE 9 SECURITY LIMITED," 2,510.71 ",14/07/2016
Commissioning,Commissioning,Other Services,60059880,BLUE 9 SECURITY LIMITED," 3,121.79 ",27/07/2016
Commissioning,Commissioning,Other Services,80004810,GOVNET COMMUNICATIONS, 740.00 ,29/07/2016
Commissioning,Commissioning,Other Services,60057209,REDACTED PERSONAL DATA, 100.00 ,05/07/2016
Commissioning,Commissioning,Other Transfer Payments to Soc,60059556,SOLACE WOMEN'S AID," 74,552.50 ",21/07/2016
Commissioning,Commissioning,Other Transfer Payments to Soc,60059621,SOLACE WOMEN'S AID," 52,461.75 ",21/07/2016
Commissioning,Commissioning,Printing-Contract,60058906,LETTERBOX DISTRIBUTION.COM," 9,828.00 ",15/07/2016
Commissioning,Commissioning,Private Contractors - Third Pa,10013362,GREENWICH LEISURE LTD," 102,989.70 ",12/07/2016
Commissioning,Commissioning,Professional Services,10013286,GENERAL DYNAMICS INFORMATION TECHNOLOGY," 5,481.92 ",06/07/2016
Commissioning,Commissioning,Professional Services,80004093,"HARROW COUNCIL, HB PUBLIC LAW"," 23,350.00 ",19/07/2016
Commissioning,Commissioning,Professional Services,80004963,HB PUBLIC LAW," 23,350.00 ",21/07/2016
Commissioning,Commissioning,Professional Services,60058368,HBINFO LTD, 399.00 ,05/07/2016
Commissioning,Commissioning,Professional Services,80004849,LYONS DAVIDSON SOLICITORS," 14,750.00 ",18/07/2016
Commissioning,Commissioning,Professional Services,80005041,LYONS DAVIDSON SOLICITORS," 23,350.00 ",25/07/2016
Commissioning,Commissioning,Professional Services,60057235,OPINION RESEARCH SERVICES," 2,470.00 ",15/07/2016
Commissioning,Commissioning,Professional Services,60059620,SHAKETASTIC, 27.30 ,22/07/2016
Commissioning,Commissioning,Professional Services,60058271,SIMETRICA LTD," 13,500.00 ",07/07/2016
Commissioning,Commissioning,Publications,60057472,DIGITALISSUE LIMITED, 150.00 ,19/07/2016
Commissioning,Commissioning,Publications,60057474,ZENITH RESOURCING, 819.00 ,04/07/2016
Commissioning,Commissioning,Publications,60057521,ZENITH RESOURCING, 936.00 ,07/07/2016
Commissioning,Commissioning,Publications,60058882,ZENITH RESOURCING, 936.00 ,19/07/2016
Commissioning,Commissioning,Rents,60059982,SARACENS LTD, 667.00 ,29/07/2016
Commissioning,Commissioning,Stationery,40001680,OFFICE DEPOT UK LTD, 24.78 ,04/07/2016
Commissioning,Commissioning,Transport Hire Charges,60058468,BARNET COMMUNITY TRANSPORT, 285.00 ,07/07/2016
Commissioning,Commissioning,Ttl IT & Comms,60049967,BRITISH TELECOM PLC, 161.65 ,05/07/2016
Commissioning,Commissioning,Ttl IT & Comms,60052772,STOR-A FILE LTD," 16,253.51 ",08/07/2016
Corporate Accounting,Corporate Accounting,Other Local Authorities - Thir,EBX0124052,GREATER LONDON AUTHORITY," 1,711,467.00 ",11/07/2016
Corporate Accounting,Corporate Accounting,Other Local Authorities - Thir,EBX0126276,GREATER LONDON AUTHORITY," 230,277.00 ",21/07/2016
Corporate Accounting,Corporate Accounting,Other Transfer Payments to Soc,60055102,CITIBANK NA LONDON, 567.90 ,04/07/2016
Corporate Accounting,Corporate Accounting,Other Transfer Payments to Soc,60057925,CITIBANK NA LONDON, 271.60 ,04/07/2016
Corporate Accounting,Corporate Accounting,Other Transfer Payments to Soc,60057962,CITIBANK NA LONDON, 117.90 ,04/07/2016
Corporate Accounting,Corporate Accounting,Other Transfer Payments to Soc,60057967,CITIBANK NA LONDON, 137.90 ,04/07/2016
Corporate Accounting,Corporate Accounting,Other Transfer Payments to Soc,60057983,CITIBANK NA LONDON, 580.10 ,04/07/2016
Corporate Accounting,Corporate Accounting,Other Transfer Payments to Soc,60058036,CITIBANK NA LONDON, 653.10 ,04/07/2016
Corporate Accounting,Corporate Accounting,Other Transfer Payments to Soc,60058057,CITIBANK NA LONDON," 1,801.45 ",04/07/2016
Corporate Accounting,Corporate Accounting,Other Transfer Payments to Soc,60058058,CITIBANK NA LONDON, 422.80 ,04/07/2016
Corporate Accounting,Corporate Accounting,Other Transfer Payments to Soc,60058062,CITIBANK NA LONDON," 2,777.80 ",04/07/2016
Corporate Accounting,Corporate Accounting,Other Transfer Payments to Soc,60058066,CITIBANK NA LONDON, 554.70 ,04/07/2016
Corporate Accounting,Corporate Accounting,Other Transfer Payments to Soc,60058071,CITIBANK NA LONDON," 1,332.00 ",04/07/2016
Corporate Accounting,Corporate Accounting,Other Transfer Payments to Soc,60058077,CITIBANK NA LONDON, 50.00 ,04/07/2016
Corporate Accounting,Corporate Accounting,Other Transfer Payments to Soc,60058081,CITIBANK NA LONDON, 250.00 ,04/07/2016
Corporate Accounting,Corporate Accounting,Other Transfer Payments to Soc,60058095,CITIBANK NA LONDON, 323.00 ,04/07/2016
Corporate Accounting,Corporate Accounting,Other Transfer Payments to Soc,60058105,CITIBANK NA LONDON, 322.20 ,04/07/2016
Corporate Accounting,Corporate Accounting,Other Transfer Payments to Soc,60058119,CITIBANK NA LONDON," 1,584.00 ",04/07/2016
Corporate Accounting,Corporate Accounting,Other Transfer Payments to Soc,60058421,CITIBANK NA LONDON, 231.60 ,06/07/2016
Corporate Accounting,Corporate Accounting,Other Transfer Payments to Soc,60058426,CITIBANK NA LONDON, 632.90 ,06/07/2016
Corporate Accounting,Corporate Accounting,Other Transfer Payments to Soc,60058445,CITIBANK NA LONDON, 226.50 ,06/07/2016
Corporate Accounting,Corporate Accounting,Other Transfer Payments to Soc,60058455,CITIBANK NA LONDON, 553.70 ,06/07/2016
Corporate Accounting,Corporate Accounting,Other Transfer Payments to Soc,60058488,CITIBANK NA LONDON, 180.00 ,06/07/2016
Corporate Accounting,Corporate Accounting,Other Transfer Payments to Soc,60058492,CITIBANK NA LONDON," 1,941.91 ",07/07/2016
Corporate Accounting,Corporate Accounting,Other Transfer Payments to Soc,60058510,CITIBANK NA LONDON, 329.76 ,07/07/2016
Corporate Accounting,Corporate Accounting,Other Transfer Payments to Soc,60058629,CITIBANK NA LONDON," 1,351.40 ",11/07/2016
Corporate Accounting,Corporate Accounting,Other Transfer Payments to Soc,60058661,CITIBANK NA LONDON, 583.10 ,11/07/2016
Corporate Accounting,Corporate Accounting,Other Transfer Payments to Soc,60058665,CITIBANK NA LONDON," 2,039.64 ",11/07/2016
Corporate Accounting,Corporate Accounting,Other Transfer Payments to Soc,60058714,CITIBANK NA LONDON, 168.00 ,11/07/2016
Corporate Accounting,Corporate Accounting,Other Transfer Payments to Soc,60058718,CITIBANK NA LONDON, 24.00 ,11/07/2016
Corporate Accounting,Corporate Accounting,Other Transfer Payments to Soc,60058730,CITIBANK NA LONDON," 17,820.25 ",11/07/2016
Corporate Accounting,Corporate Accounting,Other Transfer Payments to Soc,60058733,CITIBANK NA LONDON," 3,545.15 ",11/07/2016
Corporate Accounting,Corporate Accounting,Other Transfer Payments to Soc,60059408,CITIBANK NA LONDON, 370.70 ,28/07/2016
Corporate Accounting,Corporate Accounting,Other Transfer Payments to Soc,60059412,CITIBANK NA LONDON, 870.00 ,28/07/2016
Corporate Accounting,Corporate Accounting,Other Transfer Payments to Soc,60059423,CITIBANK NA LONDON, 57.90 ,28/07/2016
Corporate Accounting,Corporate Accounting,Other Transfer Payments to Soc,60059431,CITIBANK NA LONDON, 235.80 ,28/07/2016
Corporate Accounting,Corporate Accounting,Other Transfer Payments to Soc,60059438,CITIBANK NA LONDON, 316.10 ,28/07/2016
Corporate Accounting,Corporate Accounting,Other Transfer Payments to Soc,60059770,CITIBANK NA LONDON, 45.00 ,27/07/2016
Corporate Accounting,Corporate Accounting,Other Transfer Payments to Soc,60059820,CITIBANK NA LONDON," 1,196.10 ",27/07/2016
Corporate Accounting,Corporate Accounting,Other Transfer Payments to Soc,60059821,CITIBANK NA LONDON, 57.90 ,27/07/2016
Corporate Accounting,Corporate Accounting,Other Transfer Payments to Soc,60059822,CITIBANK NA LONDON, 372.80 ,27/07/2016
Delivery Units,Adults and Communities,Cleaning and domestic material,60055885,CHURCHILL CONTRACT SERVICES,377.81,04/07/2016
Delivery Units,Adults and Communities,Cleaning and domestic material,60056000,CHURCHILL CONTRACT SERVICES,391.37,04/07/2016
Delivery Units,Adults and Communities,Cleaning and domestic material,60058349,CHURCHILL CONTRACT SERVICES,391.37,28/07/2016
Delivery Units,Adults and Communities,Cleaning and domestic material,60058365,CHURCHILL CONTRACT SERVICES,377.81,28/07/2016
Delivery Units,Adults and Communities,Consultants Fees,60058896,VOICEABILITY,"5,251.90",15/07/2016
Delivery Units,Adults and Communities,Consultants Fees,60058941,VOICEABILITY,"2,256.00",15/07/2016
Delivery Units,Adults and Communities,Consultants Fees,60059265,VOICEABILITY,"2,232.00",22/07/2016
Delivery Units,Adults and Communities,Consultants Fees,60059271,VOICEABILITY,"1,028.00",22/07/2016
Delivery Units,Adults and Communities,Electricity,60057417,BRITISH GAS BUSINESS(ELEC),903.58,06/07/2016
Delivery Units,Adults and Communities,Electricity,60057418,BRITISH GAS BUSINESS(ELEC),654.38,06/07/2016
Delivery Units,Adults and Communities,Electricity,60057424,BRITISH GAS BUSINESS(ELEC),557.88,06/07/2016
Delivery Units,Adults and Communities,Electricity,60057434,BRITISH GAS BUSINESS(ELEC),450.92,06/07/2016
Delivery Units,Adults and Communities,Electricity,60057454,BRITISH GAS BUSINESS(ELEC),384.72,06/07/2016
Delivery Units,Adults and Communities,Employee Expenses,60057769,CENTRAL LONDONCOMMUNITY HEALTHCARE,"88,097.00",13/07/2016
Delivery Units,Adults and Communities,Equipment and Materials Purcha,60054048,BACK CARE SOLUTIONS LIMITED,212.45,05/07/2016
Delivery Units,Adults and Communities,Equipment and Materials Purcha,60058583,GORDON MORRIS LTD,150.00,07/07/2016
Delivery Units,Adults and Communities,Equipment and Materials Purcha,60057960,MEDEQUIP ASSISTIVE TECHNOLOGY LTD,791.40,04/07/2016
Delivery Units,Adults and Communities,Equipment and Materials Purcha,60057994,MEDEQUIP ASSISTIVE TECHNOLOGY LTD,"1,230.49",04/07/2016
Delivery Units,Adults and Communities,Equipment and Materials Purcha,60058154,MEDEQUIP ASSISTIVE TECHNOLOGY LTD,"207,367.70",04/07/2016
Delivery Units,Adults and Communities,Equipment and Materials Purcha,60058760,MEDEQUIP ASSISTIVE TECHNOLOGY LTD,300.00,13/07/2016
Delivery Units,Adults and Communities,Equipment and Materials Purcha,60058779,MEDEQUIP ASSISTIVE TECHNOLOGY LTD,"1,387.77",13/07/2016
Delivery Units,Adults and Communities,Equipment and Materials Purcha,60058788,MEDEQUIP ASSISTIVE TECHNOLOGY LTD,"261,382.45",20/07/2016
Delivery Units,Adults and Communities,Equipment and Materials Purcha,60058794,MEDEQUIP ASSISTIVE TECHNOLOGY LTD,300.00,13/07/2016
Delivery Units,Adults and Communities,Equipment and Materials Purcha,60058811,MEDEQUIP ASSISTIVE TECHNOLOGY LTD,"3,477.60",13/07/2016
Delivery Units,Adults and Communities,Equipment and Materials Purcha,60059234,OAKLEIGH PHARMACY,"2,666.88",15/07/2016
Delivery Units,Adults and Communities,Equipment and Materials Purcha,60059279,OAKLEIGH PHARMACY,"3,252.22",15/07/2016
Delivery Units,Adults and Communities,Equipment Hire,60058540,AV2HIRE,390.00,07/07/2016
Delivery Units,Adults and Communities,Food Costs,60057365,MULLER MILK & INGREDIENTS,1.44,01/07/2016
Delivery Units,Adults and Communities,Food Costs,60057767,MULLER MILK & INGREDIENTS,1.44,08/07/2016
Delivery Units,Adults and Communities,Food Costs,60058532,MULLER MILK & INGREDIENTS,1.44,22/07/2016
Delivery Units,Adults and Communities,Food Costs,60058602,MULLER MILK & INGREDIENTS,1.44,15/07/2016
Delivery Units,Adults and Communities,Food Costs,60059161,MULLER MILK & INGREDIENTS,1.44,29/07/2016
Delivery Units,Adults and Communities,Furniture-Purchase-Repair,60059137,AV2HIRE,565.00,15/07/2016
Delivery Units,Adults and Communities,Furniture-Purchase-Repair,60058450,NORTH LONDON LOCKSMITHS LTD,75.00,06/07/2016
Delivery Units,Adults and Communities,Furniture-Purchase-Repair,60058871,NORTH LONDON LOCKSMITHS LTD,75.00,13/07/2016
Delivery Units,Adults and Communities,Furniture-Purchase-Repair,60058909,NORTH LONDON LOCKSMITHS LTD,75.00,13/07/2016
Delivery Units,Adults and Communities,Furniture-Purchase-Repair,60058588,REDACTED PERSONAL DATA,100.00,11/07/2016
Delivery Units,Adults and Communities,Gas,60057309,KENT COUNTY COUNCIL (KCS),142.35,04/07/2016
Delivery Units,Adults and Communities,Grant Payments,20031045,BRITISH GAS,"1,000.00",15/07/2016
Delivery Units,Adults and Communities,Grant Payments,20030927,DP BUILDERS DISABLED ADAPTATIONS,126.00,11/07/2016
Delivery Units,Adults and Communities,Grant Payments,20031044,DP BUILDERS DISABLED ADAPTATIONS,126.00,15/07/2016
Delivery Units,Adults and Communities,Grant Payments,20031047,DP BUILDERS DISABLED ADAPTATIONS,"1,039.50",15/07/2016
Delivery Units,Adults and Communities,Grant Payments,20030921,ECOLOGIC ENERGY,354.90,11/07/2016
Delivery Units,Adults and Communities,Grant Payments,20030923,ECOLOGIC ENERGY,139.69,11/07/2016
Delivery Units,Adults and Communities,Other Agencies - Third Party P,30127055,ABBEY RAVENSCROFT PARK NURSING HOME,"3,100.00",04/07/2016
Delivery Units,Adults and Communities,Other Agencies - Third Party P,30127728,ABBEY RAVENSCROFT PARK NURSING HOME,500.00,13/07/2016
Delivery Units,Adults and Communities,Other Agencies - Third Party P,30127729,ABBEY RAVENSCROFT PARK NURSING HOME,"2,796.43",13/07/2016
Delivery Units,Adults and Communities,Other Agencies - Third Party P,30127730,ABBEY RAVENSCROFT PARK NURSING HOME,"2,500.00",13/07/2016
Delivery Units,Adults and Communities,Other Agencies - Third Party P,30127731,ABBEY RAVENSCROFT PARK NURSING HOME,"3,100.00",13/07/2016
Delivery Units,Adults and Communities,Other Agencies - Third Party P,30127732,ABBEY RAVENSCROFT PARK NURSING HOME,800.00,13/07/2016
Delivery Units,Adults and Communities,Other Agencies - Third Party P,30127733,ABBEY RAVENSCROFT PARK NURSING HOME,"1,112.43",13/07/2016
Delivery Units,Adults and Communities,Other Agencies - Third Party P,30127734,ABBEY RAVENSCROFT PARK NURSING HOME,"2,567.14",13/07/2016
Delivery Units,Adults and Communities,Other Agencies - Third Party P,30127735,ABBEY RAVENSCROFT PARK NURSING HOME,"2,396.00",13/07/2016
Delivery Units,Adults and Communities,Other Agencies - Third Party P,30128055,ABBEY RAVENSCROFT PARK NURSING HOME,"2,475.06",15/07/2016
Delivery Units,Adults and Communities,Other Agencies - Third Party P,30128844,ABBEY RAVENSCROFT PARK NURSING HOME,"3,250.00",19/07/2016
Delivery Units,Adults and Communities,Other Agencies - Third Party P,30130016,ABBEY RAVENSCROFT PARK NURSING HOME,"2,569.89",28/07/2016
Delivery Units,Adults and Communities,Other Agencies - Third Party P,30130017,ABBEY RAVENSCROFT PARK NURSING HOME,"2,320.37",28/07/2016
Delivery Units,Adults and Communities,Other Agencies - Third Party P,30130018,ABBEY RAVENSCROFT PARK NURSING HOME,"-1,005.49",28/07/2016
Delivery Units,Adults and Communities,Other Agencies - Third Party P,30127206,ACCEDO CARE LTD,"1,100.00",06/07/2016
Delivery Units,Adults and Communities,Other Agencies - Third Party P,30127673,AGUDAS ISRAEL HOUSING ASSCTN LTD,"3,052.50",14/07/2016
Delivery Units,Adults and Communities,Other Agencies - Third Party P,30128026,AGUDAS ISRAEL HOUSING ASSCTN LTD,"2,736.86",15/07/2016
Delivery Units,Adults and Communities,Other Agencies - Third Party P,30128342,AGUDAS ISRAEL HOUSING ASSCTN LTD,"2,648.57",19/07/2016
Delivery Units,Adults and Communities,Other Agencies - Third Party P,30129805,ALDWYCK HOUSING GROUP,"1,523.82",27/07/2016
Delivery Units,Adults and Communities,Other Agencies - Third Party P,30129121,ALLIED HEALTHCARE LTD,"3,013.48",21/07/2016
Delivery Units,Adults and Communities,Other Agencies - Third Party P,30129122,ALLIED HEALTHCARE LTD,"3,532.01",21/07/2016
Delivery Units,Adults and Communities,Other Agencies - Third Party P,30128911,ANA HOMECARE LTD,674.80,21/07/2016
Delivery Units,Adults and Communities,Other Agencies - Third Party P,30128912,ANA HOMECARE LTD,757.30,21/07/2016
Delivery Units,Adults and Communities,Other Agencies - Third Party P,30128913,ANA HOMECARE LTD,899.40,21/07/2016
Delivery Units,Adults and Communities,Other Agencies - Third Party P,30128914,ANA HOMECARE LTD,944.72,21/07/2016
Delivery Units,Adults and Communities,Other Agencies - Third Party P,30128915,ANA HOMECARE LTD,742.28,21/07/2016
Delivery Units,Adults and Communities,Other Agencies - Third Party P,30129309,ANA HOMECARE LTD,155.00,22/07/2016
Delivery Units,Adults and Communities,Other Agencies - Third Party P,30129312,ANA HOMECARE LTD,30.00,22/07/2016
Delivery Units,Adults and Communities,Other Agencies - Third Party P,30129313,ANA HOMECARE LTD,22.50,22/07/2016
Delivery Units,Adults and Communities,Other Agencies - Third Party P,30129314,ANA HOMECARE LTD,29.99,22/07/2016
Delivery Units,Adults and Communities,Other Agencies - Third Party P,30129315,ANA HOMECARE LTD,29.99,22/07/2016
Delivery Units,Adults and Communities,Other Agencies - Third Party P,30129316,ANA HOMECARE LTD,903.48,22/07/2016
Delivery Units,Adults and Communities,Other Agencies - Third Party P,30129317,ANA HOMECARE LTD,157.44,22/07/2016
Delivery Units,Adults and Communities,Other Agencies - Third Party P,30129318,ANA HOMECARE LTD,352.36,22/07/2016
Delivery Units,Adults and Communities,Other Agencies - Third Party P,30129319,ANA HOMECARE LTD,626.05,22/07/2016
Delivery Units,Adults and Communities,Other Agencies - Third Party P,30129320,ANA HOMECARE LTD,179.88,22/07/2016
Delivery Units,Adults and Communities,Other Agencies - Third Party P,30129321,ANA HOMECARE LTD,15.00,22/07/2016
Delivery Units,Adults and Communities,Other Agencies - Third Party P,30129322,ANA HOMECARE LTD,22.49,22/07/2016
Delivery Units,Adults and Communities,Other Agencies - Third Party P,30129323,ANA HOMECARE LTD,352.36,22/07/2016
Delivery Units,Adults and Communities,Other Agencies - Third Party P,30129324,ANA HOMECARE LTD,352.36,22/07/2016
Delivery Units,Adults and Communities,Other Agencies - Third Party P,30129326,ANA HOMECARE LTD,708.53,22/07/2016
Delivery Units,Adults and Communities,Other Agencies - Third Party P,30129327,ANA HOMECARE LTD,179.88,22/07/2016
Delivery Units,Adults and Communities,Other Agencies - Third Party P,30129328,ANA HOMECARE LTD,30.00,22/07/2016
Delivery Units,Adults and Communities,Other Agencies - Third Party P,30129329,ANA HOMECARE LTD,116.22,22/07/2016
Delivery Units,Adults and Communities,Other Agencies - Third Party P,30129330,ANA HOMECARE LTD,367.36,22/07/2016
Delivery Units,Adults and Communities,Other Agencies - Third Party P,30129331,ANA HOMECARE LTD,352.36,22/07/2016
Delivery Units,Adults and Communities,Other Agencies - Third Party P,30129332,ANA HOMECARE LTD,715.99,22/07/2016
Delivery Units,Adults and Communities,Other Agencies - Third Party P,30129333,ANA HOMECARE LTD,179.88,22/07/2016
Delivery Units,Adults and Communities,Other Agencies - Third Party P,30129334,ANA HOMECARE LTD,30.00,22/07/2016
Delivery Units,Adults and Communities,Other Agencies - Third Party P,30129335,ANA HOMECARE LTD,727.27,22/07/2016
Delivery Units,Adults and Communities,Other Agencies - Third Party P,30129778,ANA HOMECARE LTD,123.69,27/07/2016
Delivery Units,Adults and Communities,Other Agencies - Third Party P,30129779,ANA HOMECARE LTD,577.22,27/07/2016
Delivery Units,Adults and Communities,Other Agencies - Third Party P,30129780,ANA HOMECARE LTD,629.65,27/07/2016
Delivery Units,Adults and Communities,Other Agencies - Third Party P,30129781,ANA HOMECARE LTD,577.22,27/07/2016
Delivery Units,Adults and Communities,Other Agencies - Third Party P,30129783,ANA HOMECARE LTD,-52.47,27/07/2016
Delivery Units,Adults and Communities,Other Agencies - Third Party P,30129784,ANA HOMECARE LTD,89.95,27/07/2016
Delivery Units,Adults and Communities,Other Agencies - Third Party P,30129785,ANA HOMECARE LTD,33.72,27/07/2016
Delivery Units,Adults and Communities,Other Agencies - Third Party P,30129786,ANA HOMECARE LTD,179.90,27/07/2016
Delivery Units,Adults and Communities,Other Agencies - Third Party P,30129787,ANA HOMECARE LTD,134.88,27/07/2016
Delivery Units,Adults and Communities,Other Agencies - Third Party P,30129788,ANA HOMECARE LTD,56.20,27/07/2016
Delivery Units,Adults and Communities,Other Agencies - Third Party P,30129789,ANA HOMECARE LTD,179.88,27/07/2016
Delivery Units,Adults and Communities,Other Agencies - Third Party P,30129790,ANA HOMECARE LTD,112.40,27/07/2016
Delivery Units,Adults and Communities,Other Agencies - Third Party P,30129791,ANA HOMECARE LTD,326.05,27/07/2016
Delivery Units,Adults and Communities,Other Agencies - Third Party P,30129792,ANA HOMECARE LTD,269.87,27/07/2016
Delivery Units,Adults and Communities,Other Agencies - Third Party P,30129793,ANA HOMECARE LTD,359.83,27/07/2016
Delivery Units,Adults and Communities,Other Agencies - Third Party P,30129794,ANA HOMECARE LTD,442.29,27/07/2016
Delivery Units,Adults and Communities,Other Agencies - Third Party P,30129795,ANA HOMECARE LTD,33.72,27/07/2016
Delivery Units,Adults and Communities,Other Agencies - Third Party P,30129796,ANA HOMECARE LTD,112.44,27/07/2016
Delivery Units,Adults and Communities,Other Agencies - Third Party P,30129797,ANA HOMECARE LTD,157.36,27/07/2016
Delivery Units,Adults and Communities,Other Agencies - Third Party P,30129798,ANA HOMECARE LTD,157.42,27/07/2016
Delivery Units,Adults and Communities,Other Agencies - Third Party P,30129799,ANA HOMECARE LTD,146.12,27/07/2016
Delivery Units,Adults and Communities,Other Agencies - Third Party P,30129800,ANA HOMECARE LTD,172.42,27/07/2016
Delivery Units,Adults and Communities,Other Agencies - Third Party P,30129966,ANA HOMECARE LTD,314.86,28/07/2016
Delivery Units,Adults and Communities,Other Agencies - Third Party P,30129967,ANA HOMECARE LTD,-52.47,28/07/2016
Delivery Units,Adults and Communities,Other Agencies - Third Party P,30129968,ANA HOMECARE LTD,-26.23,28/07/2016
Delivery Units,Adults and Communities,Other Agencies - Third Party P,30130207,ANA HOMECARE LTD,629.72,29/07/2016
Delivery Units,Adults and Communities,Other Agencies - Third Party P,30130209,ANA HOMECARE LTD,157.44,29/07/2016
Delivery Units,Adults and Communities,Other Agencies - Third Party P,30130210,ANA HOMECARE LTD,67.44,29/07/2016
Delivery Units,Adults and Communities,Other Agencies - Third Party P,30130211,ANA HOMECARE LTD,33.72,29/07/2016
Delivery Units,Adults and Communities,Other Agencies - Third Party P,30130212,ANA HOMECARE LTD,164.94,29/07/2016
Delivery Units,Adults and Communities,Other Agencies - Third Party P,30130213,ANA HOMECARE LTD,423.61,29/07/2016
Delivery Units,Adults and Communities,Other Agencies - Third Party P,30128964,ANASTASIA LODGE,"3,000.00",21/07/2016
Delivery Units,Adults and Communities,Other Agencies - Third Party P,30127054,APPLE TREE COURT CARE HOME,"2,569.89",04/07/2016
Delivery Units,Adults and Communities,Other Agencies - Third Party P,30125409,ASHFIELDS RESIDENTIAL CARE HOME,"2,249.27",05/07/2016
Delivery Units,Adults and Communities,Other Agencies - Third Party P,30125410,ASHFIELDS RESIDENTIAL CARE HOME,"2,571.43",05/07/2016
Delivery Units,Adults and Communities,Other Agencies - Third Party P,30125411,ASHFIELDS RESIDENTIAL CARE HOME,"2,369.79",05/07/2016
Delivery Units,Adults and Communities,Other Agencies - Third Party P,30125412,ASHFIELDS RESIDENTIAL CARE HOME,"2,369.79",05/07/2016
Delivery Units,Adults and Communities,Other Agencies - Third Party P,30126555,ASHFIELDS RESIDENTIAL CARE HOME,"1,974.82",05/07/2016
Delivery Units,Adults and Communities,Other Agencies - Third Party P,30127064,ASHFIELDS RESIDENTIAL CARE HOME,"2,176.71",05/07/2016
Delivery Units,Adults and Communities,Other Agencies - Third Party P,30127065,ASHFIELDS RESIDENTIAL CARE HOME,"2,369.79",05/07/2016
Delivery Units,Adults and Communities,Other Agencies - Third Party P,30127451,ASHFIELDS RESIDENTIAL CARE HOME,394.96,07/07/2016
Delivery Units,Adults and Communities,Other Agencies - Third Party P,30127736,ASHFIELDS RESIDENTIAL CARE HOME,"2,448.78",13/07/2016
Delivery Units,Adults and Communities,Other Agencies - Third Party P,30127737,ASHFIELDS RESIDENTIAL CARE HOME,"2,448.78",13/07/2016
Delivery Units,Adults and Communities,Other Agencies - Third Party P,30127738,ASHFIELDS RESIDENTIAL CARE HOME,"2,448.78",13/07/2016
Delivery Units,Adults and Communities,Other Agencies - Third Party P,30127739,ASHFIELDS RESIDENTIAL CARE HOME,"4,028.64",13/07/2016
Delivery Units,Adults and Communities,Other Agencies - Third Party P,30127740,ASHFIELDS RESIDENTIAL CARE HOME,"2,448.78",13/07/2016
Delivery Units,Adults and Communities,Other Agencies - Third Party P,30127741,ASHFIELDS RESIDENTIAL CARE HOME,"2,657.14",13/07/2016
Delivery Units,Adults and Communities,Other Agencies - Third Party P,30127742,ASHFIELDS RESIDENTIAL CARE HOME,"2,249.27",13/07/2016
Delivery Units,Adults and Communities,Other Agencies - Third Party P,30128565,ASHFIELDS RESIDENTIAL CARE HOME,"2,369.79",19/07/2016
Delivery Units,Adults and Communities,Other Agencies - Third Party P,30128845,ASHFIELDS RESIDENTIAL CARE HOME,"1,816.84",19/07/2016
Delivery Units,Adults and Communities,Other Agencies - Third Party P,30129093,ASPEN VILLAGES LTD,135.71,21/07/2016
Delivery Units,Adults and Communities,Other Agencies - Third Party P,30129094,ASPEN VILLAGES LTD,"4,071.43",21/07/2016
Delivery Units,Adults and Communities,Other Agencies - Third Party P,30127247,AUTUMN GARDENS,700.00,07/07/2016
Delivery Units,Adults and Communities,Other Agencies - Third Party P,30127775,AUTUMN GARDENS,"6,511.43",13/07/2016
Delivery Units,Adults and Communities,Other Agencies - Third Party P,80004804,BARNET ENFIELD & HARINGEY MENTAL,"52,356.00",29/07/2016
Delivery Units,Adults and Communities,Other Agencies - Third Party P,30127433,BARNET MENCAP,"18,197.25",07/07/2016
Delivery Units,Adults and Communities,Other Agencies - Third Party P,30130022,BARNET MENCAP,526.40,28/07/2016
Delivery Units,Adults and Communities,Other Agencies - Third Party P,30130023,BARNET MENCAP,526.40,28/07/2016
Delivery Units,Adults and Communities,Other Agencies - Third Party P,30130025,BARNET MENCAP,526.40,28/07/2016
Delivery Units,Adults and Communities,Other Agencies - Third Party P,30127113,BAYTREE COMMUNITY CARE (LONDON) LTD,"1,280.00",05/07/2016
Delivery Units,Adults and Communities,Other Agencies - Third Party P,30127114,BAYTREE COMMUNITY CARE (LONDON) LTD,734.40,05/07/2016
Delivery Units,Adults and Communities,Other Agencies - Third Party P,30128272,BLUEBIRD CARE (BARNET),48.00,19/07/2016
Delivery Units,Adults and Communities,Other Agencies - Third Party P,30128273,BLUEBIRD CARE (BARNET),"1,146.00",19/07/2016
Delivery Units,Adults and Communities,Other Agencies - Third Party P,30128275,BLUEBIRD CARE (BARNET),"1,094.00",19/07/2016
Delivery Units,Adults and Communities,Other Agencies - Third Party P,30128277,BLUEBIRD CARE (BARNET),254.00,19/07/2016
Delivery Units,Adults and Communities,Other Agencies - Third Party P,30128278,BLUEBIRD CARE (BARNET),960.00,19/07/2016
Delivery Units,Adults and Communities,Other Agencies - Third Party P,30128279,BLUEBIRD CARE (BARNET),"1,152.00",19/07/2016
Delivery Units,Adults and Communities,Other Agencies - Third Party P,30128280,BLUEBIRD CARE (BARNET),96.00,19/07/2016
Delivery Units,Adults and Communities,Other Agencies - Third Party P,30128920,BLUEBIRD CARE (BARNET),"1,308.00",21/07/2016
Delivery Units,Adults and Communities,Other Agencies - Third Party P,30128921,BLUEBIRD CARE (BARNET),777.00,21/07/2016
Delivery Units,Adults and Communities,Other Agencies - Third Party P,30128922,BLUEBIRD CARE (BARNET),"1,332.00",21/07/2016
Delivery Units,Adults and Communities,Other Agencies - Third Party P,30128923,BLUEBIRD CARE (BARNET),273.00,21/07/2016
Delivery Units,Adults and Communities,Other Agencies - Third Party P,30128924,BLUEBIRD CARE (BARNET),708.00,21/07/2016
Delivery Units,Adults and Communities,Other Agencies - Third Party P,30128925,BLUEBIRD CARE (BARNET),492.00,21/07/2016
Delivery Units,Adults and Communities,Other Agencies - Third Party P,30128926,BLUEBIRD CARE (BARNET),996.00,21/07/2016
Delivery Units,Adults and Communities,Other Agencies - Third Party P,30128927,BLUEBIRD CARE (BARNET),338.00,21/07/2016
Delivery Units,Adults and Communities,Other Agencies - Third Party P,30128928,BLUEBIRD CARE (BARNET),36.00,21/07/2016
Delivery Units,Adults and Communities,Other Agencies - Third Party P,30128929,BLUEBIRD CARE (BARNET),"1,054.00",21/07/2016
Delivery Units,Adults and Communities,Other Agencies - Third Party P,30128930,BLUEBIRD CARE (BARNET),"1,340.00",21/07/2016
Delivery Units,Adults and Communities,Other Agencies - Third Party P,30128931,BLUEBIRD CARE (BARNET),96.00,21/07/2016
Delivery Units,Adults and Communities,Other Agencies - Third Party P,30128932,BLUEBIRD CARE (BARNET),-2.00,21/07/2016
Delivery Units,Adults and Communities,Other Agencies - Third Party P,30127963,BROOKDALE HEALTHCARE,"7,806.73",15/07/2016
Delivery Units,Adults and Communities,Other Agencies - Third Party P,30128194,BROOKDALE HEALTHCARE,"-6,799.41",25/07/2016
Delivery Units,Adults and Communities,Other Agencies - Third Party P,30129932,BROOKDALE HEALTHCARE,"3,759.36",28/07/2016
Delivery Units,Adults and Communities,Other Agencies - Third Party P,30129109,BRUNSWICK SUPPORTED LIVING SERVICES,"1,412.68",21/07/2016
Delivery Units,Adults and Communities,Other Agencies - Third Party P,30129112,BRUNSWICK SUPPORTED LIVING SERVICES,"1,942.84",21/07/2016
Delivery Units,Adults and Communities,Other Agencies - Third Party P,30129115,BRUNSWICK SUPPORTED LIVING SERVICES,"2,153.92",21/07/2016
Delivery Units,Adults and Communities,Other Agencies - Third Party P,30127302,BUPA CARE HOMES,507.94,06/07/2016
Delivery Units,Adults and Communities,Other Agencies - Third Party P,30127422,BUPA CARE HOMES,"1,027.95",07/07/2016
Delivery Units,Adults and Communities,Other Agencies - Third Party P,30127423,BUPA CARE HOMES,"2,484.22",07/07/2016
Delivery Units,Adults and Communities,Other Agencies - Third Party P,30127424,BUPA CARE HOMES,"2,655.55",07/07/2016
Delivery Units,Adults and Communities,Other Agencies - Third Party P,30127425,BUPA CARE HOMES,"1,456.27",07/07/2016
Delivery Units,Adults and Communities,Other Agencies - Third Party P,30129103,BUPA CARE HOMES,507.94,21/07/2016
Delivery Units,Adults and Communities,Other Agencies - Third Party P,30129104,BUPA CARE HOMES,"2,418.04",21/07/2016
Delivery Units,Adults and Communities,Other Agencies - Third Party P,30129105,BUPA CARE HOMES,"2,244.13",21/07/2016
Delivery Units,Adults and Communities,Other Agencies - Third Party P,30129564,BUPA CARE HOMES,72.56,22/07/2016
Delivery Units,Adults and Communities,Other Agencies - Third Party P,30129565,BUPA CARE HOMES,507.94,22/07/2016
Delivery Units,Adults and Communities,Other Agencies - Third Party P,30129909,BUPA CARE HOMES,"2,914.29",27/07/2016
Delivery Units,Adults and Communities,Other Agencies - Third Party P,30129910,BUPA CARE HOMES,"3,011.43",27/07/2016
Delivery Units,Adults and Communities,Other Agencies - Third Party P,30129911,BUPA CARE HOMES,"2,914.29",27/07/2016
Delivery Units,Adults and Communities,Other Agencies - Third Party P,30129912,BUPA CARE HOMES,-507.94,27/07/2016
Delivery Units,Adults and Communities,Other Agencies - Third Party P,30125408,BUPA NURSING HOMES LTD - ARKLEY,-947.91,06/07/2016
Delivery Units,Adults and Communities,Other Agencies - Third Party P,30127277,BUPA NURSING HOMES LTD - ARKLEY,"2,165.68",06/07/2016
Delivery Units,Adults and Communities,Other Agencies - Third Party P,30127278,BUPA NURSING HOMES LTD - ARKLEY,"2,094.52",06/07/2016
Delivery Units,Adults and Communities,Other Agencies - Third Party P,30127279,BUPA NURSING HOMES LTD - ARKLEY,"2,094.52",06/07/2016
Delivery Units,Adults and Communities,Other Agencies - Third Party P,30127280,BUPA NURSING HOMES LTD - ARKLEY,"2,094.52",06/07/2016
Delivery Units,Adults and Communities,Other Agencies - Third Party P,30127281,BUPA NURSING HOMES LTD - ARKLEY,"1,553.92",06/07/2016
Delivery Units,Adults and Communities,Other Agencies - Third Party P,30127282,BUPA NURSING HOMES LTD - ARKLEY,"2,094.52",06/07/2016
Delivery Units,Adults and Communities,Other Agencies - Third Party P,30127283,BUPA NURSING HOMES LTD - ARKLEY,"3,400.00",06/07/2016
Delivery Units,Adults and Communities,Other Agencies - Third Party P,30129086,BUPA NURSING HOMES LTD - ARKLEY,"2,165.68",21/07/2016
Delivery Units,Adults and Communities,Other Agencies - Third Party P,30129087,BUPA NURSING HOMES LTD - ARKLEY,"2,165.68",21/07/2016
Delivery Units,Adults and Communities,Other Agencies - Third Party P,30129088,BUPA NURSING HOMES LTD - ARKLEY,154.69,21/07/2016
Delivery Units,Adults and Communities,Other Agencies - Third Party P,30129089,BUPA NURSING HOMES LTD - ARKLEY,309.38,21/07/2016
Delivery Units,Adults and Communities,Other Agencies - Third Party P,30129562,BUPA NURSING HOMES LTD - ARKLEY,"2,321.92",22/07/2016
Delivery Units,Adults and Communities,Other Agencies - Third Party P,30127237,CANDLE COURT NURSING HOME,"1,015.88",06/07/2016
Delivery Units,Adults and Communities,Other Agencies - Third Party P,30129814,CANDLE COURT NURSING HOME,-342.65,27/07/2016
Delivery Units,Adults and Communities,Other Agencies - Third Party P,30129815,CANDLE COURT NURSING HOME,"2,569.89",27/07/2016
Delivery Units,Adults and Communities,Other Agencies - Third Party P,30129816,CANDLE COURT NURSING HOME,"5,314.29",27/07/2016
Delivery Units,Adults and Communities,Other Agencies - Third Party P,30129817,CANDLE COURT NURSING HOME,"3,764.29",27/07/2016
Delivery Units,Adults and Communities,Other Agencies - Third Party P,30129818,CANDLE COURT NURSING HOME,"2,655.55",27/07/2016
Delivery Units,Adults and Communities,Other Agencies - Third Party P,30128133,CARE WORLDWIDE (LONDON) LTD,"2,680.88",18/07/2016
Delivery Units,Adults and Communities,Other Agencies - Third Party P,30128134,CARE WORLDWIDE (LONDON) LTD,"3,936.46",18/07/2016
Delivery Units,Adults and Communities,Other Agencies - Third Party P,30128135,CARE WORLDWIDE (LONDON) LTD,"4,246.53",18/07/2016
Delivery Units,Adults and Communities,Other Agencies - Third Party P,30128136,CARE WORLDWIDE (LONDON) LTD,"2,685.98",18/07/2016
Delivery Units,Adults and Communities,Other Agencies - Third Party P,30128137,CARE WORLDWIDE (LONDON) LTD,"4,400.13",18/07/2016
Delivery Units,Adults and Communities,Other Agencies - Third Party P,30129839,CARE WORLDWIDE (LONDON) LTD,"2,794.44",27/07/2016
Delivery Units,Adults and Communities,Other Agencies - Third Party P,30125165,CARETECH COMMUNITY SERVICES LTD,"6,568.82",04/07/2016
Delivery Units,Adults and Communities,Other Agencies - Third Party P,30125170,CARETECH COMMUNITY SERVICES LTD,459.94,04/07/2016
Delivery Units,Adults and Communities,Other Agencies - Third Party P,30125171,CARETECH COMMUNITY SERVICES LTD,"4,478.57",04/07/2016
Delivery Units,Adults and Communities,Other Agencies - Third Party P,30125172,CARETECH COMMUNITY SERVICES LTD,"4,496.66",04/07/2016
Delivery Units,Adults and Communities,Other Agencies - Third Party P,30125174,CARETECH COMMUNITY SERVICES LTD,"7,375.71",04/07/2016
Delivery Units,Adults and Communities,Other Agencies - Third Party P,30125175,CARETECH COMMUNITY SERVICES LTD,789.81,04/07/2016
Delivery Units,Adults and Communities,Other Agencies - Third Party P,30125176,CARETECH COMMUNITY SERVICES LTD,"4,478.57",04/07/2016
Delivery Units,Adults and Communities,Other Agencies - Third Party P,30125177,CARETECH COMMUNITY SERVICES LTD,"4,478.74",04/07/2016
Delivery Units,Adults and Communities,Other Agencies - Third Party P,30125178,CARETECH COMMUNITY SERVICES LTD,310.31,04/07/2016
Delivery Units,Adults and Communities,Other Agencies - Third Party P,30125180,CARETECH COMMUNITY SERVICES LTD,"4,478.57",04/07/2016
Delivery Units,Adults and Communities,Other Agencies - Third Party P,30125181,CARETECH COMMUNITY SERVICES LTD,889.50,04/07/2016
Delivery Units,Adults and Communities,Other Agencies - Third Party P,30125184,CARETECH COMMUNITY SERVICES LTD,"1,053.04",04/07/2016
Delivery Units,Adults and Communities,Other Agencies - Third Party P,30125189,CARETECH COMMUNITY SERVICES LTD,"1,053.04",04/07/2016
Delivery Units,Adults and Communities,Other Agencies - Third Party P,30125193,CARETECH COMMUNITY SERVICES LTD,"1,053.04",04/07/2016
Delivery Units,Adults and Communities,Other Agencies - Third Party P,30125194,CARETECH COMMUNITY SERVICES LTD,"4,478.57",04/07/2016
Delivery Units,Adults and Communities,Other Agencies - Third Party P,30125195,CARETECH COMMUNITY SERVICES LTD,"2,080.59",04/07/2016
Delivery Units,Adults and Communities,Other Agencies - Third Party P,30125196,CARETECH COMMUNITY SERVICES LTD,"4,628.57",04/07/2016
Delivery Units,Adults and Communities,Other Agencies - Third Party P,30125198,CARETECH COMMUNITY SERVICES LTD,"1,478.57",04/07/2016
Delivery Units,Adults and Communities,Other Agencies - Third Party P,30125200,CARETECH COMMUNITY SERVICES LTD,889.50,04/07/2016
Delivery Units,Adults and Communities,Other Agencies - Third Party P,30125201,CARETECH COMMUNITY SERVICES LTD,699.30,04/07/2016
Delivery Units,Adults and Communities,Other Agencies - Third Party P,30126605,CARETECH COMMUNITY SERVICES LTD,"2,506.20",04/07/2016
Delivery Units,Adults and Communities,Other Agencies - Third Party P,30128907,CARLTON COURT (TLC GROUP),"5,757.14",21/07/2016
Delivery Units,Adults and Communities,Other Agencies - Third Party P,30128908,CARLTON COURT (TLC GROUP),"-3,342.86",21/07/2016
Delivery Units,Adults and Communities,Other Agencies - Third Party P,30128910,CARLTON COURT (TLC GROUP),"2,227.23",21/07/2016
Delivery Units,Adults and Communities,Other Agencies - Third Party P,30129777,CARLTON COURT (TLC GROUP),"3,720.93",27/07/2016
Delivery Units,Adults and Communities,Other Agencies - Third Party P,30129864,CARTREF CARE HOME,"2,031.76",27/07/2016
Delivery Units,Adults and Communities,Other Agencies - Third Party P,30129865,CARTREF CARE HOME,"2,031.76",27/07/2016
Delivery Units,Adults and Communities,Other Agencies - Third Party P,30128968,CATHERINE LODGE,"2,211.80",21/07/2016
Delivery Units,Adults and Communities,Other Agencies - Third Party P,30127034,CAVENDISH RADIO CARS,901.40,04/07/2016
Delivery Units,Adults and Communities,Other Agencies - Third Party P,30127035,CAVENDISH RADIO CARS,811.26,04/07/2016
Delivery Units,Adults and Communities,Other Agencies - Third Party P,30127036,CAVENDISH RADIO CARS,901.40,04/07/2016
Delivery Units,Adults and Communities,Other Agencies - Third Party P,30127037,CAVENDISH RADIO CARS,856.33,04/07/2016
Delivery Units,Adults and Communities,Other Agencies - Third Party P,30127099,CDR CARE LTD,"1,680.00",05/07/2016
Delivery Units,Adults and Communities,Other Agencies - Third Party P,30129284,CDR CARE LTD,800.00,22/07/2016
Delivery Units,Adults and Communities,Other Agencies - Third Party P,30129285,CDR CARE LTD,800.00,22/07/2016
Delivery Units,Adults and Communities,Other Agencies - Third Party P,30129286,CDR CARE LTD,800.00,22/07/2016
Delivery Units,Adults and Communities,Other Agencies - Third Party P,30129287,CDR CARE LTD,"2,000.00",22/07/2016
Delivery Units,Adults and Communities,Other Agencies - Third Party P,30129288,CDR CARE LTD,"2,000.00",22/07/2016
Delivery Units,Adults and Communities,Other Agencies - Third Party P,30129944,CDR CARE LTD,"1,680.00",28/07/2016
Delivery Units,Adults and Communities,Other Agencies - Third Party P,30128105,CENTRAL MIDDLESEX SKILLS,"1,175.98",18/07/2016
Delivery Units,Adults and Communities,Other Agencies - Third Party P,30128106,CENTRAL MIDDLESEX SKILLS,814.14,18/07/2016
Delivery Units,Adults and Communities,Other Agencies - Third Party P,30129976,CHEQUERS TRANSPORT LIMITED,428.80,28/07/2016
Delivery Units,Adults and Communities,Other Agencies - Third Party P,30129977,CHEQUERS TRANSPORT LIMITED,161.04,28/07/2016
Delivery Units,Adults and Communities,Other Agencies - Third Party P,30127066,CLARE HOUSE NURSING HOME,"2,094.52",04/07/2016
Delivery Units,Adults and Communities,Other Agencies - Third Party P,30129563,CLARE HOUSE NURSING HOME,"2,094.52",22/07/2016
Delivery Units,Adults and Communities,Other Agencies - Third Party P,30127289,CLOVELLY HOUSE RESID. HOME LTD,"2,314.29",06/07/2016
Delivery Units,Adults and Communities,Other Agencies - Third Party P,30127290,CLOVELLY HOUSE RESID. HOME LTD,"2,700.00",06/07/2016
Delivery Units,Adults and Communities,Other Agencies - Third Party P,30127291,CLOVELLY HOUSE RESID. HOME LTD,"2,700.00",06/07/2016
Delivery Units,Adults and Communities,Other Agencies - Third Party P,30127292,CLOVELLY HOUSE RESID. HOME LTD,"2,700.00",06/07/2016
Delivery Units,Adults and Communities,Other Agencies - Third Party P,30127410,CLOVELLY HOUSE RESID. HOME LTD,"2,600.00",07/07/2016
Delivery Units,Adults and Communities,Other Agencies - Third Party P,30127411,CLOVELLY HOUSE RESID. HOME LTD,"2,211.80",07/07/2016
Delivery Units,Adults and Communities,Other Agencies - Third Party P,30127412,CLOVELLY HOUSE RESID. HOME LTD,"2,600.00",07/07/2016
Delivery Units,Adults and Communities,Other Agencies - Third Party P,30127413,CLOVELLY HOUSE RESID. HOME LTD,"2,211.80",07/07/2016
Delivery Units,Adults and Communities,Other Agencies - Third Party P,30127414,CLOVELLY HOUSE RESID. HOME LTD,"1,900.40",07/07/2016
Delivery Units,Adults and Communities,Other Agencies - Third Party P,30127415,CLOVELLY HOUSE RESID. HOME LTD,"2,600.00",07/07/2016
Delivery Units,Adults and Communities,Other Agencies - Third Party P,30127416,CLOVELLY HOUSE RESID. HOME LTD,"2,211.80",07/07/2016
Delivery Units,Adults and Communities,Other Agencies - Third Party P,30127417,CLOVELLY HOUSE RESID. HOME LTD,"2,211.80",07/07/2016
Delivery Units,Adults and Communities,Other Agencies - Third Party P,30127743,CLOVELLY HOUSE RESID. HOME LTD,"2,211.80",13/07/2016
Delivery Units,Adults and Communities,Other Agencies - Third Party P,30127744,CLOVELLY HOUSE RESID. HOME LTD,"2,211.80",13/07/2016
Delivery Units,Adults and Communities,Other Agencies - Third Party P,30127494,CMG HOMES LTD,"3,086.84",08/07/2016
Delivery Units,Adults and Communities,Other Agencies - Third Party P,30125145,CONNIFERS CARE LTD,"7,137.90",04/07/2016
Delivery Units,Adults and Communities,Other Agencies - Third Party P,30127287,CRAEGMOOR,"-2,488.39",06/07/2016
Delivery Units,Adults and Communities,Other Agencies - Third Party P,30129824,CRESWICK HOUSE,"7,123.12",27/07/2016
Delivery Units,Adults and Communities,Other Agencies - Third Party P,30129826,CRESWICK HOUSE,"35,615.60",27/07/2016
Delivery Units,Adults and Communities,Other Agencies - Third Party P,30129829,CRESWICK HOUSE,"7,631.91",27/07/2016
Delivery Units,Adults and Communities,Other Agencies - Third Party P,30129831,CRESWICK HOUSE,"21,369.36",27/07/2016
Delivery Units,Adults and Communities,Other Agencies - Third Party P,30129841,DABB PAA,974.16,27/07/2016
Delivery Units,Adults and Communities,Other Agencies - Third Party P,30128044,DANA CARE LIMITED,"9,582.86",15/07/2016
Delivery Units,Adults and Communities,Other Agencies - Third Party P,30127520,DELAMER HOUSE,"2,357.14",08/07/2016
Delivery Units,Adults and Communities,Other Agencies - Third Party P,30128053,DEVELOPMENT AND LEARNING OPPORTUNIT,"1,479.00",15/07/2016
Delivery Units,Adults and Communities,Other Agencies - Third Party P,30128139,DEVELOPMENT AND LEARNING OPPORTUNIT,"2,025.00",18/07/2016
Delivery Units,Adults and Communities,Other Agencies - Third Party P,30128140,DEVELOPMENT AND LEARNING OPPORTUNIT,652.40,18/07/2016
Delivery Units,Adults and Communities,Other Agencies - Third Party P,30128141,DEVELOPMENT AND LEARNING OPPORTUNIT,"1,056.00",18/07/2016
Delivery Units,Adults and Communities,Other Agencies - Third Party P,30128142,DEVELOPMENT AND LEARNING OPPORTUNIT,"1,875.00",18/07/2016
Delivery Units,Adults and Communities,Other Agencies - Third Party P,30128143,DEVELOPMENT AND LEARNING OPPORTUNIT,"1,053.00",18/07/2016
Delivery Units,Adults and Communities,Other Agencies - Third Party P,30128144,DEVELOPMENT AND LEARNING OPPORTUNIT,500.00,18/07/2016
Delivery Units,Adults and Communities,Other Agencies - Third Party P,30128146,DEVELOPMENT AND LEARNING OPPORTUNIT,306.00,18/07/2016
Delivery Units,Adults and Communities,Other Agencies - Third Party P,80004874,DEVELOPMENT AND LEARNING OPPORTUNIT,908.28,19/07/2016
Delivery Units,Adults and Communities,Other Agencies - Third Party P,80004875,DEVELOPMENT AND LEARNING OPPORTUNIT,"1,053.00",19/07/2016
Delivery Units,Adults and Communities,Other Agencies - Third Party P,80004876,DEVELOPMENT AND LEARNING OPPORTUNIT,"2,025.00",18/07/2016
Delivery Units,Adults and Communities,Other Agencies - Third Party P,30127072,DIMENSIONS UK,"1,720.40",04/07/2016
Delivery Units,Adults and Communities,Other Agencies - Third Party P,30127142,DIMENSIONS UK,149.60,05/07/2016
Delivery Units,Adults and Communities,Other Agencies - Third Party P,30127147,DIMENSIONS UK,149.60,05/07/2016
Delivery Units,Adults and Communities,Other Agencies - Third Party P,30127148,DIMENSIONS UK,224.40,05/07/2016
Delivery Units,Adults and Communities,Other Agencies - Third Party P,30127149,DIMENSIONS UK,149.60,05/07/2016
Delivery Units,Adults and Communities,Other Agencies - Third Party P,30127151,DIMENSIONS UK,74.80,05/07/2016
Delivery Units,Adults and Communities,Other Agencies - Third Party P,30127152,DIMENSIONS UK,74.80,05/07/2016
Delivery Units,Adults and Communities,Other Agencies - Third Party P,30127153,DIMENSIONS UK,74.80,05/07/2016
Delivery Units,Adults and Communities,Other Agencies - Third Party P,30127154,DIMENSIONS UK,149.60,05/07/2016
Delivery Units,Adults and Communities,Other Agencies - Third Party P,30127155,DIMENSIONS UK,149.60,05/07/2016
Delivery Units,Adults and Communities,Other Agencies - Third Party P,30127156,DIMENSIONS UK,149.60,05/07/2016
Delivery Units,Adults and Communities,Other Agencies - Third Party P,30127157,DIMENSIONS UK,74.80,05/07/2016
Delivery Units,Adults and Communities,Other Agencies - Third Party P,30127158,DIMENSIONS UK,523.60,05/07/2016
Delivery Units,Adults and Communities,Other Agencies - Third Party P,30127159,DIMENSIONS UK,299.20,05/07/2016
Delivery Units,Adults and Communities,Other Agencies - Third Party P,30127160,DIMENSIONS UK,224.40,05/07/2016
Delivery Units,Adults and Communities,Other Agencies - Third Party P,30127161,DIMENSIONS UK,299.20,05/07/2016
Delivery Units,Adults and Communities,Other Agencies - Third Party P,30127162,DIMENSIONS UK,149.60,05/07/2016
Delivery Units,Adults and Communities,Other Agencies - Third Party P,30127163,DIMENSIONS UK,448.80,05/07/2016
Delivery Units,Adults and Communities,Other Agencies - Third Party P,30127164,DIMENSIONS UK,149.60,05/07/2016
Delivery Units,Adults and Communities,Other Agencies - Third Party P,30127165,DIMENSIONS UK,112.20,05/07/2016
Delivery Units,Adults and Communities,Other Agencies - Third Party P,30127166,DIMENSIONS UK,149.60,05/07/2016
Delivery Units,Adults and Communities,Other Agencies - Third Party P,30127167,DIMENSIONS UK,149.60,05/07/2016
Delivery Units,Adults and Communities,Other Agencies - Third Party P,30127168,DIMENSIONS UK,448.80,05/07/2016
Delivery Units,Adults and Communities,Other Agencies - Third Party P,30127169,DIMENSIONS UK,149.60,05/07/2016
Delivery Units,Adults and Communities,Other Agencies - Third Party P,30127171,DIMENSIONS UK,"2,128.00",05/07/2016
Delivery Units,Adults and Communities,Other Agencies - Third Party P,30127175,DIMENSIONS UK,"1,541.00",05/07/2016
Delivery Units,Adults and Communities,Other Agencies - Third Party P,30127179,DIMENSIONS UK,74.80,05/07/2016
Delivery Units,Adults and Communities,Other Agencies - Third Party P,30127342,DIMENSIONS UK,294.84,06/07/2016
Delivery Units,Adults and Communities,Other Agencies - Third Party P,30127343,DIMENSIONS UK,413.28,06/07/2016
Delivery Units,Adults and Communities,Other Agencies - Third Party P,30127344,DIMENSIONS UK,258.30,06/07/2016
Delivery Units,Adults and Communities,Other Agencies - Third Party P,30127348,DIMENSIONS UK,"6,025.32",06/07/2016
Delivery Units,Adults and Communities,Other Agencies - Third Party P,30127349,DIMENSIONS UK,"4,495.76",06/07/2016
Delivery Units,Adults and Communities,Other Agencies - Third Party P,30127350,DIMENSIONS UK,"4,495.76",06/07/2016
Delivery Units,Adults and Communities,Other Agencies - Third Party P,30127354,DIMENSIONS UK,"6,025.32",06/07/2016
Delivery Units,Adults and Communities,Other Agencies - Third Party P,30127355,DIMENSIONS UK,"4,495.76",06/07/2016
Delivery Units,Adults and Communities,Other Agencies - Third Party P,30127356,DIMENSIONS UK,"4,495.76",06/07/2016
Delivery Units,Adults and Communities,Other Agencies - Third Party P,30127434,DIMENSIONS UK,309.96,07/07/2016
Delivery Units,Adults and Communities,Other Agencies - Third Party P,30127435,DIMENSIONS UK,309.96,07/07/2016
Delivery Units,Adults and Communities,Other Agencies - Third Party P,30127436,DIMENSIONS UK,335.79,07/07/2016
Delivery Units,Adults and Communities,Other Agencies - Third Party P,30127437,DIMENSIONS UK,"2,128.00",07/07/2016
Delivery Units,Adults and Communities,Other Agencies - Third Party P,30127441,DIMENSIONS UK,"1,541.00",07/07/2016
Delivery Units,Adults and Communities,Other Agencies - Third Party P,30129124,DIMENSIONS UK,-5.35,22/07/2016
Delivery Units,Adults and Communities,Other Agencies - Third Party P,30129125,DIMENSIONS UK,-149.60,22/07/2016
Delivery Units,Adults and Communities,Other Agencies - Third Party P,30129126,DIMENSIONS UK,-37.40,22/07/2016
Delivery Units,Adults and Communities,Other Agencies - Third Party P,30129130,DIMENSIONS UK,-149.60,22/07/2016
Delivery Units,Adults and Communities,Other Agencies - Third Party P,30128079,EASTSIDE HOUSE RESIDENTIAL CARE HOM,"2,031.76",15/07/2016
Delivery Units,Adults and Communities,Other Agencies - Third Party P,30130066,EASTSIDE HOUSE RESIDENTIAL CARE HOM,"2,031.76",29/07/2016
Delivery Units,Adults and Communities,Other Agencies - Third Party P,30127244,ELEANOR PALMER TRUST NO 2 A/C.,-870.75,06/07/2016
Delivery Units,Adults and Communities,Other Agencies - Third Party P,30127707,ELEANOR PALMER TRUST NO 2 A/C.,"1,088.44",13/07/2016
Delivery Units,Adults and Communities,Other Agencies - Third Party P,30127708,ELEANOR PALMER TRUST NO 2 A/C.,"1,959.20",13/07/2016
Delivery Units,Adults and Communities,Other Agencies - Third Party P,30128849,ELIZABETH HOUSE,"2,369.79",19/07/2016
Delivery Units,Adults and Communities,Other Agencies - Third Party P,30128850,ELIZABETH HOUSE,"2,448.78",19/07/2016
Delivery Units,Adults and Communities,Other Agencies - Third Party P,30128851,ELIZABETH HOUSE,"2,369.79",19/07/2016
Delivery Units,Adults and Communities,Other Agencies - Third Party P,30127419,ELM PARK LODGE,"3,407.14",07/07/2016
Delivery Units,Adults and Communities,Other Agencies - Third Party P,30127420,ELM PARK LODGE,"3,372.39",07/07/2016
Delivery Units,Adults and Communities,Other Agencies - Third Party P,30127421,ELM PARK LODGE,"3,321.43",07/07/2016
Delivery Units,Adults and Communities,Other Agencies - Third Party P,30127426,ELM PARK LODGE,"3,330.00",07/07/2016
Delivery Units,Adults and Communities,Other Agencies - Third Party P,30127427,ELM PARK LODGE,"2,035.46",07/07/2016
Delivery Units,Adults and Communities,Other Agencies - Third Party P,30127428,ELM PARK LODGE,"3,321.43",07/07/2016
Delivery Units,Adults and Communities,Other Agencies - Third Party P,30127429,ELM PARK LODGE,"2,092.11",07/07/2016
Delivery Units,Adults and Communities,Other Agencies - Third Party P,30127430,ELM PARK LODGE,"3,107.14",07/07/2016
Delivery Units,Adults and Communities,Other Agencies - Third Party P,30127431,ELM PARK LODGE,"3,321.43",07/07/2016
Delivery Units,Adults and Communities,Other Agencies - Third Party P,30127432,ELM PARK LODGE,"3,321.43",07/07/2016
Delivery Units,Adults and Communities,Other Agencies - Third Party P,30127449,ELM PARK LODGE,"3,344.14",07/07/2016
Delivery Units,Adults and Communities,Other Agencies - Third Party P,30127450,ELM PARK LODGE,"3,068.57",07/07/2016
Delivery Units,Adults and Communities,Other Agencies - Third Party P,30128056,ELM PARK LODGE,"3,192.86",15/07/2016
Delivery Units,Adults and Communities,Other Agencies - Third Party P,30128847,ELM PARK LODGE,"4,735.71",19/07/2016
Delivery Units,Adults and Communities,Other Agencies - Third Party P,30129283,ELMHURST RESIDENTIAL HOME,"23,571.43",22/07/2016
Delivery Units,Adults and Communities,Other Agencies - Third Party P,30129092,EMMAUS HOUSE,"2,211.80",21/07/2016
Delivery Units,Adults and Communities,Other Agencies - Third Party P,30128151,ENABLE U SENSORY SUPPORT LTD,240.00,18/07/2016
Delivery Units,Adults and Communities,Other Agencies - Third Party P,30128152,ENABLE U SENSORY SUPPORT LTD,240.00,18/07/2016
Delivery Units,Adults and Communities,Other Agencies - Third Party P,30128153,ENABLE U SENSORY SUPPORT LTD,240.00,18/07/2016
Delivery Units,Adults and Communities,Other Agencies - Third Party P,30127119,EVE HERSOV & CO,262.00,05/07/2016
Delivery Units,Adults and Communities,Other Agencies - Third Party P,30127397,FERNBANK NURSING HOME.,"2,320.20",07/07/2016
Delivery Units,Adults and Communities,Other Agencies - Third Party P,30127398,FERNBANK NURSING HOME.,"2,320.20",07/07/2016
Delivery Units,Adults and Communities,Other Agencies - Third Party P,30127399,FERNBANK NURSING HOME.,"2,320.20",07/07/2016
Delivery Units,Adults and Communities,Other Agencies - Third Party P,30127400,FERNBANK NURSING HOME.,"2,320.20",07/07/2016
Delivery Units,Adults and Communities,Other Agencies - Third Party P,30127401,FERNBANK NURSING HOME.,"2,320.20",07/07/2016
Delivery Units,Adults and Communities,Other Agencies - Third Party P,30127402,FERNBANK NURSING HOME.,773.40,07/07/2016
Delivery Units,Adults and Communities,Other Agencies - Third Party P,30127504,FERNBANK NURSING HOME.,"1,237.44",08/07/2016
Delivery Units,Adults and Communities,Other Agencies - Third Party P,30128046,FINBOND LIMITED,"2,431.29",15/07/2016
Delivery Units,Adults and Communities,Other Agencies - Third Party P,30128522,FINBOND LIMITED,"2,104.32",22/07/2016
Delivery Units,Adults and Communities,Other Agencies - Third Party P,30129846,FINBOND LIMITED,"2,892.86",27/07/2016
Delivery Units,Adults and Communities,Other Agencies - Third Party P,30127216,FLEXSERVE RESOURCE LTD,149.38,06/07/2016
Delivery Units,Adults and Communities,Other Agencies - Third Party P,30127217,FLEXSERVE RESOURCE LTD,87.50,06/07/2016
Delivery Units,Adults and Communities,Other Agencies - Third Party P,30127461,FLEXSERVE RESOURCE LTD,"2,962.20",08/07/2016
Delivery Units,Adults and Communities,Other Agencies - Third Party P,30127462,FLEXSERVE RESOURCE LTD,"1,423.92",08/07/2016
Delivery Units,Adults and Communities,Other Agencies - Third Party P,30127463,FLEXSERVE RESOURCE LTD,"1,092.29",08/07/2016
Delivery Units,Adults and Communities,Other Agencies - Third Party P,30127464,FLEXSERVE RESOURCE LTD,"1,381.16",08/07/2016
Delivery Units,Adults and Communities,Other Agencies - Third Party P,30127465,FLEXSERVE RESOURCE LTD,"1,518.37",08/07/2016
Delivery Units,Adults and Communities,Other Agencies - Third Party P,30127466,FLEXSERVE RESOURCE LTD,696.83,08/07/2016
Delivery Units,Adults and Communities,Other Agencies - Third Party P,30127656,FLEXSERVE RESOURCE LTD,"2,636.65",13/07/2016
Delivery Units,Adults and Communities,Other Agencies - Third Party P,30127657,FLEXSERVE RESOURCE LTD,"2,224.02",13/07/2016
Delivery Units,Adults and Communities,Other Agencies - Third Party P,30127658,FLEXSERVE RESOURCE LTD,"1,435.87",13/07/2016
Delivery Units,Adults and Communities,Other Agencies - Third Party P,30127659,FLEXSERVE RESOURCE LTD,"2,899.70",13/07/2016
Delivery Units,Adults and Communities,Other Agencies - Third Party P,30127660,FLEXSERVE RESOURCE LTD,"1,410.45",13/07/2016
Delivery Units,Adults and Communities,Other Agencies - Third Party P,30127661,FLEXSERVE RESOURCE LTD,38.85,13/07/2016
Delivery Units,Adults and Communities,Other Agencies - Third Party P,30127662,FLEXSERVE RESOURCE LTD,"1,344.75",13/07/2016
Delivery Units,Adults and Communities,Other Agencies - Third Party P,30127663,FLEXSERVE RESOURCE LTD,"2,044.75",13/07/2016
Delivery Units,Adults and Communities,Other Agencies - Third Party P,30127664,FLEXSERVE RESOURCE LTD,143.40,13/07/2016
Delivery Units,Adults and Communities,Other Agencies - Third Party P,30127665,FLEXSERVE RESOURCE LTD,"1,470.55",13/07/2016
Delivery Units,Adults and Communities,Other Agencies - Third Party P,30127666,FLEXSERVE RESOURCE LTD,"1,395.50",13/07/2016
Delivery Units,Adults and Communities,Other Agencies - Third Party P,30127667,FLEXSERVE RESOURCE LTD,684.60,13/07/2016
Delivery Units,Adults and Communities,Other Agencies - Third Party P,30127409,FOUR SEASONS 2000 LTD,"2,073.42",07/07/2016
Delivery Units,Adults and Communities,Other Agencies - Third Party P,30127315,FOUR SEASONS HEALTH CARE,"1,237.53",06/07/2016
Delivery Units,Adults and Communities,Other Agencies - Third Party P,30127316,FOUR SEASONS HEALTH CARE,"2,443.32",06/07/2016
Delivery Units,Adults and Communities,Other Agencies - Third Party P,30127317,FOUR SEASONS HEALTH CARE,"2,165.68",06/07/2016
Delivery Units,Adults and Communities,Other Agencies - Third Party P,30127318,FOUR SEASONS HEALTH CARE,"2,165.68",06/07/2016
Delivery Units,Adults and Communities,Other Agencies - Third Party P,30127319,FOUR SEASONS HEALTH CARE,"2,123.48",06/07/2016
Delivery Units,Adults and Communities,Other Agencies - Third Party P,30127320,FOUR SEASONS HEALTH CARE,"2,123.48",06/07/2016
Delivery Units,Adults and Communities,Other Agencies - Third Party P,30127321,FOUR SEASONS HEALTH CARE,"2,398.56",06/07/2016
Delivery Units,Adults and Communities,Other Agencies - Third Party P,30127322,FOUR SEASONS HEALTH CARE,"2,165.68",06/07/2016
Delivery Units,Adults and Communities,Other Agencies - Third Party P,30127323,FOUR SEASONS HEALTH CARE,"2,398.56",06/07/2016
Delivery Units,Adults and Communities,Other Agencies - Third Party P,30127324,FOUR SEASONS HEALTH CARE,"2,165.68",06/07/2016
Delivery Units,Adults and Communities,Other Agencies - Third Party P,30127325,FOUR SEASONS HEALTH CARE,"2,165.68",06/07/2016
Delivery Units,Adults and Communities,Other Agencies - Third Party P,30127326,FOUR SEASONS HEALTH CARE,"2,313.08",06/07/2016
Delivery Units,Adults and Communities,Other Agencies - Third Party P,30127327,FOUR SEASONS HEALTH CARE,"2,165.68",06/07/2016
Delivery Units,Adults and Communities,Other Agencies - Third Party P,30127328,FOUR SEASONS HEALTH CARE,"2,165.68",06/07/2016
Delivery Units,Adults and Communities,Other Agencies - Third Party P,30127329,FOUR SEASONS HEALTH CARE,"1,562.91",06/07/2016
Delivery Units,Adults and Communities,Other Agencies - Third Party P,30127330,FOUR SEASONS HEALTH CARE,"2,165.68",06/07/2016
Delivery Units,Adults and Communities,Other Agencies - Third Party P,30127039,FOUR SEASONS HEALTH CARE (NO.4) LTD,"2,004.00",04/07/2016
Delivery Units,Adults and Communities,Other Agencies - Third Party P,30127073,FREEWAYS TRUST LIMITED,829.80,04/07/2016
Delivery Units,Adults and Communities,Other Agencies - Third Party P,30127276,FREMANTLE TRUST,"15,353.68",06/07/2016
Delivery Units,Adults and Communities,Other Agencies - Third Party P,30127296,FREMANTLE TRUST,"3,540.00",06/07/2016
Delivery Units,Adults and Communities,Other Agencies - Third Party P,30127297,FREMANTLE TRUST,"3,540.00",06/07/2016
Delivery Units,Adults and Communities,Other Agencies - Third Party P,30127298,FREMANTLE TRUST,-791.04,06/07/2016
Delivery Units,Adults and Communities,Other Agencies - Third Party P,30127334,FREMANTLE TRUST,"3,106.28",06/07/2016
Delivery Units,Adults and Communities,Other Agencies - Third Party P,30127335,FREMANTLE TRUST,"3,581.96",06/07/2016
Delivery Units,Adults and Communities,Other Agencies - Third Party P,30127336,FREMANTLE TRUST,26.93,06/07/2016
Delivery Units,Adults and Communities,Other Agencies - Third Party P,30127038,FRIARY LODGE,"2,369.78",06/07/2016
Delivery Units,Adults and Communities,Other Agencies - Third Party P,30128966,FRIARY LODGE,"2,176.88",21/07/2016
Delivery Units,Adults and Communities,Other Agencies - Third Party P,30128975,FRIARY LODGE,"2,369.78",21/07/2016
Delivery Units,Adults and Communities,Other Agencies - Third Party P,30129027,FRIARY LODGE,"2,369.78",21/07/2016
Delivery Units,Adults and Communities,Other Agencies - Third Party P,30127062,FRIERN RESIDENTIAL CARE HOME,"2,035.46",04/07/2016
Delivery Units,Adults and Communities,Other Agencies - Third Party P,30127063,FRIERN RESIDENTIAL CARE HOME,"3,857.14",04/07/2016
Delivery Units,Adults and Communities,Other Agencies - Third Party P,30129098,GENTLE HANDS CARE AGENCY,324.00,21/07/2016
Delivery Units,Adults and Communities,Other Agencies - Third Party P,30129100,GENTLE HANDS CARE AGENCY,"1,309.00",21/07/2016
Delivery Units,Adults and Communities,Other Agencies - Third Party P,30129101,GENTLE HANDS CARE AGENCY,175.50,21/07/2016
Delivery Units,Adults and Communities,Other Agencies - Third Party P,30129102,GENTLE HANDS CARE AGENCY,468.00,21/07/2016
Delivery Units,Adults and Communities,Other Agencies - Third Party P,30130026,GENTLE HANDS CARE HOMES LIMITED,"4,394.00",28/07/2016
Delivery Units,Adults and Communities,Other Agencies - Third Party P,30130060,GENTLE HANDS CARE HOMES LIMITED,"1,080.00",28/07/2016
Delivery Units,Adults and Communities,Other Agencies - Third Party P,30130021,GLENHOLME PSYCHIATRIC AFTER CARE HO,"4,262.94",28/07/2016
Delivery Units,Adults and Communities,Other Agencies - Third Party P,30130226,GLENHOLME PSYCHIATRIC AFTER CARE HO,"3,162.83",29/07/2016
Delivery Units,Adults and Communities,Other Agencies - Third Party P,30130039,HARDEN,"4,343.12",28/07/2016
Delivery Units,Adults and Communities,Other Agencies - Third Party P,30127367,HARTFORD CARE LTD,"1,814.07",07/07/2016
Delivery Units,Adults and Communities,Other Agencies - Third Party P,30127246,HARTLEY CENTRE,"3,427.20",06/07/2016
Delivery Units,Adults and Communities,Other Agencies - Third Party P,30128080,HARTWIG CARE LIMITED,"1,248.67",15/07/2016
Delivery Units,Adults and Communities,Other Agencies - Third Party P,30128081,HARTWIG CARE LIMITED,757.28,15/07/2016
Delivery Units,Adults and Communities,Other Agencies - Third Party P,30129969,HEADWAY EAST LONDON,376.08,28/07/2016
Delivery Units,Adults and Communities,Other Agencies - Third Party P,30127709,HILLGREEN CARE LTD,"6,864.42",13/07/2016
Delivery Units,Adults and Communities,Other Agencies - Third Party P,30127751,HILTON LODGE LTD.,"2,184.04",13/07/2016
Delivery Units,Adults and Communities,Other Agencies - Third Party P,30127752,HILTON LODGE LTD.,"2,400.00",13/07/2016
Delivery Units,Adults and Communities,Other Agencies - Third Party P,30127753,HILTON LODGE LTD.,"2,256.04",13/07/2016
Delivery Units,Adults and Communities,Other Agencies - Third Party P,30127759,HILTON LODGE LTD.,"2,184.04",13/07/2016
Delivery Units,Adults and Communities,Other Agencies - Third Party P,30127760,HILTON LODGE LTD.,"2,184.04",13/07/2016
Delivery Units,Adults and Communities,Other Agencies - Third Party P,30127779,HILTON LODGE LTD.,"2,184.04",13/07/2016
Delivery Units,Adults and Communities,Other Agencies - Third Party P,30127780,HILTON LODGE LTD.,"2,184.04",13/07/2016
Delivery Units,Adults and Communities,Other Agencies - Third Party P,60057463,HOUSING 21,634.56,05/07/2016
Delivery Units,Adults and Communities,Other Agencies - Third Party P,60057543,HOUSING 21,"70,793.72",05/07/2016
Delivery Units,Adults and Communities,Other Agencies - Third Party P,60058542,HOUSING 21,634.56,11/07/2016
Delivery Units,Adults and Communities,Other Agencies - Third Party P,60058570,HOUSING 21,634.56,11/07/2016
Delivery Units,Adults and Communities,Other Agencies - Third Party P,60059256,HOUSING 21,634.56,20/07/2016
Delivery Units,Adults and Communities,Other Agencies - Third Party P,60059843,HOUSING 21,634.56,28/07/2016
Delivery Units,Adults and Communities,Other Agencies - Third Party P,30126556,HOUSING 21 (BARNET),-246.00,04/07/2016
Delivery Units,Adults and Communities,Other Agencies - Third Party P,30126557,HOUSING 21 (BARNET),-246.00,04/07/2016
Delivery Units,Adults and Communities,Other Agencies - Third Party P,30126619,HOUSING 21 (BARNET),-246.00,04/07/2016
Delivery Units,Adults and Communities,Other Agencies - Third Party P,30126620,HOUSING 21 (BARNET),-246.00,04/07/2016
Delivery Units,Adults and Communities,Other Agencies - Third Party P,30127033,INDEPENDENCE HOMES LIMITED,"2,900.00",04/07/2016
Delivery Units,Adults and Communities,Other Agencies - Third Party P,30128002,INDEPENDENCE HOMES LIMITED,"2,900.00",15/07/2016
Delivery Units,Adults and Communities,Other Agencies - Third Party P,30127007,INDIVIDUALISED CARE LIMITED,"1,400.00",04/07/2016
Delivery Units,Adults and Communities,Other Agencies - Third Party P,30127008,INDIVIDUALISED CARE LIMITED,684.00,04/07/2016
Delivery Units,Adults and Communities,Other Agencies - Third Party P,30127009,INDIVIDUALISED CARE LIMITED,"2,000.00",04/07/2016
Delivery Units,Adults and Communities,Other Agencies - Third Party P,30127010,INDIVIDUALISED CARE LIMITED,280.00,04/07/2016
Delivery Units,Adults and Communities,Other Agencies - Third Party P,30127011,INDIVIDUALISED CARE LIMITED,700.00,04/07/2016
Delivery Units,Adults and Communities,Other Agencies - Third Party P,30127012,INDIVIDUALISED CARE LIMITED,800.00,04/07/2016
Delivery Units,Adults and Communities,Other Agencies - Third Party P,30127013,INDIVIDUALISED CARE LIMITED,"1,000.00",04/07/2016
Delivery Units,Adults and Communities,Other Agencies - Third Party P,30127014,INDIVIDUALISED CARE LIMITED,256.00,04/07/2016
Delivery Units,Adults and Communities,Other Agencies - Third Party P,30127015,INDIVIDUALISED CARE LIMITED,600.00,04/07/2016
Delivery Units,Adults and Communities,Other Agencies - Third Party P,30127016,INDIVIDUALISED CARE LIMITED,255.00,04/07/2016
Delivery Units,Adults and Communities,Other Agencies - Third Party P,30127017,INDIVIDUALISED CARE LIMITED,224.00,04/07/2016
Delivery Units,Adults and Communities,Other Agencies - Third Party P,30127018,INDIVIDUALISED CARE LIMITED,700.00,04/07/2016
Delivery Units,Adults and Communities,Other Agencies - Third Party P,30127020,INDIVIDUALISED CARE LIMITED,400.00,04/07/2016
Delivery Units,Adults and Communities,Other Agencies - Third Party P,30127021,INDIVIDUALISED CARE LIMITED,280.00,04/07/2016
Delivery Units,Adults and Communities,Other Agencies - Third Party P,30127022,INDIVIDUALISED CARE LIMITED,300.00,04/07/2016
Delivery Units,Adults and Communities,Other Agencies - Third Party P,30127023,INDIVIDUALISED CARE LIMITED,140.00,04/07/2016
Delivery Units,Adults and Communities,Other Agencies - Third Party P,30127024,INDIVIDUALISED CARE LIMITED,244.00,04/07/2016
Delivery Units,Adults and Communities,Other Agencies - Third Party P,30127025,INDIVIDUALISED CARE LIMITED,"1,400.00",04/07/2016
Delivery Units,Adults and Communities,Other Agencies - Third Party P,30127026,INDIVIDUALISED CARE LIMITED,322.50,04/07/2016
Delivery Units,Adults and Communities,Other Agencies - Third Party P,30128097,INDIVIDUALISED CARE LIMITED,"2,000.00",18/07/2016
Delivery Units,Adults and Communities,Other Agencies - Third Party P,30129945,INDIVIDUALISED CARE LIMITED,280.00,28/07/2016
Delivery Units,Adults and Communities,Other Agencies - Third Party P,30129946,INDIVIDUALISED CARE LIMITED,"2,000.00",28/07/2016
Delivery Units,Adults and Communities,Other Agencies - Third Party P,30129947,INDIVIDUALISED CARE LIMITED,"1,400.00",28/07/2016
Delivery Units,Adults and Communities,Other Agencies - Third Party P,30129948,INDIVIDUALISED CARE LIMITED,"2,000.00",28/07/2016
Delivery Units,Adults and Communities,Other Agencies - Third Party P,30129949,INDIVIDUALISED CARE LIMITED,700.00,28/07/2016
Delivery Units,Adults and Communities,Other Agencies - Third Party P,30129950,INDIVIDUALISED CARE LIMITED,800.00,28/07/2016
Delivery Units,Adults and Communities,Other Agencies - Third Party P,30129951,INDIVIDUALISED CARE LIMITED,"1,000.00",28/07/2016
Delivery Units,Adults and Communities,Other Agencies - Third Party P,30129952,INDIVIDUALISED CARE LIMITED,256.00,28/07/2016
Delivery Units,Adults and Communities,Other Agencies - Third Party P,30129953,INDIVIDUALISED CARE LIMITED,255.00,28/07/2016
Delivery Units,Adults and Communities,Other Agencies - Third Party P,30129954,INDIVIDUALISED CARE LIMITED,224.00,28/07/2016
Delivery Units,Adults and Communities,Other Agencies - Third Party P,30129955,INDIVIDUALISED CARE LIMITED,700.00,28/07/2016
Delivery Units,Adults and Communities,Other Agencies - Third Party P,30129956,INDIVIDUALISED CARE LIMITED,300.00,28/07/2016
Delivery Units,Adults and Communities,Other Agencies - Third Party P,30129957,INDIVIDUALISED CARE LIMITED,400.00,28/07/2016
Delivery Units,Adults and Communities,Other Agencies - Third Party P,30129958,INDIVIDUALISED CARE LIMITED,280.00,28/07/2016
Delivery Units,Adults and Communities,Other Agencies - Third Party P,30129959,INDIVIDUALISED CARE LIMITED,300.00,28/07/2016
Delivery Units,Adults and Communities,Other Agencies - Third Party P,30129960,INDIVIDUALISED CARE LIMITED,140.00,28/07/2016
Delivery Units,Adults and Communities,Other Agencies - Third Party P,30129961,INDIVIDUALISED CARE LIMITED,"1,800.00",28/07/2016
Delivery Units,Adults and Communities,Other Agencies - Third Party P,30129962,INDIVIDUALISED CARE LIMITED,500.00,28/07/2016
Delivery Units,Adults and Communities,Other Agencies - Third Party P,30129963,INDIVIDUALISED CARE LIMITED,623.00,28/07/2016
Delivery Units,Adults and Communities,Other Agencies - Third Party P,30129964,INDIVIDUALISED CARE LIMITED,675.50,28/07/2016
Delivery Units,Adults and Communities,Other Agencies - Third Party P,30130228,INDIVIDUALISED CARE LIMITED,600.00,29/07/2016
Delivery Units,Adults and Communities,Other Agencies - Third Party P,30130229,INDIVIDUALISED CARE LIMITED,288.00,29/07/2016
Delivery Units,Adults and Communities,Other Agencies - Third Party P,30127383,INSIGHT SPECIALIST BEHAVIOURAL,"5,944.08",07/07/2016
Delivery Units,Adults and Communities,Other Agencies - Third Party P,30127337,ISLINGTON OUTLOOK (ST JOHNS),879.60,06/07/2016
Delivery Units,Adults and Communities,Other Agencies - Third Party P,30128001,JACARANDA HEALTHCARE,"1,256.80",15/07/2016
Delivery Units,Adults and Communities,Other Agencies - Third Party P,30128003,JACARANDA HEALTHCARE,"1,324.40",15/07/2016
Delivery Units,Adults and Communities,Other Agencies - Third Party P,30128004,JACARANDA HEALTHCARE,"1,304.03",15/07/2016
Delivery Units,Adults and Communities,Other Agencies - Third Party P,30128006,JACARANDA HEALTHCARE,831.10,15/07/2016
Delivery Units,Adults and Communities,Other Agencies - Third Party P,30128007,JACARANDA HEALTHCARE,767.90,15/07/2016
Delivery Units,Adults and Communities,Other Agencies - Third Party P,30128009,JACARANDA HEALTHCARE,"1,729.40",15/07/2016
Delivery Units,Adults and Communities,Other Agencies - Third Party P,30128010,JACARANDA HEALTHCARE,142.50,15/07/2016
Delivery Units,Adults and Communities,Other Agencies - Third Party P,30128011,JACARANDA HEALTHCARE,578.55,15/07/2016
Delivery Units,Adults and Communities,Other Agencies - Third Party P,30128012,JACARANDA HEALTHCARE,213.75,15/07/2016
Delivery Units,Adults and Communities,Other Agencies - Third Party P,30128013,JACARANDA HEALTHCARE,162.00,15/07/2016
Delivery Units,Adults and Communities,Other Agencies - Third Party P,30128014,JACARANDA HEALTHCARE,"1,775.55",15/07/2016
Delivery Units,Adults and Communities,Other Agencies - Third Party P,30127750,JEMINI RESPONSE,"9,100.00",18/07/2016
Delivery Units,Adults and Communities,Other Agencies - Third Party P,30127049,JEWISH CARE,"-1,078.26",04/07/2016
Delivery Units,Adults and Communities,Other Agencies - Third Party P,30127053,JEWISH CARE,"1,161.20",04/07/2016
Delivery Units,Adults and Communities,Other Agencies - Third Party P,30127274,JEWISH CARE,"1,161.20",06/07/2016
Delivery Units,Adults and Communities,Other Agencies - Third Party P,30127505,JEWISH CARE,-167.62,08/07/2016
Delivery Units,Adults and Communities,Other Agencies - Third Party P,30127506,JEWISH CARE,-233.86,08/07/2016
Delivery Units,Adults and Communities,Other Agencies - Third Party P,30127507,JEWISH CARE,"2,488.29",08/07/2016
Delivery Units,Adults and Communities,Other Agencies - Third Party P,30128095,JEWISH CARE,240.08,15/07/2016
Delivery Units,Adults and Communities,Other Agencies - Third Party P,30129067,JEWISH CARE,"2,322.40",21/07/2016
Delivery Units,Adults and Communities,Other Agencies - Third Party P,30129069,JEWISH CARE,"3,200.00",21/07/2016
Delivery Units,Adults and Communities,Other Agencies - Third Party P,30129074,JEWISH CARE,"2,060.70",21/07/2016
Delivery Units,Adults and Communities,Other Agencies - Third Party P,30129078,JEWISH CARE,"1,214.29",21/07/2016
Delivery Units,Adults and Communities,Other Agencies - Third Party P,30129079,JEWISH CARE,580.60,21/07/2016
Delivery Units,Adults and Communities,Other Agencies - Third Party P,30129550,JEWISH CARE,"1,161.20",22/07/2016
Delivery Units,Adults and Communities,Other Agencies - Third Party P,30129862,JEWISH CARE,405.00,27/07/2016
Delivery Units,Adults and Communities,Other Agencies - Third Party P,30129863,JEWISH CARE,"3,200.04",27/07/2016
Delivery Units,Adults and Communities,Other Agencies - Third Party P,30130008,JEWISH CARE,"1,828.57",28/07/2016
Delivery Units,Adults and Communities,Other Agencies - Third Party P,30130009,JEWISH CARE,663.54,28/07/2016
Delivery Units,Adults and Communities,Other Agencies - Third Party P,30130010,JEWISH CARE,"2,133.36",28/07/2016
Delivery Units,Adults and Communities,Other Agencies - Third Party P,30130012,JEWISH CARE,"-3,060.00",28/07/2016
Delivery Units,Adults and Communities,Other Agencies - Third Party P,30130013,JEWISH CARE,243.64,28/07/2016
Delivery Units,Adults and Communities,Other Agencies - Third Party P,30128099,JIGSAW CREATIVE CARE LIMITED,"2,824.00",18/07/2016
Delivery Units,Adults and Communities,Other Agencies - Third Party P,30128264,JIGSAW CREATIVE CARE LIMITED,"5,566.00",19/07/2016
Delivery Units,Adults and Communities,Other Agencies - Third Party P,30128916,JIGSAW CREATIVE CARE LIMITED,"5,997.36",21/07/2016
Delivery Units,Adults and Communities,Other Agencies - Third Party P,30129970,JIGSAW CREATIVE CARE LIMITED,"6,043.52",28/07/2016
Delivery Units,Adults and Communities,Other Agencies - Third Party P,30129971,JIGSAW CREATIVE CARE LIMITED,"2,824.00",28/07/2016
Delivery Units,Adults and Communities,Other Agencies - Third Party P,30129972,JIGSAW CREATIVE CARE LIMITED,"5,566.00",28/07/2016
Delivery Units,Adults and Communities,Other Agencies - Third Party P,30127715,KARE PLUS BARNET,64.20,13/07/2016
Delivery Units,Adults and Communities,Other Agencies - Third Party P,30127716,KARE PLUS BARNET,106.87,13/07/2016
Delivery Units,Adults and Communities,Other Agencies - Third Party P,30127717,KARE PLUS BARNET,339.46,13/07/2016
Delivery Units,Adults and Communities,Other Agencies - Third Party P,30127718,KARE PLUS BARNET,177.67,13/07/2016
Delivery Units,Adults and Communities,Other Agencies - Third Party P,30127719,KARE PLUS BARNET,177.67,13/07/2016
Delivery Units,Adults and Communities,Other Agencies - Third Party P,30127720,KARE PLUS BARNET,165.43,13/07/2016
Delivery Units,Adults and Communities,Other Agencies - Third Party P,30127721,KARE PLUS BARNET,177.67,13/07/2016
Delivery Units,Adults and Communities,Other Agencies - Third Party P,30129836,KARE PLUS BARNET,649.06,27/07/2016
Delivery Units,Adults and Communities,Other Agencies - Third Party P,30129837,KARE PLUS BARNET,649.06,27/07/2016
Delivery Units,Adults and Communities,Other Agencies - Third Party P,30129838,KARE PLUS BARNET,39.21,27/07/2016
Delivery Units,Adults and Communities,Other Agencies - Third Party P,30128832,KEMBLE HOUSE,"7,928.70",19/07/2016
Delivery Units,Adults and Communities,Other Agencies - Third Party P,30128833,KEMBLE HOUSE,"8,192.99",19/07/2016
Delivery Units,Adults and Communities,Other Agencies - Third Party P,60056769,KIHTO HEALTHCARE LTD,"1,400.00",06/07/2016
Delivery Units,Adults and Communities,Other Agencies - Third Party P,60056871,KIHTO HEALTHCARE LTD,"1,400.00",06/07/2016
Delivery Units,Adults and Communities,Other Agencies - Third Party P,30128156,KILCULLEN HOMES (UK) LLP,"1,569.48",18/07/2016
Delivery Units,Adults and Communities,Other Agencies - Third Party P,30127248,KISHARON DAY SCHOOL,"1,464.03",06/07/2016
Delivery Units,Adults and Communities,Other Agencies - Third Party P,30127249,KISHARON DAY SCHOOL,"4,260.72",06/07/2016
Delivery Units,Adults and Communities,Other Agencies - Third Party P,30127250,KISHARON DAY SCHOOL,"2,144.10",06/07/2016
Delivery Units,Adults and Communities,Other Agencies - Third Party P,30127251,KISHARON DAY SCHOOL,"2,284.24",06/07/2016
Delivery Units,Adults and Communities,Other Agencies - Third Party P,30127252,KISHARON DAY SCHOOL,"1,373.49",06/07/2016
Delivery Units,Adults and Communities,Other Agencies - Third Party P,30127253,KISHARON DAY SCHOOL,794.08,06/07/2016
Delivery Units,Adults and Communities,Other Agencies - Third Party P,30127254,KISHARON DAY SCHOOL,381.54,06/07/2016
Delivery Units,Adults and Communities,Other Agencies - Third Party P,30127255,KISHARON DAY SCHOOL,"1,373.49",06/07/2016
Delivery Units,Adults and Communities,Other Agencies - Third Party P,30127256,KISHARON DAY SCHOOL,397.11,06/07/2016
Delivery Units,Adults and Communities,Other Agencies - Third Party P,30127257,KISHARON DAY SCHOOL,"1,679.87",06/07/2016
Delivery Units,Adults and Communities,Other Agencies - Third Party P,30127258,KISHARON DAY SCHOOL,"1,241.16",06/07/2016
Delivery Units,Adults and Communities,Other Agencies - Third Party P,30127259,KISHARON DAY SCHOOL,"1,369.23",06/07/2016
Delivery Units,Adults and Communities,Other Agencies - Third Party P,30127260,KISHARON DAY SCHOOL,"1,373.68",06/07/2016
Delivery Units,Adults and Communities,Other Agencies - Third Party P,30127261,KISHARON DAY SCHOOL,"1,595.00",06/07/2016
Delivery Units,Adults and Communities,Other Agencies - Third Party P,30127262,KISHARON DAY SCHOOL,733.72,06/07/2016
Delivery Units,Adults and Communities,Other Agencies - Third Party P,30127264,KISHARON DAY SCHOOL,"1,275.96",06/07/2016
Delivery Units,Adults and Communities,Other Agencies - Third Party P,30127269,KISHARON DAY SCHOOL,"1,914.00",06/07/2016
Delivery Units,Adults and Communities,Other Agencies - Third Party P,30127272,KISHARON DAY SCHOOL,686.88,06/07/2016
Delivery Units,Adults and Communities,Other Agencies - Third Party P,30129380,KISHARON DAY SCHOOL,-2.70,22/07/2016
Delivery Units,Adults and Communities,Other Agencies - Third Party P,30129381,KISHARON DAY SCHOOL,-2.79,22/07/2016
Delivery Units,Adults and Communities,Other Agencies - Third Party P,30129840,KISHARON DAY SCHOOL,"1,340.18",27/07/2016
Delivery Units,Adults and Communities,Other Agencies - Third Party P,30130006,KISHARON DAY SCHOOL,"1,340.18",28/07/2016
Delivery Units,Adults and Communities,Other Agencies - Third Party P,30124499,KOLBE HOUSE SOCIETY,"2,320.00",11/07/2016
Delivery Units,Adults and Communities,Other Agencies - Third Party P,30127976,LANGDON COMMUNITY LTD,956.36,15/07/2016
Delivery Units,Adults and Communities,Other Agencies - Third Party P,30127977,LANGDON COMMUNITY LTD,851.20,15/07/2016
Delivery Units,Adults and Communities,Other Agencies - Third Party P,30127978,LANGDON COMMUNITY LTD,"1,276.80",15/07/2016
Delivery Units,Adults and Communities,Other Agencies - Third Party P,30127979,LANGDON COMMUNITY LTD,425.60,15/07/2016
Delivery Units,Adults and Communities,Other Agencies - Third Party P,30127980,LANGDON COMMUNITY LTD,"1,064.00",15/07/2016
Delivery Units,Adults and Communities,Other Agencies - Third Party P,30127982,LANGDON COMMUNITY LTD,608.00,15/07/2016
Delivery Units,Adults and Communities,Other Agencies - Third Party P,30127983,LANGDON COMMUNITY LTD,"1,315.12",15/07/2016
Delivery Units,Adults and Communities,Other Agencies - Third Party P,30127984,LANGDON COMMUNITY LTD,"1,763.20",15/07/2016
Delivery Units,Adults and Communities,Other Agencies - Third Party P,30127985,LANGDON COMMUNITY LTD,243.20,15/07/2016
Delivery Units,Adults and Communities,Other Agencies - Third Party P,30127986,LANGDON COMMUNITY LTD,"2,403.92",15/07/2016
Delivery Units,Adults and Communities,Other Agencies - Third Party P,30127988,LANGDON COMMUNITY LTD,"1,772.32",15/07/2016
Delivery Units,Adults and Communities,Other Agencies - Third Party P,30127989,LANGDON COMMUNITY LTD,"2,097.60",15/07/2016
Delivery Units,Adults and Communities,Other Agencies - Third Party P,30127990,LANGDON COMMUNITY LTD,"3,411.48",15/07/2016
Delivery Units,Adults and Communities,Other Agencies - Third Party P,30127991,LANGDON COMMUNITY LTD,"1,641.60",15/07/2016
Delivery Units,Adults and Communities,Other Agencies - Third Party P,30127992,LANGDON COMMUNITY LTD,"4,594.04",15/07/2016
Delivery Units,Adults and Communities,Other Agencies - Third Party P,30127993,LANGDON COMMUNITY LTD,"1,094.40",15/07/2016
Delivery Units,Adults and Communities,Other Agencies - Third Party P,30127994,LANGDON COMMUNITY LTD,"2,128.00",15/07/2016
Delivery Units,Adults and Communities,Other Agencies - Third Party P,30127069,LCS PARTNERSHIPS LTD,896.00,04/07/2016
Delivery Units,Adults and Communities,Other Agencies - Third Party P,30127139,LCS PARTNERSHIPS LTD,896.00,08/07/2016
Delivery Units,Adults and Communities,Other Agencies - Third Party P,30129114,LCS PARTNERSHIPS LTD,896.00,26/07/2016
Delivery Units,Adults and Communities,Other Agencies - Third Party P,30128082,LEEMING BAR CARE HOME,"2,039.70",15/07/2016
Delivery Units,Adults and Communities,Other Agencies - Third Party P,30130020,LEO BAECK HOUSING ASSOC. LTD,"2,249.36",28/07/2016
Delivery Units,Adults and Communities,Other Agencies - Third Party P,30130029,LEO BAECK HOUSING ASSOC. LTD,"2,249.36",28/07/2016
Delivery Units,Adults and Communities,Other Agencies - Third Party P,30130030,LEO BAECK HOUSING ASSOC. LTD,"2,448.78",28/07/2016
Delivery Units,Adults and Communities,Other Agencies - Third Party P,30130031,LEO BAECK HOUSING ASSOC. LTD,"2,249.36",28/07/2016
Delivery Units,Adults and Communities,Other Agencies - Third Party P,30130043,LEO BAECK HOUSING ASSOC. LTD,"2,327.21",28/07/2016
Delivery Units,Adults and Communities,Other Agencies - Third Party P,30130062,LEO BAECK HOUSING ASSOC. LTD,"2,249.36",28/07/2016
Delivery Units,Adults and Communities,Other Agencies - Third Party P,30130065,LEO BAECK HOUSING ASSOC. LTD,"2,448.69",28/07/2016
Delivery Units,Adults and Communities,Other Agencies - Third Party P,30129920,LEWIS.W.HAMMERSON MEMORIAL HOME,"2,249.45",27/07/2016
Delivery Units,Adults and Communities,Other Agencies - Third Party P,30129923,LEWIS.W.HAMMERSON MEMORIAL HOME,"2,249.45",27/07/2016
Delivery Units,Adults and Communities,Other Agencies - Third Party P,30129924,LEWIS.W.HAMMERSON MEMORIAL HOME,"2,249.45",27/07/2016
Delivery Units,Adults and Communities,Other Agencies - Third Party P,30127391,LIFESTYLE CARE 2011 PLC,"2,138.00",07/07/2016
Delivery Units,Adults and Communities,Other Agencies - Third Party P,30127387,LIFESTYLE CARE PLC,"2,998.20",07/07/2016
Delivery Units,Adults and Communities,Other Agencies - Third Party P,30127388,LIFESTYLE CARE PLC,"2,655.55",07/07/2016
Delivery Units,Adults and Communities,Other Agencies - Third Party P,30127389,LIFESTYLE CARE PLC,"2,569.89",07/07/2016
Delivery Units,Adults and Communities,Other Agencies - Third Party P,30127390,LIFESTYLE CARE PLC,"2,655.55",07/07/2016
Delivery Units,Adults and Communities,Other Agencies - Third Party P,30127121,LIFEWAYS,"3,145.24",05/07/2016
Delivery Units,Adults and Communities,Other Agencies - Third Party P,30127123,LIFEWAYS,"5,037.40",05/07/2016
Delivery Units,Adults and Communities,Other Agencies - Third Party P,30127124,LIFEWAYS,"5,943.00",05/07/2016
Delivery Units,Adults and Communities,Other Agencies - Third Party P,30127130,LIFEWAYS,"3,656.00",05/07/2016
Delivery Units,Adults and Communities,Other Agencies - Third Party P,30127131,LIFEWAYS,"5,766.44",05/07/2016
Delivery Units,Adults and Communities,Other Agencies - Third Party P,30127132,LIFEWAYS,"2,377.20",05/07/2016
Delivery Units,Adults and Communities,Other Agencies - Third Party P,30127133,LIFEWAYS,"4,828.24",05/07/2016
Delivery Units,Adults and Communities,Other Agencies - Third Party P,30127137,LIFEWAYS,"5,275.20",05/07/2016
Delivery Units,Adults and Communities,Other Agencies - Third Party P,30128150,LIFEWAYS,"6,930.00",18/07/2016
Delivery Units,Adults and Communities,Other Agencies - Third Party P,30128963,LORRAINES CARE HOME LTD,"1,820.00",21/07/2016
Delivery Units,Adults and Communities,Other Agencies - Third Party P,30127211,LYNDON (THE SALVATION ARMY),"1,872.00",06/07/2016
Delivery Units,Adults and Communities,Other Agencies - Third Party P,30127444,MACINTYRE CARE,750.40,07/07/2016
Delivery Units,Adults and Communities,Other Agencies - Third Party P,30127778,MADELAYNE COURT,"2,144.91",13/07/2016
Delivery Units,Adults and Communities,Other Agencies - Third Party P,30127677,MAISON MOTI LTD,"3,642.86",13/07/2016
Delivery Units,Adults and Communities,Other Agencies - Third Party P,30127678,MAISON MOTI LTD,"3,642.86",13/07/2016
Delivery Units,Adults and Communities,Other Agencies - Third Party P,30127698,MAISON MOTI LTD,"3,492.86",13/07/2016
Delivery Units,Adults and Communities,Other Agencies - Third Party P,30127705,MAISON MOTI LTD,"3,642.86",13/07/2016
Delivery Units,Adults and Communities,Other Agencies - Third Party P,30127971,MAISON MOTI LTD,"2,500.00",15/07/2016
Delivery Units,Adults and Communities,Other Agencies - Third Party P,30127975,MAISON MOTI LTD,"2,380.00",15/07/2016
Delivery Units,Adults and Communities,Other Agencies - Third Party P,30127998,MAISON MOTI LTD,"2,200.00",15/07/2016
Delivery Units,Adults and Communities,Other Agencies - Third Party P,30127999,MAISON MOTI LTD,"2,200.00",15/07/2016
Delivery Units,Adults and Communities,Other Agencies - Third Party P,30128028,MAISON MOTI LTD,"2,500.00",15/07/2016
Delivery Units,Adults and Communities,Other Agencies - Third Party P,30128029,MAISON MOTI LTD,"2,500.00",15/07/2016
Delivery Units,Adults and Communities,Other Agencies - Third Party P,30128030,MAISON MOTI LTD,"2,500.00",15/07/2016
Delivery Units,Adults and Communities,Other Agencies - Third Party P,30128031,MAISON MOTI LTD,"2,500.00",15/07/2016
Delivery Units,Adults and Communities,Other Agencies - Third Party P,30128032,MAISON MOTI LTD,"1,517.86",15/07/2016
Delivery Units,Adults and Communities,Other Agencies - Third Party P,30128033,MAISON MOTI LTD,"2,500.00",15/07/2016
Delivery Units,Adults and Communities,Other Agencies - Third Party P,30128036,MAISON MOTI LTD,"1,026.00",15/07/2016
Delivery Units,Adults and Communities,Other Agencies - Third Party P,30128042,MAISON MOTI LTD,"2,440.00",15/07/2016
Delivery Units,Adults and Communities,Other Agencies - Third Party P,30128086,MAISON MOTI LTD,343.40,15/07/2016
Delivery Units,Adults and Communities,Other Agencies - Third Party P,30128087,MAISON MOTI LTD,343.40,15/07/2016
Delivery Units,Adults and Communities,Other Agencies - Third Party P,30128155,MARRILYNE LODGE,"2,554.16",18/07/2016
Delivery Units,Adults and Communities,Other Agencies - Third Party P,30128078,MENTAL HEALTH CARE (UK) LTD,"10,267.93",15/07/2016
Delivery Units,Adults and Communities,Other Agencies - Third Party P,30128572,MENTAL HEALTH CARE (UK) LTD,"10,610.19",19/07/2016
Delivery Units,Adults and Communities,Other Agencies - Third Party P,30128104,METROPOLITAN HOUSING TRUST,721.02,20/07/2016
Delivery Units,Adults and Communities,Other Agencies - Third Party P,30129834,METROPOLITAN HOUSING TRUST,480.68,27/07/2016
Delivery Units,Adults and Communities,Other Agencies - Third Party P,30127118,ML HOMES LTD,"1,780.80",05/07/2016
Delivery Units,Adults and Communities,Other Agencies - Third Party P,30127120,ML HOMES LTD,"1,751.16",05/07/2016
Delivery Units,Adults and Communities,Other Agencies - Third Party P,30127138,ML HOMES LTD,"1,765.80",05/07/2016
Delivery Units,Adults and Communities,Other Agencies - Third Party P,30127140,ML HOMES LTD,"1,767.40",05/07/2016
Delivery Units,Adults and Communities,Other Agencies - Third Party P,30127180,ML HOMES LTD,"1,780.00",05/07/2016
Delivery Units,Adults and Communities,Other Agencies - Third Party P,30127284,ML HOMES LTD,"2,118.36",05/07/2016
Delivery Units,Adults and Communities,Other Agencies - Third Party P,30127285,ML HOMES LTD,"1,433.56",05/07/2016
Delivery Units,Adults and Communities,Other Agencies - Third Party P,30127299,ML HOMES LTD,"2,118.36",05/07/2016
Delivery Units,Adults and Communities,Other Agencies - Third Party P,30127303,ML HOMES LTD,"1,417.24",05/07/2016
Delivery Units,Adults and Communities,Other Agencies - Third Party P,30127304,ML HOMES LTD,"1,428.68",05/07/2016
Delivery Units,Adults and Communities,Other Agencies - Third Party P,30127314,ML HOMES LTD,"1,751.16",05/07/2016
Delivery Units,Adults and Communities,Other Agencies - Third Party P,30127362,ML HOMES LTD,"1,780.80",05/07/2016
Delivery Units,Adults and Communities,Other Agencies - Third Party P,30127406,ML HOMES LTD,"1,740.00",08/07/2016
Delivery Units,Adults and Communities,Other Agencies - Third Party P,30127301,MOREWAYS HEALTHCARE,"2,907.00",06/07/2016
Delivery Units,Adults and Communities,Other Agencies - Third Party P,30127332,MOREWAYS HEALTHCARE,"1,800.00",06/07/2016
Delivery Units,Adults and Communities,Other Agencies - Third Party P,30128077,MOREWAYS HEALTHCARE,"2,600.00",15/07/2016
Delivery Units,Adults and Communities,Other Agencies - Third Party P,30128083,MOREWAYS HEALTHCARE,"2,824.00",15/07/2016
Delivery Units,Adults and Communities,Other Agencies - Third Party P,30128091,MOREWAYS HEALTHCARE,"2,200.00",15/07/2016
Delivery Units,Adults and Communities,Other Agencies - Third Party P,30129084,MOREWAYS HEALTHCARE,"2,600.00",21/07/2016
Delivery Units,Adults and Communities,Other Agencies - Third Party P,30128064,NAZARETH HOUSE,"3,036.00",15/07/2016
Delivery Units,Adults and Communities,Other Agencies - Third Party P,30128065,NAZARETH HOUSE,"2,031.76",15/07/2016
Delivery Units,Adults and Communities,Other Agencies - Third Party P,30128066,NAZARETH HOUSE,"2,031.76",15/07/2016
Delivery Units,Adults and Communities,Other Agencies - Third Party P,30128067,NAZARETH HOUSE,"2,031.76",15/07/2016
Delivery Units,Adults and Communities,Other Agencies - Third Party P,30128068,NAZARETH HOUSE,"2,650.40",15/07/2016
Delivery Units,Adults and Communities,Other Agencies - Third Party P,30128070,NAZARETH HOUSE,"2,031.76",15/07/2016
Delivery Units,Adults and Communities,Other Agencies - Third Party P,30128071,NAZARETH HOUSE,"2,211.80",15/07/2016
Delivery Units,Adults and Communities,Other Agencies - Third Party P,30128072,NAZARETH HOUSE,"2,031.76",15/07/2016
Delivery Units,Adults and Communities,Other Agencies - Third Party P,30128073,NAZARETH HOUSE,"2,031.76",15/07/2016
Delivery Units,Adults and Communities,Other Agencies - Third Party P,30128566,NAZARETH HOUSE,"2,001.92",19/07/2016
Delivery Units,Adults and Communities,Other Agencies - Third Party P,30128568,NAZARETH HOUSE,"2,104.24",19/07/2016
Delivery Units,Adults and Communities,Other Agencies - Third Party P,30128569,NAZARETH HOUSE,"2,249.45",20/07/2016
Delivery Units,Adults and Communities,Other Agencies - Third Party P,30128570,NAZARETH HOUSE,"2,249.45",20/07/2016
Delivery Units,Adults and Communities,Other Agencies - Third Party P,30128571,NAZARETH HOUSE,"2,176.89",20/07/2016
Delivery Units,Adults and Communities,Other Agencies - Third Party P,30127208,NEEM TREE CARE CENTRE,"2,612.14",06/07/2016
Delivery Units,Adults and Communities,Other Agencies - Third Party P,30127209,NEEM TREE CARE CENTRE,"2,569.89",06/07/2016
Delivery Units,Adults and Communities,Other Agencies - Third Party P,30127210,NEEM TREE CARE CENTRE,"2,610.00",06/07/2016
Delivery Units,Adults and Communities,Other Agencies - Third Party P,30126999,NEWCENTURY CARE LTD,"3,642.86",04/07/2016
Delivery Units,Adults and Communities,Other Agencies - Third Party P,30127000,NEWCENTURY CARE LTD,"2,569.89",04/07/2016
Delivery Units,Adults and Communities,Other Agencies - Third Party P,30127001,NEWCENTURY CARE LTD,"2,569.89",04/07/2016
Delivery Units,Adults and Communities,Other Agencies - Third Party P,30127002,NEWCENTURY CARE LTD,"2,569.89",04/07/2016
Delivery Units,Adults and Communities,Other Agencies - Third Party P,30127517,NEXT STEP SUPPORT LIMITED,"2,000.00",08/07/2016
Delivery Units,Adults and Communities,Other Agencies - Third Party P,30128057,NEXT STEP SUPPORT LIMITED,"2,240.00",15/07/2016
Delivery Units,Adults and Communities,Other Agencies - Third Party P,30128837,NHS BARNET CCG,"11,850.00",19/07/2016
Delivery Units,Adults and Communities,Other Agencies - Third Party P,30128838,NHS BARNET CCG,"125,749.92",19/07/2016
Delivery Units,Adults and Communities,Other Agencies - Third Party P,30128839,NHS BARNET CCG,"96,690.85",19/07/2016
Delivery Units,Adults and Communities,Other Agencies - Third Party P,30128840,NHS BARNET CCG,"5,280.00",19/07/2016
Delivery Units,Adults and Communities,Other Agencies - Third Party P,30129057,NHS BARNET CCG,567.00,21/07/2016
Delivery Units,Adults and Communities,Other Agencies - Third Party P,30129062,NHS BARNET CCG,"11,241.43",21/07/2016
Delivery Units,Adults and Communities,Other Agencies - Third Party P,30129116,NORTHAMPTONSHIRE ASSOC. FOR THE BLIND,"1,190.00",21/07/2016
Delivery Units,Adults and Communities,Other Agencies - Third Party P,30128164,NORWOOD RAVENSWOOD SCHOOLS LTD,243.20,18/07/2016
Delivery Units,Adults and Communities,Other Agencies - Third Party P,30128165,NORWOOD RAVENSWOOD SCHOOLS LTD,"1,520.00",18/07/2016
Delivery Units,Adults and Communities,Other Agencies - Third Party P,30128166,NORWOOD RAVENSWOOD SCHOOLS LTD,729.60,18/07/2016
Delivery Units,Adults and Communities,Other Agencies - Third Party P,30128167,NORWOOD RAVENSWOOD SCHOOLS LTD,304.00,18/07/2016
Delivery Units,Adults and Communities,Other Agencies - Third Party P,30128168,NORWOOD RAVENSWOOD SCHOOLS LTD,182.40,18/07/2016
Delivery Units,Adults and Communities,Other Agencies - Third Party P,30128169,NORWOOD RAVENSWOOD SCHOOLS LTD,790.40,18/07/2016
Delivery Units,Adults and Communities,Other Agencies - Third Party P,30128170,NORWOOD RAVENSWOOD SCHOOLS LTD,486.40,18/07/2016
Delivery Units,Adults and Communities,Other Agencies - Third Party P,30128174,NORWOOD RAVENSWOOD SCHOOLS LTD,"1,021.44",18/07/2016
Delivery Units,Adults and Communities,Other Agencies - Third Party P,30128180,NORWOOD RAVENSWOOD SCHOOLS LTD,"1,021.44",18/07/2016
Delivery Units,Adults and Communities,Other Agencies - Third Party P,30128185,NORWOOD RAVENSWOOD SCHOOLS LTD,121.60,18/07/2016
Delivery Units,Adults and Communities,Other Agencies - Third Party P,30128186,NORWOOD RAVENSWOOD SCHOOLS LTD,820.80,18/07/2016
Delivery Units,Adults and Communities,Other Agencies - Third Party P,30128189,NORWOOD RAVENSWOOD SCHOOLS LTD,364.80,18/07/2016
Delivery Units,Adults and Communities,Other Agencies - Third Party P,30129133,NORWOOD RAVENSWOOD SCHOOLS LTD,"1,592.28",21/07/2016
Delivery Units,Adults and Communities,Other Agencies - Third Party P,30130050,NORWOOD RAVENSWOOD SCHOOLS LTD,"-2,951.28",29/07/2016
Delivery Units,Adults and Communities,Other Agencies - Third Party P,30130045,NOTTING HILL HOUSING TRUST,"19,136.25",28/07/2016
Delivery Units,Adults and Communities,Other Agencies - Third Party P,30128157,ONE STEP (SUPPORT) LTD,"1,339.80",18/07/2016
Delivery Units,Adults and Communities,Other Agencies - Third Party P,30128160,ONE STEP (SUPPORT) LTD,"3,395.80",18/07/2016
Delivery Units,Adults and Communities,Other Agencies - Third Party P,30128161,ONE STEP (SUPPORT) LTD,"2,618.20",18/07/2016
Delivery Units,Adults and Communities,Other Agencies - Third Party P,30128162,ONE STEP (SUPPORT) LTD,638.00,18/07/2016
Delivery Units,Adults and Communities,Other Agencies - Third Party P,30128163,ONE STEP (SUPPORT) LTD,638.00,18/07/2016
Delivery Units,Adults and Communities,Other Agencies - Third Party P,30130227,ONE STEP (SUPPORT) LTD,"2,160.00",29/07/2016
Delivery Units,Adults and Communities,Other Agencies - Third Party P,30129926,ORIGIN HOUSING LIMITED,576.00,27/07/2016
Delivery Units,Adults and Communities,Other Agencies - Third Party P,30129927,ORIGIN HOUSING LIMITED,576.00,27/07/2016
Delivery Units,Adults and Communities,Other Agencies - Third Party P,30129928,ORIGIN HOUSING LIMITED,"1,728.00",27/07/2016
Delivery Units,Adults and Communities,Other Agencies - Third Party P,30129929,ORIGIN HOUSING LIMITED,"1,065.60",27/07/2016
Delivery Units,Adults and Communities,Other Agencies - Third Party P,30130051,ORIGIN HOUSING LIMITED,"4,893.25",28/07/2016
Delivery Units,Adults and Communities,Other Agencies - Third Party P,30130052,ORIGIN HOUSING LIMITED,"1,728.00",28/07/2016
Delivery Units,Adults and Communities,Other Agencies - Third Party P,30130054,ORIGIN HOUSING LIMITED,"1,065.60",28/07/2016
Delivery Units,Adults and Communities,Other Agencies - Third Party P,30130057,ORIGIN HOUSING LIMITED,144.00,28/07/2016
Delivery Units,Adults and Communities,Other Agencies - Third Party P,30127655,PATERNOSTER HOUSE (BARCHESTER CARE),"4,847.14",13/07/2016
Delivery Units,Adults and Communities,Other Agencies - Third Party P,30127286,PILLARCARE,"6,554.00",06/07/2016
Delivery Units,Adults and Communities,Other Agencies - Third Party P,30129085,PLATINUM HEALTH RESOURCES LTD,"2,868.00",21/07/2016
Delivery Units,Adults and Communities,Other Agencies - Third Party P,30127485,PRACTICAL CARE,"1,568.00",08/07/2016
Delivery Units,Adults and Communities,Other Agencies - Third Party P,30127486,PRACTICAL CARE,686.00,08/07/2016
Delivery Units,Adults and Communities,Other Agencies - Third Party P,30127487,PRACTICAL CARE,332.50,08/07/2016
Delivery Units,Adults and Communities,Other Agencies - Third Party P,30127488,PRACTICAL CARE,287.00,08/07/2016
Delivery Units,Adults and Communities,Other Agencies - Third Party P,30127489,PRACTICAL CARE,392.00,08/07/2016
Delivery Units,Adults and Communities,Other Agencies - Third Party P,30127490,PRACTICAL CARE,231.00,08/07/2016
Delivery Units,Adults and Communities,Other Agencies - Third Party P,30127491,PRACTICAL CARE,70.00,08/07/2016
Delivery Units,Adults and Communities,Other Agencies - Third Party P,30127492,PRACTICAL CARE,735.00,08/07/2016
Delivery Units,Adults and Communities,Other Agencies - Third Party P,30127493,PRACTICAL CARE,525.00,08/07/2016
Delivery Units,Adults and Communities,Other Agencies - Third Party P,30127495,PRACTICAL CARE,609.00,08/07/2016
Delivery Units,Adults and Communities,Other Agencies - Third Party P,30127496,PRACTICAL CARE,609.00,08/07/2016
Delivery Units,Adults and Communities,Other Agencies - Third Party P,30127497,PRACTICAL CARE,"1,827.00",08/07/2016
Delivery Units,Adults and Communities,Other Agencies - Third Party P,30127498,PRACTICAL CARE,913.50,08/07/2016
Delivery Units,Adults and Communities,Other Agencies - Third Party P,30127499,PRACTICAL CARE,623.00,08/07/2016
Delivery Units,Adults and Communities,Other Agencies - Third Party P,30127500,PRACTICAL CARE,416.50,08/07/2016
Delivery Units,Adults and Communities,Other Agencies - Third Party P,30127674,PRACTICAL CARE,710.50,13/07/2016
Delivery Units,Adults and Communities,Other Agencies - Third Party P,30127676,PRACTICAL CARE,"2,079.00",13/07/2016
Delivery Units,Adults and Communities,Other Agencies - Third Party P,30127699,PRACTICAL CARE,"2,548.00",13/07/2016
Delivery Units,Adults and Communities,Other Agencies - Third Party P,30127700,PRACTICAL CARE,"1,071.00",13/07/2016
Delivery Units,Adults and Communities,Other Agencies - Third Party P,30127701,PRACTICAL CARE,63.00,13/07/2016
Delivery Units,Adults and Communities,Other Agencies - Third Party P,30127702,PRACTICAL CARE,"1,015.00",13/07/2016
Delivery Units,Adults and Communities,Other Agencies - Third Party P,30127703,PRACTICAL CARE,710.50,13/07/2016
Delivery Units,Adults and Communities,Other Agencies - Third Party P,30127704,PRACTICAL CARE,140.00,13/07/2016
Delivery Units,Adults and Communities,Other Agencies - Third Party P,30128900,PRT BARNET CARERS CENTRE,"1,514.63",21/07/2016
Delivery Units,Adults and Communities,Other Agencies - Third Party P,30128901,PRT BARNET CARERS CENTRE,"1,513.80",21/07/2016
Delivery Units,Adults and Communities,Other Agencies - Third Party P,30128902,PRT BARNET CARERS CENTRE,"1,513.80",21/07/2016
Delivery Units,Adults and Communities,Other Agencies - Third Party P,30128972,PRT BARNET CARERS CENTRE,"2,314.22",21/07/2016
Delivery Units,Adults and Communities,Other Agencies - Third Party P,30129937,PRT BARNET CARERS CENTRE,252.02,28/07/2016
Delivery Units,Adults and Communities,Other Agencies - Third Party P,30129938,PRT BARNET CARERS CENTRE,131.85,28/07/2016
Delivery Units,Adults and Communities,Other Agencies - Third Party P,30129939,PRT BARNET CARERS CENTRE,874.61,28/07/2016
Delivery Units,Adults and Communities,Other Agencies - Third Party P,30129940,PRT BARNET CARERS CENTRE,13.19,28/07/2016
Delivery Units,Adults and Communities,Other Agencies - Third Party P,30129941,PRT BARNET CARERS CENTRE,175.80,28/07/2016
Delivery Units,Adults and Communities,Other Agencies - Third Party P,30129942,PRT BARNET CARERS CENTRE,501.22,28/07/2016
Delivery Units,Adults and Communities,Other Agencies - Third Party P,30129943,PRT BARNET CARERS CENTRE,118.71,28/07/2016
Delivery Units,Adults and Communities,Other Agencies - Third Party P,30129835,QUANTUM CARE LIMITED,"1,791.43",27/07/2016
Delivery Units,Adults and Communities,Other Agencies - Third Party P,30127785,QUEEN ANN CARE,"3,985.71",13/07/2016
Delivery Units,Adults and Communities,Other Agencies - Third Party P,30127786,QUEEN ANN CARE,"3,857.14",13/07/2016
Delivery Units,Adults and Communities,Other Agencies - Third Party P,30127043,RESIDENTIAL CARE SERVICES LTD T/A FRANKL,"4,759.61",04/07/2016
Delivery Units,Adults and Communities,Other Agencies - Third Party P,30127044,RESIDENTIAL CARE SERVICES LTD T/A FRANKL,"4,452.54",04/07/2016
Delivery Units,Adults and Communities,Other Agencies - Third Party P,30127045,RESIDENTIAL CARE SERVICES LTD T/A FRANKL,"4,759.61",04/07/2016
Delivery Units,Adults and Communities,Other Agencies - Third Party P,30127046,RESIDENTIAL CARE SERVICES LTD T/A FRANKL,"4,606.07",04/07/2016
Delivery Units,Adults and Communities,Other Agencies - Third Party P,30127047,RESIDENTIAL CARE SERVICES LTD T/A FRANKL,"4,759.61",04/07/2016
Delivery Units,Adults and Communities,Other Agencies - Third Party P,30127048,RESIDENTIAL CARE SERVICES LTD T/A FRANKL,"4,606.07",19/07/2016
Delivery Units,Adults and Communities,Other Agencies - Third Party P,30127295,ROLAND COMMUNITY CARE LTD,"2,150.64",06/07/2016
Delivery Units,Adults and Communities,Other Agencies - Third Party P,30127331,ROLAND COMMUNITY CARE LTD,"2,820.36",06/07/2016
Delivery Units,Adults and Communities,Other Agencies - Third Party P,30126600,ROSEACRES CARE HOME LIMITED,-473.96,04/07/2016
Delivery Units,Adults and Communities,Other Agencies - Third Party P,30126601,ROSEACRES CARE HOME LIMITED,725.63,04/07/2016
Delivery Units,Adults and Communities,Other Agencies - Third Party P,30127761,ROSEACRES CARE HOME LIMITED,"2,369.79",13/07/2016
Delivery Units,Adults and Communities,Other Agencies - Third Party P,30127762,ROSEACRES CARE HOME LIMITED,"2,369.79",13/07/2016
Delivery Units,Adults and Communities,Other Agencies - Third Party P,30127763,ROSEACRES CARE HOME LIMITED,"1,816.84",13/07/2016
Delivery Units,Adults and Communities,Other Agencies - Third Party P,30127764,ROSEACRES CARE HOME LIMITED,"2,369.79",13/07/2016
Delivery Units,Adults and Communities,Other Agencies - Third Party P,30127765,ROSEACRES CARE HOME LIMITED,"2,369.79",13/07/2016
Delivery Units,Adults and Communities,Other Agencies - Third Party P,30127766,ROSEACRES CARE HOME LIMITED,"2,176.89",13/07/2016
Delivery Units,Adults and Communities,Other Agencies - Third Party P,30127767,ROSEACRES CARE HOME LIMITED,"2,369.79",13/07/2016
Delivery Units,Adults and Communities,Other Agencies - Third Party P,30127768,ROSEACRES CARE HOME LIMITED,"2,369.79",13/07/2016
Delivery Units,Adults and Communities,Other Agencies - Third Party P,30127769,ROSEACRES CARE HOME LIMITED,"2,369.79",13/07/2016
Delivery Units,Adults and Communities,Other Agencies - Third Party P,30127770,ROSEACRES CARE HOME LIMITED,"2,369.79",13/07/2016
Delivery Units,Adults and Communities,Other Agencies - Third Party P,30127771,ROSEACRES CARE HOME LIMITED,"2,369.79",13/07/2016
Delivery Units,Adults and Communities,Other Agencies - Third Party P,30127772,ROSEACRES CARE HOME LIMITED,"2,369.79",13/07/2016
Delivery Units,Adults and Communities,Other Agencies - Third Party P,30127773,ROSEACRES CARE HOME LIMITED,"2,369.79",13/07/2016
Delivery Units,Adults and Communities,Other Agencies - Third Party P,30128084,ROSEACRES CARE HOME LIMITED,"2,369.79",15/07/2016
Delivery Units,Adults and Communities,Other Agencies - Third Party P,30128085,ROSEACRES CARE HOME LIMITED,"2,369.79",15/07/2016
Delivery Units,Adults and Communities,Other Agencies - Third Party P,30129915,ROSEACRES CARE HOME LIMITED,"2,290.79",27/07/2016
